Department family,Entity,Date,Expense Type,Expense area,Supplier,Transaction number,AP Amount (�)
Department of Health,NHS Sheffield CCG,30/09/2016,C&M-PMS Baseline Adjustment,PRC DELEGATED CO-COMMISSIONING,ABBEY LANE SURGERY,14153154,"2,210.17 "
Department of Health,NHS Sheffield CCG,30/09/2016,C&M-PMS Contract Value,PRC DELEGATED CO-COMMISSIONING,ABBEY LANE SURGERY,14153154,"42,109.04 "
Department of Health,NHS Sheffield CCG,30/09/2016,C&M-PMS DES Minor Surgery,PRC DELEGATED CO-COMMISSIONING,ABBEY LANE SURGERY,14153154,"1,471.55 "
Department of Health,NHS Sheffield CCG,30/09/2016,C&M-PMS DES UNPLANNED ADMISSIONS,PRC DELEGATED CO-COMMISSIONING,ABBEY LANE SURGERY,14153154,"4,123.00 "
Department of Health,NHS Sheffield CCG,30/09/2016,C&M-PMS Out of Hours Opt Outs,PRC DELEGATED CO-COMMISSIONING,ABBEY LANE SURGERY,14153154,(977.47)
Department of Health,NHS Sheffield CCG,30/09/2016,C&M-PMS PCO Seniority,PRC DELEGATED CO-COMMISSIONING,ABBEY LANE SURGERY,14153154,611.82 
Department of Health,NHS Sheffield CCG,30/09/2016,C&M-PMS Prem Notional Rent,PRC DELEGATED CO-COMMISSIONING,ABBEY LANE SURGERY,14153154,"2,122.92 "
Department of Health,NHS Sheffield CCG,30/09/2016,C&M-PMS Prem Rates,PRC DELEGATED CO-COMMISSIONING,ABBEY LANE SURGERY,14153154,653.40 
Department of Health,NHS Sheffield CCG,30/09/2016,C&M-PMS QOF Aspiration,PRC DELEGATED CO-COMMISSIONING,ABBEY LANE SURGERY,14153154,"2,925.38 "
Department of Health,NHS Sheffield CCG,30/09/2016,Cont Care-Physical Disab (65+),CHC ADULT FULLY FUNDED,ABBEYCARE NURSING,14208780,"45,450.00 "
Department of Health,NHS Sheffield CCG,30/09/2016,Cont Care-Physical Disab (<65),CHC ADULT FULLY FUNDED,ALPINE HEALTH CARE,14119541,"27,057.92 "
Department of Health,NHS Sheffield CCG,30/09/2016,Clinical&Medical-Independent Sector,MENTAL HEALTH CONTRACTS,ANCHOR HOMES,14282466,"30,092.00 "
Department of Health,NHS Sheffield CCG,30/09/2016,Clinical&Medical-Independent Sector,MENTAL HEALTH CONTRACTS,ANCHOR HOMES,14316271,"30,092.00 "
Department of Health,NHS Sheffield CCG,30/09/2016,Clinical&Medical-Independent Sector,MENTAL HEALTH CONTRACTS,ANCHOR TRUST,14069049,"(30,092.00)"
Department of Health,NHS Sheffield CCG,30/09/2016,Clinical&Medical-Commercial Sector,PATIENT TRANSPORT,ARRIVA TRANSPORT SOLUTIONS,14090946,"90,791.19 "
Department of Health,NHS Sheffield CCG,30/09/2016,C&M-PMS Contract Value,PRC DELEGATED CO-COMMISSIONING,AVENUE MEDICAL CENTRE SHEFFIELD,14153151,"(50,731.59)"
Department of Health,NHS Sheffield CCG,30/09/2016,C&M-PMS GP Statutory Levy,PRC DELEGATED CO-COMMISSIONING,AVENUE MEDICAL CENTRE SHEFFIELD,14153151,(230.46)
Department of Health,NHS Sheffield CCG,30/09/2016,C&M-PMS Out of Hours Opt Outs,PRC DELEGATED CO-COMMISSIONING,AVENUE MEDICAL CENTRE SHEFFIELD,14153151,(37.44)
Department of Health,NHS Sheffield CCG,30/09/2016,C&M-PMS Voluntary Levy,PRC DELEGATED CO-COMMISSIONING,AVENUE MEDICAL CENTRE SHEFFIELD,14153151,(38.41)
Department of Health,NHS Sheffield CCG,30/09/2016,C&M-PMS Contract Value,PRC DELEGATED CO-COMMISSIONING,AVENUE MEDICAL CENTRE SHEFFIELD,14153152,"100,774.10 "
Department of Health,NHS Sheffield CCG,30/09/2016,C&M-PMS DES Minor Surgery,PRC DELEGATED CO-COMMISSIONING,AVENUE MEDICAL CENTRE SHEFFIELD,14153152,"3,648.95 "
Department of Health,NHS Sheffield CCG,30/09/2016,C&M-PMS Out of Hours Opt Outs,PRC DELEGATED CO-COMMISSIONING,AVENUE MEDICAL CENTRE SHEFFIELD,14153152,"(2,448.55)"
Department of Health,NHS Sheffield CCG,30/09/2016,C&M-PMS Prem Notional Rent,PRC DELEGATED CO-COMMISSIONING,AVENUE MEDICAL CENTRE SHEFFIELD,14153152,"5,546.67 "
Department of Health,NHS Sheffield CCG,30/09/2016,C&M-PMS Prem Rates,PRC DELEGATED CO-COMMISSIONING,AVENUE MEDICAL CENTRE SHEFFIELD,14153152,"2,360.75 "
Department of Health,NHS Sheffield CCG,30/09/2016,C&M-PMS Prem Water Rates,PRC DELEGATED CO-COMMISSIONING,AVENUE MEDICAL CENTRE SHEFFIELD,14153152,164.42 
Department of Health,NHS Sheffield CCG,30/09/2016,C&M-PMS QOF Aspiration,PRC DELEGATED CO-COMMISSIONING,AVENUE MEDICAL CENTRE SHEFFIELD,14153152,"5,869.92 "
Department of Health,NHS Sheffield CCG,30/09/2016,Hcare Srv Rec Fdtn Trust-Contract Baseline,ACUTE COMMISSIONING,BARNSLEY HOSPITAL NHS FOUNDATION TRUST,14107940,"71,983.00 "
Department of Health,NHS Sheffield CCG,30/09/2016,C&M-PMS Baseline Adjustment,PRC DELEGATED CO-COMMISSIONING,BARNSLEY ROAD SURGERY,14172019,740.67 
Department of Health,NHS Sheffield CCG,30/09/2016,C&M-PMS Contract Value,PRC DELEGATED CO-COMMISSIONING,BARNSLEY ROAD SURGERY,14172019,"41,143.52 "
Department of Health,NHS Sheffield CCG,30/09/2016,C&M-PMS DES Minor Surgery,PRC DELEGATED CO-COMMISSIONING,BARNSLEY ROAD SURGERY,14172019,"1,290.58 "
Department of Health,NHS Sheffield CCG,30/09/2016,C&M-PMS PCO Seniority,PRC DELEGATED CO-COMMISSIONING,BARNSLEY ROAD SURGERY,14172019,"1,796.04 "
Department of Health,NHS Sheffield CCG,30/09/2016,C&M-PMS Prem Notional Rent,PRC DELEGATED CO-COMMISSIONING,BARNSLEY ROAD SURGERY,14172019,"2,652.17 "
Department of Health,NHS Sheffield CCG,30/09/2016,C&M-PMS Prem Rates,PRC DELEGATED CO-COMMISSIONING,BARNSLEY ROAD SURGERY,14172019,738.10 
Department of Health,NHS Sheffield CCG,30/09/2016,C&M-PMS QOF Aspiration,PRC DELEGATED CO-COMMISSIONING,BARNSLEY ROAD SURGERY,14172019,"2,255.94 "
Department of Health,NHS Sheffield CCG,30/09/2016,C&M-GMS Cost of Drugs -Prescribing,LOCAL ENHANCED SERVICES,BASLOW ROAD & SHOREHAM STREET SURGERIES,14361819,"1,086.33 "
Department of Health,NHS Sheffield CCG,30/09/2016,C&M-GMS DES Extended Hours Access,PRC DELEGATED CO-COMMISSIONING,BASLOW ROAD & SHOREHAM STREET SURGERIES,14361819,"5,824.93 "
Department of Health,NHS Sheffield CCG,30/09/2016,C&M-GMS Global Sum,PRC DELEGATED CO-COMMISSIONING,BASLOW ROAD & SHOREHAM STREET SURGERIES,14361819,"87,532.73 "
Department of Health,NHS Sheffield CCG,30/09/2016,C&M-GMS MPIG Correction Factor,PRC DELEGATED CO-COMMISSIONING,BASLOW ROAD & SHOREHAM STREET SURGERIES,14361819,584.85 
Department of Health,NHS Sheffield CCG,30/09/2016,C&M-GMS PCO Seniority,PRC DELEGATED CO-COMMISSIONING,BASLOW ROAD & SHOREHAM STREET SURGERIES,14361819,"3,760.31 "
Department of Health,NHS Sheffield CCG,30/09/2016,C&M-GMS Prem Notional Rent,PRC DELEGATED CO-COMMISSIONING,BASLOW ROAD & SHOREHAM STREET SURGERIES,14361819,"8,377.92 "
Department of Health,NHS Sheffield CCG,30/09/2016,C&M-GMS Prem Rates,PRC DELEGATED CO-COMMISSIONING,BASLOW ROAD & SHOREHAM STREET SURGERIES,14361819,"1,877.48 "
Department of Health,NHS Sheffield CCG,30/09/2016,C&M-GMS Prof Fees Prescribing,PRC DELEGATED CO-COMMISSIONING,BASLOW ROAD & SHOREHAM STREET SURGERIES,14361819,116.48 
Department of Health,NHS Sheffield CCG,30/09/2016,C&M-GMS QOF Aspiration,PRC DELEGATED CO-COMMISSIONING,BASLOW ROAD & SHOREHAM STREET SURGERIES,14361819,"9,331.34 "
Department of Health,NHS Sheffield CCG,30/09/2016,Cont Care-Physical Disab (65+),CHC ADULT FULLY FUNDED,BC SHEFFIELD LTD,14093367,"32,680.67 "
Department of Health,NHS Sheffield CCG,30/09/2016,C&M-PMS Contract Value,PRC DELEGATED CO-COMMISSIONING,BIRLEY HEALTH CENTRE,14153156,"(57,303.08)"
Department of Health,NHS Sheffield CCG,30/09/2016,C&M-PMS GP Statutory Levy,PRC DELEGATED CO-COMMISSIONING,BIRLEY HEALTH CENTRE,14153156,(252.30)
Department of Health,NHS Sheffield CCG,30/09/2016,C&M-PMS Out of Hours Opt Outs,PRC DELEGATED CO-COMMISSIONING,BIRLEY HEALTH CENTRE,14153156,(96.50)
Department of Health,NHS Sheffield CCG,30/09/2016,C&M-PMS Voluntary Levy,PRC DELEGATED CO-COMMISSIONING,BIRLEY HEALTH CENTRE,14153156,(42.05)
Department of Health,NHS Sheffield CCG,30/09/2016,ME - PMS TPS Added Years Adj EEs,PRC DELEGATED CO-COMMISSIONING,BIRLEY HEALTH CENTRE,14153156,(434.78)
Department of Health,NHS Sheffield CCG,30/09/2016,C&M-PMS Baseline Adjustment,PRC DELEGATED CO-COMMISSIONING,BIRLEY HEALTH CENTRE,14153157,"5,306.08 "
Department of Health,NHS Sheffield CCG,30/09/2016,C&M-PMS Contract Value,PRC DELEGATED CO-COMMISSIONING,BIRLEY HEALTH CENTRE,14153157,"115,572.04 "
Department of Health,NHS Sheffield CCG,30/09/2016,C&M-PMS DES Minor Surgery,PRC DELEGATED CO-COMMISSIONING,BIRLEY HEALTH CENTRE,14153157,"9,009.75 "
Department of Health,NHS Sheffield CCG,30/09/2016,C&M-PMS DES UNPLANNED ADMISSIONS,PRC DELEGATED CO-COMMISSIONING,BIRLEY HEALTH CENTRE,14153157,"11,185.30 "
Department of Health,NHS Sheffield CCG,30/09/2016,C&M-PMS Out of Hours Opt Outs,PRC DELEGATED CO-COMMISSIONING,BIRLEY HEALTH CENTRE,14153157,"(2,764.83)"
Department of Health,NHS Sheffield CCG,30/09/2016,C&M-PMS PCO Seniority,PRC DELEGATED CO-COMMISSIONING,BIRLEY HEALTH CENTRE,14153157,"6,197.08 "
Department of Health,NHS Sheffield CCG,30/09/2016,C&M-PMS Prem Notional Rent,PRC DELEGATED CO-COMMISSIONING,BIRLEY HEALTH CENTRE,14153157,"7,310.42 "
Department of Health,NHS Sheffield CCG,30/09/2016,C&M-PMS Prem Rates,PRC DELEGATED CO-COMMISSIONING,BIRLEY HEALTH CENTRE,14153157,"1,180.37 "
Department of Health,NHS Sheffield CCG,30/09/2016,C&M-PMS QOF Aspiration,PRC DELEGATED CO-COMMISSIONING,BIRLEY HEALTH CENTRE,14153157,"8,072.81 "
Department of Health,NHS Sheffield CCG,30/09/2016,Clinical&Medical-Independent Sector,ACUTE COMMISSIONING,BMI HEALTHCARE COLLECTIONS,14107979,"66,833.36 "
Department of Health,NHS Sheffield CCG,30/09/2016,Clinical&Medical-Independent Sector,ACUTE COMMISSIONING,BMI HEALTHCARE COLLECTIONS,14109090,"38,542.14 "
Department of Health,NHS Sheffield CCG,30/09/2016,Clinical&Medical-Independent Sector,ACUTE COMMISSIONING,BMI HEALTHCARE COLLECTIONS,14221313,"66,833.36 "
Department of Health,NHS Sheffield CCG,30/09/2016,Clinical&Medical-Independent Sector,ACUTE COMMISSIONING,BMI HEALTHCARE COLLECTIONS,14387436,"25,242.66 "
Department of Health,NHS Sheffield CCG,30/09/2016,C&M-GMS Cost of Drugs -Prescribing,LOCAL ENHANCED SERVICES,BROOMHILL SURGERY,14361826,"3,112.21 "
Department of Health,NHS Sheffield CCG,30/09/2016,C&M-GMS DES Extended Hours Access,PRC DELEGATED CO-COMMISSIONING,BROOMHILL SURGERY,14361826,"4,450.28 "
Department of Health,NHS Sheffield CCG,30/09/2016,C&M-GMS DES UNPLANNED ADMISSIONS,PRC DELEGATED CO-COMMISSIONING,BROOMHILL SURGERY,14361826,"12,462.10 "
Department of Health,NHS Sheffield CCG,30/09/2016,C&M-GMS Global Sum,PRC DELEGATED CO-COMMISSIONING,BROOMHILL SURGERY,14361826,"56,064.66 "
Department of Health,NHS Sheffield CCG,30/09/2016,C&M-GMS MPIG Correction Factor,PRC DELEGATED CO-COMMISSIONING,BROOMHILL SURGERY,14361826,"1,004.01 "
Department of Health,NHS Sheffield CCG,30/09/2016,C&M-GMS PCO Seniority,PRC DELEGATED CO-COMMISSIONING,BROOMHILL SURGERY,14361826,"5,179.06 "
Department of Health,NHS Sheffield CCG,30/09/2016,C&M-GMS Prem Cost Rent,PRC DELEGATED CO-COMMISSIONING,BROOMHILL SURGERY,14361826,"3,380.00 "
Department of Health,NHS Sheffield CCG,30/09/2016,C&M-GMS Prem Notional Rent,PRC DELEGATED CO-COMMISSIONING,BROOMHILL SURGERY,14361826,"2,541.67 "
Department of Health,NHS Sheffield CCG,30/09/2016,C&M-GMS Prem Rates,PRC DELEGATED CO-COMMISSIONING,BROOMHILL SURGERY,14361826,"1,950.73 "
Department of Health,NHS Sheffield CCG,30/09/2016,C&M-GMS Prem Water Rates,PRC DELEGATED CO-COMMISSIONING,BROOMHILL SURGERY,14361826,609.58 
Department of Health,NHS Sheffield CCG,30/09/2016,C&M-GMS Prof Fees Prescribing,PRC DELEGATED CO-COMMISSIONING,BROOMHILL SURGERY,14361826,170.24 
Department of Health,NHS Sheffield CCG,30/09/2016,C&M-GMS QOF Aspiration,PRC DELEGATED CO-COMMISSIONING,BROOMHILL SURGERY,14361826,"5,942.41 "
Department of Health,NHS Sheffield CCG,30/09/2016,C&M-GMS Cost of Drugs -Prescribing,LOCAL ENHANCED SERVICES,BUCHANAN ROAD SURGERY,14361822,516.14 
Department of Health,NHS Sheffield CCG,30/09/2016,C&M-GMS DES UNPLANNED ADMISSIONS,PRC DELEGATED CO-COMMISSIONING,BUCHANAN ROAD SURGERY,14361822,"6,475.77 "
Department of Health,NHS Sheffield CCG,30/09/2016,C&M-GMS Global Sum,PRC DELEGATED CO-COMMISSIONING,BUCHANAN ROAD SURGERY,14361822,"32,948.47 "
Department of Health,NHS Sheffield CCG,30/09/2016,C&M-GMS MPIG Correction Factor,PRC DELEGATED CO-COMMISSIONING,BUCHANAN ROAD SURGERY,14361822,"2,621.02 "
Department of Health,NHS Sheffield CCG,30/09/2016,C&M-GMS PCO Seniority,PRC DELEGATED CO-COMMISSIONING,BUCHANAN ROAD SURGERY,14361822,"1,079.72 "
Department of Health,NHS Sheffield CCG,30/09/2016,C&M-GMS Prem Notional Rent,PRC DELEGATED CO-COMMISSIONING,BUCHANAN ROAD SURGERY,14361822,"2,595.83 "
Department of Health,NHS Sheffield CCG,30/09/2016,C&M-GMS Prem Rates,PRC DELEGATED CO-COMMISSIONING,BUCHANAN ROAD SURGERY,14361822,944.30 
Department of Health,NHS Sheffield CCG,30/09/2016,C&M-GMS Prem Water Rates,PRC DELEGATED CO-COMMISSIONING,BUCHANAN ROAD SURGERY,14361822,242.00 
Department of Health,NHS Sheffield CCG,30/09/2016,C&M-GMS Prof Fees Prescribing,PRC DELEGATED CO-COMMISSIONING,BUCHANAN ROAD SURGERY,14361822,100.80 
Department of Health,NHS Sheffield CCG,30/09/2016,C&M-GMS QOF Aspiration,PRC DELEGATED CO-COMMISSIONING,BUCHANAN ROAD SURGERY,14361822,"4,134.47 "
Department of Health,NHS Sheffield CCG,30/09/2016,C&M-PMS Contract Value,PRC DELEGATED CO-COMMISSIONING,BURNCROSS SURGERY,14153158,"(110,604.48)"
Department of Health,NHS Sheffield CCG,30/09/2016,C&M-PMS GP Statutory Levy,PRC DELEGATED CO-COMMISSIONING,BURNCROSS SURGERY,14153158,(471.96)
Department of Health,NHS Sheffield CCG,30/09/2016,C&M-PMS Voluntary Levy,PRC DELEGATED CO-COMMISSIONING,BURNCROSS SURGERY,14153158,(78.66)
Department of Health,NHS Sheffield CCG,30/09/2016,C&M-PMS Baseline Adjustment,PRC DELEGATED CO-COMMISSIONING,BURNCROSS SURGERY,14153159,"3,296.83 "
Department of Health,NHS Sheffield CCG,30/09/2016,C&M-PMS Contract Value,PRC DELEGATED CO-COMMISSIONING,BURNCROSS SURGERY,14153159,"224,811.93 "
Department of Health,NHS Sheffield CCG,30/09/2016,C&M-PMS DES Minor Surgery,PRC DELEGATED CO-COMMISSIONING,BURNCROSS SURGERY,14153159,"7,472.70 "
Department of Health,NHS Sheffield CCG,30/09/2016,C&M-PMS DES UNPLANNED ADMISSIONS,PRC DELEGATED CO-COMMISSIONING,BURNCROSS SURGERY,14153159,"20,932.87 "
Department of Health,NHS Sheffield CCG,30/09/2016,C&M-PMS PCO Seniority,PRC DELEGATED CO-COMMISSIONING,BURNCROSS SURGERY,14153159,"4,729.69 "
Department of Health,NHS Sheffield CCG,30/09/2016,C&M-PMS Prem Notional Rent,PRC DELEGATED CO-COMMISSIONING,BURNCROSS SURGERY,14153159,"14,058.33 "
Department of Health,NHS Sheffield CCG,30/09/2016,C&M-PMS Prem Rates,PRC DELEGATED CO-COMMISSIONING,BURNCROSS SURGERY,14153159,"2,124.67 "
Department of Health,NHS Sheffield CCG,30/09/2016,C&M-PMS QOF Aspiration,PRC DELEGATED CO-COMMISSIONING,BURNCROSS SURGERY,14153159,"14,166.16 "
Department of Health,NHS Sheffield CCG,30/09/2016,C&M-PMS Contract Value,PRC DELEGATED CO-COMMISSIONING,BURNGREAVE SURGERY,14153160,"(48,407.91)"
Department of Health,NHS Sheffield CCG,30/09/2016,C&M-PMS GP Statutory Levy,PRC DELEGATED CO-COMMISSIONING,BURNGREAVE SURGERY,14153160,(194.07)
Department of Health,NHS Sheffield CCG,30/09/2016,C&M-PMS Out of Hours Opt Outs,PRC DELEGATED CO-COMMISSIONING,BURNGREAVE SURGERY,14153160,(96.43)
Department of Health,NHS Sheffield CCG,30/09/2016,C&M-PMS Voluntary Levy,PRC DELEGATED CO-COMMISSIONING,BURNGREAVE SURGERY,14153160,(32.35)
Department of Health,NHS Sheffield CCG,30/09/2016,C&M-PMS Baseline Adjustment,PRC DELEGATED CO-COMMISSIONING,BURNGREAVE SURGERY,14153161,"2,706.25 "
Department of Health,NHS Sheffield CCG,30/09/2016,C&M-PMS Contract Value,PRC DELEGATED CO-COMMISSIONING,BURNGREAVE SURGERY,14153161,"99,359.11 "
Department of Health,NHS Sheffield CCG,30/09/2016,C&M-PMS DES Minor Surgery,PRC DELEGATED CO-COMMISSIONING,BURNGREAVE SURGERY,14153161,"3,072.78 "
Department of Health,NHS Sheffield CCG,30/09/2016,C&M-PMS DES UNPLANNED ADMISSIONS,PRC DELEGATED CO-COMMISSIONING,BURNGREAVE SURGERY,14153161,"8,605.10 "
Department of Health,NHS Sheffield CCG,30/09/2016,C&M-PMS Out of Hours Opt Outs,PRC DELEGATED CO-COMMISSIONING,BURNGREAVE SURGERY,14153161,"(2,394.78)"
Department of Health,NHS Sheffield CCG,30/09/2016,C&M-PMS PCO Seniority,PRC DELEGATED CO-COMMISSIONING,BURNGREAVE SURGERY,14153161,"2,062.79 "
Department of Health,NHS Sheffield CCG,30/09/2016,C&M-PMS Prem Notional Rent,PRC DELEGATED CO-COMMISSIONING,BURNGREAVE SURGERY,14153161,"5,916.67 "
Department of Health,NHS Sheffield CCG,30/09/2016,C&M-PMS Prem Rates,PRC DELEGATED CO-COMMISSIONING,BURNGREAVE SURGERY,14153161,"2,217.07 "
Department of Health,NHS Sheffield CCG,30/09/2016,C&M-PMS QOF Aspiration,PRC DELEGATED CO-COMMISSIONING,BURNGREAVE SURGERY,14153161,"4,652.74 "
Department of Health,NHS Sheffield CCG,30/09/2016,C&M-PMS Baseline Adjustment,PRC DELEGATED CO-COMMISSIONING,CARRFIELD MEDICAL CENTRE,14153163,"1,374.83 "
Department of Health,NHS Sheffield CCG,30/09/2016,C&M-PMS Contract Value,PRC DELEGATED CO-COMMISSIONING,CARRFIELD MEDICAL CENTRE,14153163,"19,402.44 "
Department of Health,NHS Sheffield CCG,30/09/2016,C&M-PMS DES Minor Surgery,PRC DELEGATED CO-COMMISSIONING,CARRFIELD MEDICAL CENTRE,14153163,579.03 
Department of Health,NHS Sheffield CCG,30/09/2016,C&M-PMS DES UNPLANNED ADMISSIONS,PRC DELEGATED CO-COMMISSIONING,CARRFIELD MEDICAL CENTRE,14153163,"1,621.27 "
Department of Health,NHS Sheffield CCG,30/09/2016,C&M-PMS Out of Hours Opt Outs,PRC DELEGATED CO-COMMISSIONING,CARRFIELD MEDICAL CENTRE,14153163,(449.17)
Department of Health,NHS Sheffield CCG,30/09/2016,C&M-PMS Prem Notional Rent,PRC DELEGATED CO-COMMISSIONING,CARRFIELD MEDICAL CENTRE,14153163,"2,034.17 "
Department of Health,NHS Sheffield CCG,30/09/2016,C&M-PMS Prem Rates,PRC DELEGATED CO-COMMISSIONING,CARRFIELD MEDICAL CENTRE,14153163,358.16 
Department of Health,NHS Sheffield CCG,30/09/2016,C&M-PMS QOF Aspiration,PRC DELEGATED CO-COMMISSIONING,CARRFIELD MEDICAL CENTRE,14153163,"1,066.85 "
Department of Health,NHS Sheffield CCG,30/09/2016,C&M-GMS Cost of Drugs -Prescribing,LOCAL ENHANCED SERVICES,CARTERKNOWLE & DORE MEDICAL PRACTICE,14382070,"1,755.55 "
Department of Health,NHS Sheffield CCG,30/09/2016,C&M-GMS DES Extended Hours Access,PRC DELEGATED CO-COMMISSIONING,CARTERKNOWLE & DORE MEDICAL PRACTICE,14382070,"5,904.25 "
Department of Health,NHS Sheffield CCG,30/09/2016,C&M-GMS DES Learn Dsblty Hlth Chk,PRC DELEGATED CO-COMMISSIONING,CARTERKNOWLE & DORE MEDICAL PRACTICE,14382070,"4,872.00 "
Department of Health,NHS Sheffield CCG,30/09/2016,C&M-GMS DES UNPLANNED ADMISSIONS,PRC DELEGATED CO-COMMISSIONING,CARTERKNOWLE & DORE MEDICAL PRACTICE,14382070,"16,537.22 "
Department of Health,NHS Sheffield CCG,30/09/2016,C&M-GMS Global Sum,PRC DELEGATED CO-COMMISSIONING,CARTERKNOWLE & DORE MEDICAL PRACTICE,14382070,"75,579.69 "
Department of Health,NHS Sheffield CCG,30/09/2016,C&M-GMS MPIG Correction Factor,PRC DELEGATED CO-COMMISSIONING,CARTERKNOWLE & DORE MEDICAL PRACTICE,14382070,"2,989.17 "
Department of Health,NHS Sheffield CCG,30/09/2016,C&M-GMS PCO Seniority,PRC DELEGATED CO-COMMISSIONING,CARTERKNOWLE & DORE MEDICAL PRACTICE,14382070,"3,652.96 "
Department of Health,NHS Sheffield CCG,30/09/2016,C&M-GMS Prem Notional Rent,PRC DELEGATED CO-COMMISSIONING,CARTERKNOWLE & DORE MEDICAL PRACTICE,14382070,"7,538.34 "
Department of Health,NHS Sheffield CCG,30/09/2016,C&M-GMS Prof Fees Prescribing,PRC DELEGATED CO-COMMISSIONING,CARTERKNOWLE & DORE MEDICAL PRACTICE,14382070,235.20 
Department of Health,NHS Sheffield CCG,30/09/2016,C&M-GMS QOF Aspiration,PRC DELEGATED CO-COMMISSIONING,CARTERKNOWLE & DORE MEDICAL PRACTICE,14382070,"8,761.41 "
Department of Health,NHS Sheffield CCG,30/09/2016,C&M-GMS Cost of Drugs -Prescribing,LOCAL ENHANCED SERVICES,CHARNOCK HEALTH PRIMARY CARE CENTRE,14361828,634.58 
Department of Health,NHS Sheffield CCG,30/09/2016,C&M-GMS DES Extended Hours Access,PRC DELEGATED CO-COMMISSIONING,CHARNOCK HEALTH PRIMARY CARE CENTRE,14361828,"2,468.10 "
Department of Health,NHS Sheffield CCG,30/09/2016,C&M-GMS DES UNPLANNED ADMISSIONS,PRC DELEGATED CO-COMMISSIONING,CHARNOCK HEALTH PRIMARY CARE CENTRE,14361828,"6,912.01 "
Department of Health,NHS Sheffield CCG,30/09/2016,C&M-GMS Global Sum,PRC DELEGATED CO-COMMISSIONING,CHARNOCK HEALTH PRIMARY CARE CENTRE,14361828,"35,458.19 "
Department of Health,NHS Sheffield CCG,30/09/2016,C&M-GMS MPIG Correction Factor,PRC DELEGATED CO-COMMISSIONING,CHARNOCK HEALTH PRIMARY CARE CENTRE,14361828,826.50 
Department of Health,NHS Sheffield CCG,30/09/2016,C&M-GMS PCO Seniority,PRC DELEGATED CO-COMMISSIONING,CHARNOCK HEALTH PRIMARY CARE CENTRE,14361828,"2,244.12 "
Department of Health,NHS Sheffield CCG,30/09/2016,C&M-GMS Prem Notional Rent,PRC DELEGATED CO-COMMISSIONING,CHARNOCK HEALTH PRIMARY CARE CENTRE,14361828,305.00 
Department of Health,NHS Sheffield CCG,30/09/2016,C&M-GMS Prof Fees Prescribing,PRC DELEGATED CO-COMMISSIONING,CHARNOCK HEALTH PRIMARY CARE CENTRE,14361828,64.96 
Department of Health,NHS Sheffield CCG,30/09/2016,C&M-GMS QOF Aspiration,PRC DELEGATED CO-COMMISSIONING,CHARNOCK HEALTH PRIMARY CARE CENTRE,14361828,"4,240.44 "
Department of Health,NHS Sheffield CCG,30/09/2016,Hcare Srv Rec Fdtn Trust-Contract Baseline,ACUTE COMMISSIONING,CHESTERFIELD ROYAL HOSPITAL NHS FOUNDATION TRUST,14109170,"38,120.90 "
Department of Health,NHS Sheffield CCG,30/09/2016,Hcare Srv Rec Fdtn Trust-Contract Baseline,ACUTE COMMISSIONING,CHESTERFIELD ROYAL HOSPITAL NHS FOUNDATION TRUST,14396302,"232,297.00 "
Department of Health,NHS Sheffield CCG,30/09/2016,Clinical&Medical-Independent Sector,ACUTE COMMISSIONING,CLAREMONT HOSPITAL,14107965,"(86,209.00)"
Department of Health,NHS Sheffield CCG,30/09/2016,Clinical&Medical-Independent Sector,ACUTE COMMISSIONING,CLAREMONT HOSPITAL,14221266,"85,569.00 "
Department of Health,NHS Sheffield CCG,30/09/2016,C&M-GMS Prm On-going Rntl Vctd Prm,PRC DELEGATED CO-COMMISSIONING,COMMUNITY HEALTH PARTNERSHIPS LTD,14221304,"29,435.45 "
Department of Health,NHS Sheffield CCG,30/09/2016,Service Charge,RECHARGES NHS PROPERTY SERVICES LTD,COMMUNITY HEALTH PARTNERSHIPS LTD,14221304,"78,797.63 "
Department of Health,NHS Sheffield CCG,30/09/2016,C&M-GMS Prm On-going Rntl Vctd Prm,PRC DELEGATED CO-COMMISSIONING,COMMUNITY HEALTH PARTNERSHIPS LTD,14371970,"32,904.41 "
Department of Health,NHS Sheffield CCG,30/09/2016,Service Charge,RECHARGES NHS PROPERTY SERVICES LTD,COMMUNITY HEALTH PARTNERSHIPS LTD,14371970,"98,708.77 "
Department of Health,NHS Sheffield CCG,30/09/2016,Cont Care-Funded Nursing Care Allow,FUNDED NURSING CARE,COUNTRY COURT CARE LTD,14134861,"29,999.87 "
Department of Health,NHS Sheffield CCG,30/09/2016,C&M-GMS Cost of Drugs -Prescribing,LOCAL ENHANCED SERVICES,CROOKES PRACTICE,14361834,405.26 
Department of Health,NHS Sheffield CCG,30/09/2016,C&M-GMS DES Extended Hours Access,PRC DELEGATED CO-COMMISSIONING,CROOKES PRACTICE,14361834,"3,627.10 "
Department of Health,NHS Sheffield CCG,30/09/2016,C&M-GMS DES UNPLANNED ADMISSIONS,PRC DELEGATED CO-COMMISSIONING,CROOKES PRACTICE,14361834,"10,159.87 "
Department of Health,NHS Sheffield CCG,30/09/2016,C&M-GMS Global Sum,PRC DELEGATED CO-COMMISSIONING,CROOKES PRACTICE,14361834,"42,778.44 "
Department of Health,NHS Sheffield CCG,30/09/2016,C&M-GMS MPIG Correction Factor,PRC DELEGATED CO-COMMISSIONING,CROOKES PRACTICE,14361834,"3,091.85 "
Department of Health,NHS Sheffield CCG,30/09/2016,C&M-GMS PCO Seniority,PRC DELEGATED CO-COMMISSIONING,CROOKES PRACTICE,14361834,"2,211.88 "
Department of Health,NHS Sheffield CCG,30/09/2016,C&M-GMS Prem Notional Rent,PRC DELEGATED CO-COMMISSIONING,CROOKES PRACTICE,14361834,"3,752.42 "
Department of Health,NHS Sheffield CCG,30/09/2016,C&M-GMS Prem Rates,PRC DELEGATED CO-COMMISSIONING,CROOKES PRACTICE,14361834,"1,615.25 "
Department of Health,NHS Sheffield CCG,30/09/2016,C&M-GMS Prem Water Rates,PRC DELEGATED CO-COMMISSIONING,CROOKES PRACTICE,14361834,358.94 
Department of Health,NHS Sheffield CCG,30/09/2016,C&M-GMS Prof Fees Prescribing,PRC DELEGATED CO-COMMISSIONING,CROOKES PRACTICE,14361834,71.68 
Department of Health,NHS Sheffield CCG,30/09/2016,C&M-GMS QOF Aspiration,PRC DELEGATED CO-COMMISSIONING,CROOKES PRACTICE,14361834,"4,263.95 "
Department of Health,NHS Sheffield CCG,30/09/2016,C&M-PMS Contract Value,PRC DELEGATED CO-COMMISSIONING,DEEPCAR MEDICAL CENTRE,14153164,"(33,509.60)"
Department of Health,NHS Sheffield CCG,30/09/2016,C&M-PMS GP Statutory Levy,PRC DELEGATED CO-COMMISSIONING,DEEPCAR MEDICAL CENTRE,14153164,(152.34)
Department of Health,NHS Sheffield CCG,30/09/2016,C&M-PMS Out of Hours Opt Outs,PRC DELEGATED CO-COMMISSIONING,DEEPCAR MEDICAL CENTRE,14153164,(87.29)
Department of Health,NHS Sheffield CCG,30/09/2016,C&M-PMS Voluntary Levy,PRC DELEGATED CO-COMMISSIONING,DEEPCAR MEDICAL CENTRE,14153164,(25.39)
Department of Health,NHS Sheffield CCG,30/09/2016,C&M-PMS Baseline Adjustment,PRC DELEGATED CO-COMMISSIONING,DEEPCAR MEDICAL CENTRE,14153165,612.25 
Department of Health,NHS Sheffield CCG,30/09/2016,C&M-PMS Contract Value,PRC DELEGATED CO-COMMISSIONING,DEEPCAR MEDICAL CENTRE,14153165,"70,815.01 "
Department of Health,NHS Sheffield CCG,30/09/2016,C&M-PMS DES Minor Surgery,PRC DELEGATED CO-COMMISSIONING,DEEPCAR MEDICAL CENTRE,14153165,"2,412.05 "
Department of Health,NHS Sheffield CCG,30/09/2016,C&M-PMS Out of Hours Opt Outs,PRC DELEGATED CO-COMMISSIONING,DEEPCAR MEDICAL CENTRE,14153165,"(1,742.78)"
Department of Health,NHS Sheffield CCG,30/09/2016,C&M-PMS PCO Seniority,PRC DELEGATED CO-COMMISSIONING,DEEPCAR MEDICAL CENTRE,14153165,"1,595.46 "
Department of Health,NHS Sheffield CCG,30/09/2016,C&M-PMS Prem Healthcentre Rent,PRC DELEGATED CO-COMMISSIONING,DEEPCAR MEDICAL CENTRE,14153165,"26,323.25 "
Department of Health,NHS Sheffield CCG,30/09/2016,C&M-PMS QOF Aspiration,PRC DELEGATED CO-COMMISSIONING,DEEPCAR MEDICAL CENTRE,14153165,"4,038.41 "
Department of Health,NHS Sheffield CCG,30/09/2016,C&M-GMS Global Sum,PRC DELEGATED CO-COMMISSIONING,DEVONSHIRE GREEN MEDICAL CENTRE,14361839,"40,816.79 "
Department of Health,NHS Sheffield CCG,30/09/2016,C&M-GMS MPIG Correction Factor,PRC DELEGATED CO-COMMISSIONING,DEVONSHIRE GREEN MEDICAL CENTRE,14361839,"6,462.40 "
Department of Health,NHS Sheffield CCG,30/09/2016,C&M-GMS PCO Seniority,PRC DELEGATED CO-COMMISSIONING,DEVONSHIRE GREEN MEDICAL CENTRE,14361839,"2,839.59 "
Department of Health,NHS Sheffield CCG,30/09/2016,C&M-GMS Prem Notional Rent,PRC DELEGATED CO-COMMISSIONING,DEVONSHIRE GREEN MEDICAL CENTRE,14361839,"5,987.50 "
Department of Health,NHS Sheffield CCG,30/09/2016,C&M-GMS Prem Rates,PRC DELEGATED CO-COMMISSIONING,DEVONSHIRE GREEN MEDICAL CENTRE,14361839,363.00 
Department of Health,NHS Sheffield CCG,30/09/2016,C&M-GMS QOF Aspiration,PRC DELEGATED CO-COMMISSIONING,DEVONSHIRE GREEN MEDICAL CENTRE,14361839,"4,722.03 "
Department of Health,NHS Sheffield CCG,30/09/2016,Hcare Srv Rec Fdtn Trust-Contract Baseline,ACUTE COMMISSIONING,DONCASTER AND BASSETLAW HOSPITALS NHS FOUNDATION TRUST,14107936,"28,477.00 "
Department of Health,NHS Sheffield CCG,30/09/2016,C&M-PMS Contract Value,PRC DELEGATED CO-COMMISSIONING,DOVERCOURT SURGERY,14153166,"(63,529.08)"
Department of Health,NHS Sheffield CCG,30/09/2016,C&M-PMS GP Statutory Levy,PRC DELEGATED CO-COMMISSIONING,DOVERCOURT SURGERY,14153166,(239.67)
Department of Health,NHS Sheffield CCG,30/09/2016,C&M-PMS Out of Hours Opt Outs,PRC DELEGATED CO-COMMISSIONING,DOVERCOURT SURGERY,14153166,(272.23)
Department of Health,NHS Sheffield CCG,30/09/2016,C&M-PMS Voluntary Levy,PRC DELEGATED CO-COMMISSIONING,DOVERCOURT SURGERY,14153166,(39.96)
Department of Health,NHS Sheffield CCG,30/09/2016,C&M-PMS Baseline Adjustment,PRC DELEGATED CO-COMMISSIONING,DOVERCOURT SURGERY,14172020,"7,232.08 "
Department of Health,NHS Sheffield CCG,30/09/2016,C&M-PMS Contract Value,PRC DELEGATED CO-COMMISSIONING,DOVERCOURT SURGERY,14172020,"129,870.93 "
Department of Health,NHS Sheffield CCG,30/09/2016,C&M-PMS DES Learn Dsblty Hlth Chk,PRC DELEGATED CO-COMMISSIONING,DOVERCOURT SURGERY,14172020,812.00 
Department of Health,NHS Sheffield CCG,30/09/2016,C&M-PMS DES Minor Surgery,PRC DELEGATED CO-COMMISSIONING,DOVERCOURT SURGERY,14172020,"2,374.52 "
Department of Health,NHS Sheffield CCG,30/09/2016,C&M-PMS DES UNPLANNED ADMISSIONS,PRC DELEGATED CO-COMMISSIONING,DOVERCOURT SURGERY,14172020,"6,650.00 "
Department of Health,NHS Sheffield CCG,30/09/2016,C&M-PMS Out of Hours Opt Outs,PRC DELEGATED CO-COMMISSIONING,DOVERCOURT SURGERY,14172020,"(2,994.08)"
Department of Health,NHS Sheffield CCG,30/09/2016,C&M-PMS PCO Locum Adop/Pat/Mat,PRC DELEGATED CO-COMMISSIONING,DOVERCOURT SURGERY,14172020,"15,382.43 "
Department of Health,NHS Sheffield CCG,30/09/2016,C&M-PMS PCO Seniority,PRC DELEGATED CO-COMMISSIONING,DOVERCOURT SURGERY,14172020,"2,063.41 "
Department of Health,NHS Sheffield CCG,30/09/2016,C&M-PMS Prem Actual Rent,PRC DELEGATED CO-COMMISSIONING,DOVERCOURT SURGERY,14172020,"12,400.00 "
Department of Health,NHS Sheffield CCG,30/09/2016,C&M-PMS Prem Notional Rent,PRC DELEGATED CO-COMMISSIONING,DOVERCOURT SURGERY,14172020,"1,708.34 "
Department of Health,NHS Sheffield CCG,30/09/2016,C&M-PMS QOF Aspiration,PRC DELEGATED CO-COMMISSIONING,DOVERCOURT SURGERY,14172020,"7,095.60 "
Department of Health,NHS Sheffield CCG,30/09/2016,C&M-PMS Contract Value,PRC DELEGATED CO-COMMISSIONING,DR MEHROTRA & PARTNER,14153167,"(26,258.92)"
Department of Health,NHS Sheffield CCG,30/09/2016,C&M-PMS GP Statutory Levy,PRC DELEGATED CO-COMMISSIONING,DR MEHROTRA & PARTNER,14153167,(102.06)
Department of Health,NHS Sheffield CCG,30/09/2016,C&M-PMS Voluntary Levy,PRC DELEGATED CO-COMMISSIONING,DR MEHROTRA & PARTNER,14153167,(17.01)
Department of Health,NHS Sheffield CCG,30/09/2016,C&M-PMS Baseline Adjustment,PRC DELEGATED CO-COMMISSIONING,DR MEHROTRA & PARTNER,14153168,"1,771.75 "
Department of Health,NHS Sheffield CCG,30/09/2016,C&M-PMS Contract Value,PRC DELEGATED CO-COMMISSIONING,DR MEHROTRA & PARTNER,14153168,"52,161.06 "
Department of Health,NHS Sheffield CCG,30/09/2016,C&M-PMS DES Minor Surgery,PRC DELEGATED CO-COMMISSIONING,DR MEHROTRA & PARTNER,14153168,"1,615.95 "
Department of Health,NHS Sheffield CCG,30/09/2016,C&M-PMS DES UNPLANNED ADMISSIONS,PRC DELEGATED CO-COMMISSIONING,DR MEHROTRA & PARTNER,14153168,"4,525.99 "
Department of Health,NHS Sheffield CCG,30/09/2016,C&M-PMS PCO Seniority,PRC DELEGATED CO-COMMISSIONING,DR MEHROTRA & PARTNER,14153168,673.10 
Department of Health,NHS Sheffield CCG,30/09/2016,C&M-PMS Prem Notional Rent,PRC DELEGATED CO-COMMISSIONING,DR MEHROTRA & PARTNER,14153168,"5,157.33 "
Department of Health,NHS Sheffield CCG,30/09/2016,C&M-PMS Prem Rates,PRC DELEGATED CO-COMMISSIONING,DR MEHROTRA & PARTNER,14153168,"1,234.20 "
Department of Health,NHS Sheffield CCG,30/09/2016,C&M-PMS QOF Aspiration,PRC DELEGATED CO-COMMISSIONING,DR MEHROTRA & PARTNER,14153168,"3,080.24 "
Department of Health,NHS Sheffield CCG,30/09/2016,C&M-PMS Contract Value,PRC DELEGATED CO-COMMISSIONING,DR MILNER & PARTNERS,14153169,"(70,473.34)"
Department of Health,NHS Sheffield CCG,30/09/2016,C&M-PMS GP Statutory Levy,PRC DELEGATED CO-COMMISSIONING,DR MILNER & PARTNERS,14153169,(314.52)
Department of Health,NHS Sheffield CCG,30/09/2016,C&M-PMS Out of Hours Opt Outs,PRC DELEGATED CO-COMMISSIONING,DR MILNER & PARTNERS,14153169,(58.45)
Department of Health,NHS Sheffield CCG,30/09/2016,C&M-PMS Voluntary Levy,PRC DELEGATED CO-COMMISSIONING,DR MILNER & PARTNERS,14153169,(52.42)
Department of Health,NHS Sheffield CCG,30/09/2016,ME - PMS TPS Added Years Adj EEs,PRC DELEGATED CO-COMMISSIONING,DR MILNER & PARTNERS,14153169,(253.13)
Department of Health,NHS Sheffield CCG,30/09/2016,C&M-PMS Baseline Adjustment,PRC DELEGATED CO-COMMISSIONING,DR MILNER & PARTNERS,14153170,"9,162.92 "
Department of Health,NHS Sheffield CCG,30/09/2016,C&M-PMS Contract Value,PRC DELEGATED CO-COMMISSIONING,DR MILNER & PARTNERS,14153170,"138,096.36 "
Department of Health,NHS Sheffield CCG,30/09/2016,C&M-PMS DES Learn Dsblty Hlth Chk,PRC DELEGATED CO-COMMISSIONING,DR MILNER & PARTNERS,14153170,580.00 
Department of Health,NHS Sheffield CCG,30/09/2016,C&M-PMS DES Minor Surgery,PRC DELEGATED CO-COMMISSIONING,DR MILNER & PARTNERS,14153170,"4,979.90 "
Department of Health,NHS Sheffield CCG,30/09/2016,C&M-PMS DES UNPLANNED ADMISSIONS,PRC DELEGATED CO-COMMISSIONING,DR MILNER & PARTNERS,14153170,"13,946.38 "
Department of Health,NHS Sheffield CCG,30/09/2016,C&M-PMS Out of Hours Opt Outs,PRC DELEGATED CO-COMMISSIONING,DR MILNER & PARTNERS,14153170,"(3,256.58)"
Department of Health,NHS Sheffield CCG,30/09/2016,C&M-PMS PCO Seniority,PRC DELEGATED CO-COMMISSIONING,DR MILNER & PARTNERS,14153170,"1,928.11 "
Department of Health,NHS Sheffield CCG,30/09/2016,C&M-PMS Prem Actual Rent,PRC DELEGATED CO-COMMISSIONING,DR MILNER & PARTNERS,14153170,"11,382.00 "
Department of Health,NHS Sheffield CCG,30/09/2016,C&M-PMS Prem Notional Rent,PRC DELEGATED CO-COMMISSIONING,DR MILNER & PARTNERS,14153170,"4,221.58 "
Department of Health,NHS Sheffield CCG,30/09/2016,C&M-PMS Prem Rates,PRC DELEGATED CO-COMMISSIONING,DR MILNER & PARTNERS,14153170,"7,139.33 "
Department of Health,NHS Sheffield CCG,30/09/2016,C&M-PMS Prem Water Rates,PRC DELEGATED CO-COMMISSIONING,DR MILNER & PARTNERS,14153170,141.64 
Department of Health,NHS Sheffield CCG,30/09/2016,C&M-PMS QOF Aspiration,PRC DELEGATED CO-COMMISSIONING,DR MILNER & PARTNERS,14153170,"6,732.84 "
Department of Health,NHS Sheffield CCG,30/09/2016,C&M-GMS Cost of Drugs -Prescribing,LOCAL ENHANCED SERVICES,DUKE MEDICAL CENTRE,14361847,"1,217.13 "
Department of Health,NHS Sheffield CCG,30/09/2016,C&M-GMS DES Extended Hours Access,PRC DELEGATED CO-COMMISSIONING,DUKE MEDICAL CENTRE,14361847,"3,100.80 "
Department of Health,NHS Sheffield CCG,30/09/2016,C&M-GMS DES Learn Dsblty Hlth Chk,PRC DELEGATED CO-COMMISSIONING,DUKE MEDICAL CENTRE,14361847,232.00 
Department of Health,NHS Sheffield CCG,30/09/2016,C&M-GMS DES UNPLANNED ADMISSIONS,PRC DELEGATED CO-COMMISSIONING,DUKE MEDICAL CENTRE,14361847,"13,621.93 "
Department of Health,NHS Sheffield CCG,30/09/2016,C&M-GMS Global Sum,PRC DELEGATED CO-COMMISSIONING,DUKE MEDICAL CENTRE,14361847,"48,738.48 "
Department of Health,NHS Sheffield CCG,30/09/2016,C&M-GMS MPIG Correction Factor,PRC DELEGATED CO-COMMISSIONING,DUKE MEDICAL CENTRE,14361847,"1,225.02 "
Department of Health,NHS Sheffield CCG,30/09/2016,C&M-GMS PCO Seniority,PRC DELEGATED CO-COMMISSIONING,DUKE MEDICAL CENTRE,14361847,"1,878.88 "
Department of Health,NHS Sheffield CCG,30/09/2016,C&M-GMS Prem Notional Rent,PRC DELEGATED CO-COMMISSIONING,DUKE MEDICAL CENTRE,14361847,"5,666.67 "
Department of Health,NHS Sheffield CCG,30/09/2016,C&M-GMS Prem Rates,PRC DELEGATED CO-COMMISSIONING,DUKE MEDICAL CENTRE,14361847,834.90 
Department of Health,NHS Sheffield CCG,30/09/2016,C&M-GMS Prem Water Rates,PRC DELEGATED CO-COMMISSIONING,DUKE MEDICAL CENTRE,14361847,268.50 
Department of Health,NHS Sheffield CCG,30/09/2016,C&M-GMS Prof Fees Prescribing,PRC DELEGATED CO-COMMISSIONING,DUKE MEDICAL CENTRE,14361847,297.92 
Department of Health,NHS Sheffield CCG,30/09/2016,C&M-GMS QOF Aspiration,PRC DELEGATED CO-COMMISSIONING,DUKE MEDICAL CENTRE,14361847,"4,848.26 "
Department of Health,NHS Sheffield CCG,30/09/2016,C&M-PMS Baseline Adjustment,PRC DELEGATED CO-COMMISSIONING,DUNNINC ROAD SURGERY,14153172,"2,437.42 "
Department of Health,NHS Sheffield CCG,30/09/2016,C&M-PMS Contract Value,PRC DELEGATED CO-COMMISSIONING,DUNNINC ROAD SURGERY,14153172,"46,117.41 "
Department of Health,NHS Sheffield CCG,30/09/2016,C&M-PMS DES Minor Surgery,PRC DELEGATED CO-COMMISSIONING,DUNNINC ROAD SURGERY,14153172,"1,458.25 "
Department of Health,NHS Sheffield CCG,30/09/2016,C&M-PMS PCO Seniority,PRC DELEGATED CO-COMMISSIONING,DUNNINC ROAD SURGERY,14153172,"2,390.81 "
Department of Health,NHS Sheffield CCG,30/09/2016,C&M-PMS Prem Notional Rent,PRC DELEGATED CO-COMMISSIONING,DUNNINC ROAD SURGERY,14153172,"1,604.17 "
Department of Health,NHS Sheffield CCG,30/09/2016,C&M-PMS QOF Aspiration,PRC DELEGATED CO-COMMISSIONING,DUNNINC ROAD SURGERY,14153172,"2,305.31 "
Department of Health,NHS Sheffield CCG,30/09/2016,C&M-PMS Contract Value,PRC DELEGATED CO-COMMISSIONING,DYKES HALL MEDICAL CENTRE,14153173,"(60,916.03)"
Department of Health,NHS Sheffield CCG,30/09/2016,C&M-PMS GP Statutory Levy,PRC DELEGATED CO-COMMISSIONING,DYKES HALL MEDICAL CENTRE,14153173,(290.97)
Department of Health,NHS Sheffield CCG,30/09/2016,C&M-PMS Out of Hours Opt Outs,PRC DELEGATED CO-COMMISSIONING,DYKES HALL MEDICAL CENTRE,14153173,(138.99)
Department of Health,NHS Sheffield CCG,30/09/2016,C&M-PMS Voluntary Levy,PRC DELEGATED CO-COMMISSIONING,DYKES HALL MEDICAL CENTRE,14153173,(48.50)
Department of Health,NHS Sheffield CCG,30/09/2016,ME - PMS TPS Added Years Adj EEs,PRC DELEGATED CO-COMMISSIONING,DYKES HALL MEDICAL CENTRE,14153173,(273.42)
Department of Health,NHS Sheffield CCG,30/09/2016,C&M-PMS Baseline Adjustment,PRC DELEGATED CO-COMMISSIONING,DYKES HALL MEDICAL CENTRE,14153174,399.42 
Department of Health,NHS Sheffield CCG,30/09/2016,C&M-PMS Contract Value,PRC DELEGATED CO-COMMISSIONING,DYKES HALL MEDICAL CENTRE,14153174,"129,145.03 "
Department of Health,NHS Sheffield CCG,30/09/2016,C&M-PMS DES Minor Surgery,PRC DELEGATED CO-COMMISSIONING,DYKES HALL MEDICAL CENTRE,14153174,"4,607.03 "
Department of Health,NHS Sheffield CCG,30/09/2016,C&M-PMS DES UNPLANNED ADMISSIONS,PRC DELEGATED CO-COMMISSIONING,DYKES HALL MEDICAL CENTRE,14153174,"12,901.00 "
Department of Health,NHS Sheffield CCG,30/09/2016,C&M-PMS Out of Hours Opt Outs,PRC DELEGATED CO-COMMISSIONING,DYKES HALL MEDICAL CENTRE,14153174,"(3,202.13)"
Department of Health,NHS Sheffield CCG,30/09/2016,C&M-PMS PCO Seniority,PRC DELEGATED CO-COMMISSIONING,DYKES HALL MEDICAL CENTRE,14153174,"2,726.84 "
Department of Health,NHS Sheffield CCG,30/09/2016,C&M-PMS Prem Notional Rent,PRC DELEGATED CO-COMMISSIONING,DYKES HALL MEDICAL CENTRE,14153174,"5,411.91 "
Department of Health,NHS Sheffield CCG,30/09/2016,C&M-PMS QOF Aspiration,PRC DELEGATED CO-COMMISSIONING,DYKES HALL MEDICAL CENTRE,14153174,"8,049.09 "
Department of Health,NHS Sheffield CCG,30/09/2016,C&M-PMS Contract Value,PRC DELEGATED CO-COMMISSIONING,EAST BANK MEDICAL CENTRE,14153175,"(41,466.23)"
Department of Health,NHS Sheffield CCG,30/09/2016,C&M-PMS GP Statutory Levy,PRC DELEGATED CO-COMMISSIONING,EAST BANK MEDICAL CENTRE,14153175,(162.93)
Department of Health,NHS Sheffield CCG,30/09/2016,C&M-PMS Out of Hours Opt Outs,PRC DELEGATED CO-COMMISSIONING,EAST BANK MEDICAL CENTRE,14153175,(46.98)
Department of Health,NHS Sheffield CCG,30/09/2016,C&M-PMS Voluntary Levy,PRC DELEGATED CO-COMMISSIONING,EAST BANK MEDICAL CENTRE,14153175,(27.16)
Department of Health,NHS Sheffield CCG,30/09/2016,C&M-PMS Baseline Adjustment,PRC DELEGATED CO-COMMISSIONING,EAST BANK MEDICAL CENTRE,14153176,"3,176.25 "
Department of Health,NHS Sheffield CCG,30/09/2016,C&M-PMS Contract Value,PRC DELEGATED CO-COMMISSIONING,EAST BANK MEDICAL CENTRE,14153176,"83,885.23 "
Department of Health,NHS Sheffield CCG,30/09/2016,C&M-PMS DES Minor Surgery,PRC DELEGATED CO-COMMISSIONING,EAST BANK MEDICAL CENTRE,14153176,"2,579.73 "
Department of Health,NHS Sheffield CCG,30/09/2016,C&M-PMS Out of Hours Opt Outs,PRC DELEGATED CO-COMMISSIONING,EAST BANK MEDICAL CENTRE,14153176,"(2,036.66)"
Department of Health,NHS Sheffield CCG,30/09/2016,C&M-PMS PCO Seniority,PRC DELEGATED CO-COMMISSIONING,EAST BANK MEDICAL CENTRE,14153176,906.61 
Department of Health,NHS Sheffield CCG,30/09/2016,C&M-PMS Prem Notional Rent,PRC DELEGATED CO-COMMISSIONING,EAST BANK MEDICAL CENTRE,14153176,"10,466.67 "
Department of Health,NHS Sheffield CCG,30/09/2016,C&M-PMS Prem Rates,PRC DELEGATED CO-COMMISSIONING,EAST BANK MEDICAL CENTRE,14153176,"5,467.00 "
Department of Health,NHS Sheffield CCG,30/09/2016,C&M-PMS QOF Aspiration,PRC DELEGATED CO-COMMISSIONING,EAST BANK MEDICAL CENTRE,14153176,"4,604.77 "
Department of Health,NHS Sheffield CCG,30/09/2016,C&M-GMS Cost of Drugs -Prescribing,LOCAL ENHANCED SERVICES,ECCLESFIELD GROUP PRACTICE,14361843,"1,655.91 "
Department of Health,NHS Sheffield CCG,30/09/2016,C&M-GMS DES Extended Hours Access,PRC DELEGATED CO-COMMISSIONING,ECCLESFIELD GROUP PRACTICE,14361843,"3,704.05 "
Department of Health,NHS Sheffield CCG,30/09/2016,C&M-GMS DES Learn Dsblty Hlth Chk,PRC DELEGATED CO-COMMISSIONING,ECCLESFIELD GROUP PRACTICE,14361843,"1,508.00 "
Department of Health,NHS Sheffield CCG,30/09/2016,C&M-GMS DES UNPLANNED ADMISSIONS,PRC DELEGATED CO-COMMISSIONING,ECCLESFIELD GROUP PRACTICE,14361843,"10,375.33 "
Department of Health,NHS Sheffield CCG,30/09/2016,C&M-GMS Global Sum,PRC DELEGATED CO-COMMISSIONING,ECCLESFIELD GROUP PRACTICE,14361843,"58,074.36 "
Department of Health,NHS Sheffield CCG,30/09/2016,C&M-GMS PCO Seniority,PRC DELEGATED CO-COMMISSIONING,ECCLESFIELD GROUP PRACTICE,14361843,"3,894.41 "
Department of Health,NHS Sheffield CCG,30/09/2016,C&M-GMS Prem Notional Rent,PRC DELEGATED CO-COMMISSIONING,ECCLESFIELD GROUP PRACTICE,14361843,"6,545.00 "
Department of Health,NHS Sheffield CCG,30/09/2016,C&M-GMS Prem Rates,PRC DELEGATED CO-COMMISSIONING,ECCLESFIELD GROUP PRACTICE,14361843,"2,723.18 "
Department of Health,NHS Sheffield CCG,30/09/2016,C&M-GMS Prem Water Rates,PRC DELEGATED CO-COMMISSIONING,ECCLESFIELD GROUP PRACTICE,14361843,493.89 
Department of Health,NHS Sheffield CCG,30/09/2016,C&M-GMS Prof Fees Prescribing,PRC DELEGATED CO-COMMISSIONING,ECCLESFIELD GROUP PRACTICE,14361843,197.12 
Department of Health,NHS Sheffield CCG,30/09/2016,C&M-GMS QOF Aspiration,PRC DELEGATED CO-COMMISSIONING,ECCLESFIELD GROUP PRACTICE,14361843,"9,456.61 "
Department of Health,NHS Sheffield CCG,30/09/2016,C&M-GMS Cost of Drugs -Prescribing,LOCAL ENHANCED SERVICES,ELM LANE SURGERY,14361845,"1,035.39 "
Department of Health,NHS Sheffield CCG,30/09/2016,C&M-GMS Global Sum,PRC DELEGATED CO-COMMISSIONING,ELM LANE SURGERY,14361845,"35,397.45 "
Department of Health,NHS Sheffield CCG,30/09/2016,C&M-GMS MPIG Correction Factor,PRC DELEGATED CO-COMMISSIONING,ELM LANE SURGERY,14361845,"1,677.05 "
Department of Health,NHS Sheffield CCG,30/09/2016,C&M-GMS PCO Locum Adop/Pat/Mat,PRC DELEGATED CO-COMMISSIONING,ELM LANE SURGERY,14361845,"6,936.72 "
Department of Health,NHS Sheffield CCG,30/09/2016,C&M-GMS PCO Seniority,PRC DELEGATED CO-COMMISSIONING,ELM LANE SURGERY,14361845,"1,624.16 "
Department of Health,NHS Sheffield CCG,30/09/2016,C&M-GMS Prem Notional Rent,PRC DELEGATED CO-COMMISSIONING,ELM LANE SURGERY,14361845,"4,951.92 "
Department of Health,NHS Sheffield CCG,30/09/2016,C&M-GMS Prof Fees Prescribing,PRC DELEGATED CO-COMMISSIONING,ELM LANE SURGERY,14361845,147.84 
Department of Health,NHS Sheffield CCG,30/09/2016,C&M-GMS QOF Aspiration,PRC DELEGATED CO-COMMISSIONING,ELM LANE SURGERY,14361845,"4,440.21 "
Department of Health,NHS Sheffield CCG,30/09/2016,Cont Care-Physical Disab (<65),CHC ADULT FULLY FUNDED,FAIRWINDS HEALTH CARE LTD,14119248,"52,845.09 "
Department of Health,NHS Sheffield CCG,30/09/2016,C&M-PMS Baseline Adjustment,PRC DELEGATED CO-COMMISSIONING,FALKLAND HOUSE,14153180,"2,511.83 "
Department of Health,NHS Sheffield CCG,30/09/2016,C&M-PMS Contract Value,PRC DELEGATED CO-COMMISSIONING,FALKLAND HOUSE,14153180,"46,685.65 "
Department of Health,NHS Sheffield CCG,30/09/2016,C&M-PMS DES Minor Surgery,PRC DELEGATED CO-COMMISSIONING,FALKLAND HOUSE,14153180,"1,888.60 "
Department of Health,NHS Sheffield CCG,30/09/2016,C&M-PMS DES UNPLANNED ADMISSIONS,PRC DELEGATED CO-COMMISSIONING,FALKLAND HOUSE,14153180,"5,288.08 "
Department of Health,NHS Sheffield CCG,30/09/2016,C&M-PMS Out of Hours Opt Outs,PRC DELEGATED CO-COMMISSIONING,FALKLAND HOUSE,14153180,(960.75)
Department of Health,NHS Sheffield CCG,30/09/2016,C&M-PMS PCO Seniority,PRC DELEGATED CO-COMMISSIONING,FALKLAND HOUSE,14153180,"2,048.21 "
Department of Health,NHS Sheffield CCG,30/09/2016,C&M-PMS Prem Notional Rent,PRC DELEGATED CO-COMMISSIONING,FALKLAND HOUSE,14153180,"1,802.08 "
Department of Health,NHS Sheffield CCG,30/09/2016,C&M-PMS Prem Rates,PRC DELEGATED CO-COMMISSIONING,FALKLAND HOUSE,14153180,665.50 
Department of Health,NHS Sheffield CCG,30/09/2016,C&M-PMS QOF Aspiration,PRC DELEGATED CO-COMMISSIONING,FALKLAND HOUSE,14153180,"2,350.86 "
Department of Health,NHS Sheffield CCG,30/09/2016,C&M-GMS Cost of Drugs -Prescribing,LOCAL ENHANCED SERVICES,FAR LANE MEDICAL CENTRE,14361854,528.39 
Department of Health,NHS Sheffield CCG,30/09/2016,C&M-GMS DES Learn Dsblty Hlth Chk,PRC DELEGATED CO-COMMISSIONING,FAR LANE MEDICAL CENTRE,14361854,116.00 
Department of Health,NHS Sheffield CCG,30/09/2016,C&M-GMS Global Sum,PRC DELEGATED CO-COMMISSIONING,FAR LANE MEDICAL CENTRE,14361854,"51,800.25 "
Department of Health,NHS Sheffield CCG,30/09/2016,C&M-GMS PCO Seniority,PRC DELEGATED CO-COMMISSIONING,FAR LANE MEDICAL CENTRE,14361854,"5,574.69 "
Department of Health,NHS Sheffield CCG,30/09/2016,C&M-GMS Prem Notional Rent,PRC DELEGATED CO-COMMISSIONING,FAR LANE MEDICAL CENTRE,14361854,"3,637.50 "
Department of Health,NHS Sheffield CCG,30/09/2016,C&M-GMS Prem Rates,PRC DELEGATED CO-COMMISSIONING,FAR LANE MEDICAL CENTRE,14361854,"1,016.40 "
Department of Health,NHS Sheffield CCG,30/09/2016,C&M-GMS Prem Water Rates,PRC DELEGATED CO-COMMISSIONING,FAR LANE MEDICAL CENTRE,14361854,111.48 
Department of Health,NHS Sheffield CCG,30/09/2016,C&M-GMS Prof Fees Prescribing,PRC DELEGATED CO-COMMISSIONING,FAR LANE MEDICAL CENTRE,14361854,145.60 
Department of Health,NHS Sheffield CCG,30/09/2016,C&M-GMS QOF Aspiration,PRC DELEGATED CO-COMMISSIONING,FAR LANE MEDICAL CENTRE,14361854,"5,648.61 "
Department of Health,NHS Sheffield CCG,30/09/2016,C&M-PMS Contract Value,PRC DELEGATED CO-COMMISSIONING,FIRTH PARK SURGERY,14153177,"(61,811.66)"
Department of Health,NHS Sheffield CCG,30/09/2016,C&M-PMS GP Statutory Levy,PRC DELEGATED CO-COMMISSIONING,FIRTH PARK SURGERY,14153177,(289.86)
Department of Health,NHS Sheffield CCG,30/09/2016,C&M-PMS Out of Hours Opt Outs,PRC DELEGATED CO-COMMISSIONING,FIRTH PARK SURGERY,14153177,(56.41)
Department of Health,NHS Sheffield CCG,30/09/2016,C&M-PMS Voluntary Levy,PRC DELEGATED CO-COMMISSIONING,FIRTH PARK SURGERY,14153177,(48.31)
Department of Health,NHS Sheffield CCG,30/09/2016,ME - PMS TPS Added Years Adj EEs,PRC DELEGATED CO-COMMISSIONING,FIRTH PARK SURGERY,14153177,(80.54)
Department of Health,NHS Sheffield CCG,30/09/2016,C&M-PMS Contract Value,PRC DELEGATED CO-COMMISSIONING,FIRTH PARK SURGERY,14153178,"129,196.34 "
Department of Health,NHS Sheffield CCG,30/09/2016,C&M-PMS DES Minor Surgery,PRC DELEGATED CO-COMMISSIONING,FIRTH PARK SURGERY,14153178,"4,589.45 "
Department of Health,NHS Sheffield CCG,30/09/2016,C&M-PMS Out of Hours Opt Outs,PRC DELEGATED CO-COMMISSIONING,FIRTH PARK SURGERY,14153178,"(3,365.21)"
Department of Health,NHS Sheffield CCG,30/09/2016,C&M-PMS PCO Seniority,PRC DELEGATED CO-COMMISSIONING,FIRTH PARK SURGERY,14153178,"3,813.22 "
Department of Health,NHS Sheffield CCG,30/09/2016,C&M-PMS Prem Notional Rent,PRC DELEGATED CO-COMMISSIONING,FIRTH PARK SURGERY,14153178,"4,416.67 "
Department of Health,NHS Sheffield CCG,30/09/2016,C&M-PMS Prem Rates,PRC DELEGATED CO-COMMISSIONING,FIRTH PARK SURGERY,14153178,"1,718.79 "
Department of Health,NHS Sheffield CCG,30/09/2016,C&M-PMS QOF Aspiration,PRC DELEGATED CO-COMMISSIONING,FIRTH PARK SURGERY,14153178,"7,439.23 "
Department of Health,NHS Sheffield CCG,30/09/2016,C&M-GMS Cost of Drugs -Prescribing,LOCAL ENHANCED SERVICES,FLOWERS HEALTH CENTRE,14361926,628.69 
Department of Health,NHS Sheffield CCG,30/09/2016,C&M-GMS DES UNPLANNED ADMISSIONS,PRC DELEGATED CO-COMMISSIONING,FLOWERS HEALTH CENTRE,14361926,"6,157.90 "
Department of Health,NHS Sheffield CCG,30/09/2016,C&M-GMS Global Sum,PRC DELEGATED CO-COMMISSIONING,FLOWERS HEALTH CENTRE,14361926,"30,421.24 "
Department of Health,NHS Sheffield CCG,30/09/2016,C&M-GMS MPIG Correction Factor,PRC DELEGATED CO-COMMISSIONING,FLOWERS HEALTH CENTRE,14361926,"2,952.62 "
Department of Health,NHS Sheffield CCG,30/09/2016,C&M-GMS PCO Seniority,PRC DELEGATED CO-COMMISSIONING,FLOWERS HEALTH CENTRE,14361926,"2,647.45 "
Department of Health,NHS Sheffield CCG,30/09/2016,C&M-GMS Prem Healthcentre Rent,PRC DELEGATED CO-COMMISSIONING,FLOWERS HEALTH CENTRE,14361926,"32,996.55 "
Department of Health,NHS Sheffield CCG,30/09/2016,C&M-GMS Prof Fees Prescribing,PRC DELEGATED CO-COMMISSIONING,FLOWERS HEALTH CENTRE,14361926,118.72 
Department of Health,NHS Sheffield CCG,30/09/2016,C&M-GMS QOF Aspiration,PRC DELEGATED CO-COMMISSIONING,FLOWERS HEALTH CENTRE,14361926,"3,922.75 "
Department of Health,NHS Sheffield CCG,30/09/2016,C&M-PMS Contract Value,PRC DELEGATED CO-COMMISSIONING,FOXHILL MEDICAL CENTRE SHEFFIELD,14153232,"(46,888.58)"
Department of Health,NHS Sheffield CCG,30/09/2016,C&M-PMS GP Statutory Levy,PRC DELEGATED CO-COMMISSIONING,FOXHILL MEDICAL CENTRE SHEFFIELD,14153232,(187.20)
Department of Health,NHS Sheffield CCG,30/09/2016,C&M-PMS Out of Hours Opt Outs,PRC DELEGATED CO-COMMISSIONING,FOXHILL MEDICAL CENTRE SHEFFIELD,14153232,(35.67)
Department of Health,NHS Sheffield CCG,30/09/2016,C&M-PMS Prem Healthcentre Rent,PRC DELEGATED CO-COMMISSIONING,FOXHILL MEDICAL CENTRE SHEFFIELD,14153232,"(2,261.89)"
Department of Health,NHS Sheffield CCG,30/09/2016,C&M-PMS Voluntary Levy,PRC DELEGATED CO-COMMISSIONING,FOXHILL MEDICAL CENTRE SHEFFIELD,14153232,(31.20)
Department of Health,NHS Sheffield CCG,30/09/2016,C&M-PMS Baseline Adjustment,PRC DELEGATED CO-COMMISSIONING,FOXHILL MEDICAL CENTRE SHEFFIELD,14153233,"2,902.50 "
Department of Health,NHS Sheffield CCG,30/09/2016,C&M-PMS Contract Value,PRC DELEGATED CO-COMMISSIONING,FOXHILL MEDICAL CENTRE SHEFFIELD,14153233,"94,179.77 "
Department of Health,NHS Sheffield CCG,30/09/2016,C&M-PMS DES Learn Dsblty Hlth Chk,PRC DELEGATED CO-COMMISSIONING,FOXHILL MEDICAL CENTRE SHEFFIELD,14153233,"1,276.00 "
Department of Health,NHS Sheffield CCG,30/09/2016,C&M-PMS DES Minor Surgery,PRC DELEGATED CO-COMMISSIONING,FOXHILL MEDICAL CENTRE SHEFFIELD,14153233,"2,964.00 "
Department of Health,NHS Sheffield CCG,30/09/2016,C&M-PMS DES UNPLANNED ADMISSIONS,PRC DELEGATED CO-COMMISSIONING,FOXHILL MEDICAL CENTRE SHEFFIELD,14153233,"8,299.20 "
Department of Health,NHS Sheffield CCG,30/09/2016,C&M-PMS Out of Hours Opt Outs,PRC DELEGATED CO-COMMISSIONING,FOXHILL MEDICAL CENTRE SHEFFIELD,14153233,"(2,273.33)"
Department of Health,NHS Sheffield CCG,30/09/2016,C&M-PMS PCO Seniority,PRC DELEGATED CO-COMMISSIONING,FOXHILL MEDICAL CENTRE SHEFFIELD,14153233,"3,103.82 "
Department of Health,NHS Sheffield CCG,30/09/2016,C&M-PMS Prem Healthcentre Rent,PRC DELEGATED CO-COMMISSIONING,FOXHILL MEDICAL CENTRE SHEFFIELD,14153233,"48,172.21 "
Department of Health,NHS Sheffield CCG,30/09/2016,C&M-PMS QOF Aspiration,PRC DELEGATED CO-COMMISSIONING,FOXHILL MEDICAL CENTRE SHEFFIELD,14153233,"5,186.12 "
Department of Health,NHS Sheffield CCG,30/09/2016,C&M-PMS Contract Value,PRC DELEGATED CO-COMMISSIONING,GLEADLESS MEDICAL CENTRE,14153181,"(61,039.11)"
Department of Health,NHS Sheffield CCG,30/09/2016,C&M-PMS GP Statutory Levy,PRC DELEGATED CO-COMMISSIONING,GLEADLESS MEDICAL CENTRE,14153181,(261.24)
Department of Health,NHS Sheffield CCG,30/09/2016,C&M-PMS Out of Hours Opt Outs,PRC DELEGATED CO-COMMISSIONING,GLEADLESS MEDICAL CENTRE,14153181,(48.31)
Department of Health,NHS Sheffield CCG,30/09/2016,C&M-PMS Voluntary Levy,PRC DELEGATED CO-COMMISSIONING,GLEADLESS MEDICAL CENTRE,14153181,(43.54)
Department of Health,NHS Sheffield CCG,30/09/2016,C&M-PMS Baseline Adjustment,PRC DELEGATED CO-COMMISSIONING,GLEADLESS MEDICAL CENTRE,14153182,"2,522.83 "
Department of Health,NHS Sheffield CCG,30/09/2016,C&M-PMS Contract Value,PRC DELEGATED CO-COMMISSIONING,GLEADLESS MEDICAL CENTRE,14153182,"124,303.37 "
Department of Health,NHS Sheffield CCG,30/09/2016,C&M-PMS DES UNPLANNED ADMISSIONS,PRC DELEGATED CO-COMMISSIONING,GLEADLESS MEDICAL CENTRE,14153182,"11,582.97 "
Department of Health,NHS Sheffield CCG,30/09/2016,C&M-PMS Out of Hours Opt Outs,PRC DELEGATED CO-COMMISSIONING,GLEADLESS MEDICAL CENTRE,14153182,"(3,042.06)"
Department of Health,NHS Sheffield CCG,30/09/2016,C&M-PMS PCO Seniority,PRC DELEGATED CO-COMMISSIONING,GLEADLESS MEDICAL CENTRE,14153182,"5,770.30 "
Department of Health,NHS Sheffield CCG,30/09/2016,C&M-PMS Prem Notional Rent,PRC DELEGATED CO-COMMISSIONING,GLEADLESS MEDICAL CENTRE,14153182,"6,750.00 "
Department of Health,NHS Sheffield CCG,30/09/2016,C&M-PMS Prem Rates,PRC DELEGATED CO-COMMISSIONING,GLEADLESS MEDICAL CENTRE,14153182,"1,118.25 "
Department of Health,NHS Sheffield CCG,30/09/2016,C&M-PMS QOF Aspiration,PRC DELEGATED CO-COMMISSIONING,GLEADLESS MEDICAL CENTRE,14153182,"7,431.65 "
Department of Health,NHS Sheffield CCG,30/09/2016,C&M-GMS Cost of Drugs -Prescribing,LOCAL ENHANCED SERVICES,GRENOSIDE SURGERY,14361860,"2,065.62 "
Department of Health,NHS Sheffield CCG,30/09/2016,C&M-GMS DES Extended Hours Access,PRC DELEGATED CO-COMMISSIONING,GRENOSIDE SURGERY,14361860,"3,451.35 "
Department of Health,NHS Sheffield CCG,30/09/2016,C&M-GMS DES UNPLANNED ADMISSIONS,PRC DELEGATED CO-COMMISSIONING,GRENOSIDE SURGERY,14361860,"9,669.10 "
Department of Health,NHS Sheffield CCG,30/09/2016,C&M-GMS Global Sum,PRC DELEGATED CO-COMMISSIONING,GRENOSIDE SURGERY,14361860,"50,166.47 "
Department of Health,NHS Sheffield CCG,30/09/2016,C&M-GMS PCO Seniority,PRC DELEGATED CO-COMMISSIONING,GRENOSIDE SURGERY,14361860,"3,949.39 "
Department of Health,NHS Sheffield CCG,30/09/2016,C&M-GMS Prem Notional Rent,PRC DELEGATED CO-COMMISSIONING,GRENOSIDE SURGERY,14361860,"8,150.17 "
Department of Health,NHS Sheffield CCG,30/09/2016,C&M-GMS Prem Rates,PRC DELEGATED CO-COMMISSIONING,GRENOSIDE SURGERY,14361860,"3,723.35 "
Department of Health,NHS Sheffield CCG,30/09/2016,C&M-GMS Prem Water Rates,PRC DELEGATED CO-COMMISSIONING,GRENOSIDE SURGERY,14361860,141.22 
Department of Health,NHS Sheffield CCG,30/09/2016,C&M-GMS Prof Fees Prescribing,PRC DELEGATED CO-COMMISSIONING,GRENOSIDE SURGERY,14361860,116.48 
Department of Health,NHS Sheffield CCG,30/09/2016,C&M-GMS QOF Aspiration,PRC DELEGATED CO-COMMISSIONING,GRENOSIDE SURGERY,14361860,"5,640.25 "
Department of Health,NHS Sheffield CCG,30/09/2016,C&M-GMS Cost of Drugs -Prescribing,LOCAL ENHANCED SERVICES,GREYSTONES MEDICAL CENTRE,14361862,263.22 
Department of Health,NHS Sheffield CCG,30/09/2016,C&M-GMS DES Extended Hours Access,PRC DELEGATED CO-COMMISSIONING,GREYSTONES MEDICAL CENTRE,14361862,"1,718.55 "
Department of Health,NHS Sheffield CCG,30/09/2016,C&M-GMS DES UNPLANNED ADMISSIONS,PRC DELEGATED CO-COMMISSIONING,GREYSTONES MEDICAL CENTRE,14361862,"4,814.60 "
Department of Health,NHS Sheffield CCG,30/09/2016,C&M-GMS Global Sum,PRC DELEGATED CO-COMMISSIONING,GREYSTONES MEDICAL CENTRE,14361862,"17,696.32 "
Department of Health,NHS Sheffield CCG,30/09/2016,C&M-GMS MPIG Correction Factor,PRC DELEGATED CO-COMMISSIONING,GREYSTONES MEDICAL CENTRE,14361862,"2,208.92 "
Department of Health,NHS Sheffield CCG,30/09/2016,C&M-GMS PCO Seniority,PRC DELEGATED CO-COMMISSIONING,GREYSTONES MEDICAL CENTRE,14361862,611.82 
Department of Health,NHS Sheffield CCG,30/09/2016,C&M-GMS Prem Notional Rent,PRC DELEGATED CO-COMMISSIONING,GREYSTONES MEDICAL CENTRE,14361862,"2,729.17 "
Department of Health,NHS Sheffield CCG,30/09/2016,C&M-GMS Prem Rates,PRC DELEGATED CO-COMMISSIONING,GREYSTONES MEDICAL CENTRE,14361862,849.04 
Department of Health,NHS Sheffield CCG,30/09/2016,C&M-GMS Prof Fees Prescribing,PRC DELEGATED CO-COMMISSIONING,GREYSTONES MEDICAL CENTRE,14361862,56.00 
Department of Health,NHS Sheffield CCG,30/09/2016,C&M-GMS QOF Aspiration,PRC DELEGATED CO-COMMISSIONING,GREYSTONES MEDICAL CENTRE,14361862,"1,888.68 "
Department of Health,NHS Sheffield CCG,30/09/2016,C&M-PMS Contract Value,PRC DELEGATED CO-COMMISSIONING,HACKENTHORPE MEDICAL CENTRE,14153184,"(43,660.67)"
Department of Health,NHS Sheffield CCG,30/09/2016,C&M-PMS GP Statutory Levy,PRC DELEGATED CO-COMMISSIONING,HACKENTHORPE MEDICAL CENTRE,14153184,(200.40)
Department of Health,NHS Sheffield CCG,30/09/2016,C&M-PMS Out of Hours Opt Outs,PRC DELEGATED CO-COMMISSIONING,HACKENTHORPE MEDICAL CENTRE,14153184,(46.41)
Department of Health,NHS Sheffield CCG,30/09/2016,C&M-PMS Voluntary Levy,PRC DELEGATED CO-COMMISSIONING,HACKENTHORPE MEDICAL CENTRE,14153184,(33.40)
Department of Health,NHS Sheffield CCG,30/09/2016,ME - PMS TPS Added Years Adj EEs,PRC DELEGATED CO-COMMISSIONING,HACKENTHORPE MEDICAL CENTRE,14153184,(457.50)
Department of Health,NHS Sheffield CCG,30/09/2016,C&M-PMS Baseline Adjustment,PRC DELEGATED CO-COMMISSIONING,HACKENTHORPE MEDICAL CENTRE,14153185,"4,211.17 "
Department of Health,NHS Sheffield CCG,30/09/2016,C&M-PMS Contract Value,PRC DELEGATED CO-COMMISSIONING,HACKENTHORPE MEDICAL CENTRE,14153185,"87,342.07 "
Department of Health,NHS Sheffield CCG,30/09/2016,C&M-PMS DES Learn Dsblty Hlth Chk,PRC DELEGATED CO-COMMISSIONING,HACKENTHORPE MEDICAL CENTRE,14153185,232.00 
Department of Health,NHS Sheffield CCG,30/09/2016,C&M-PMS DES Minor Surgery,PRC DELEGATED CO-COMMISSIONING,HACKENTHORPE MEDICAL CENTRE,14153185,"3,173.00 "
Department of Health,NHS Sheffield CCG,30/09/2016,C&M-PMS DES UNPLANNED ADMISSIONS,PRC DELEGATED CO-COMMISSIONING,HACKENTHORPE MEDICAL CENTRE,14153185,"8,885.73 "
Department of Health,NHS Sheffield CCG,30/09/2016,C&M-PMS Out of Hours Opt Outs,PRC DELEGATED CO-COMMISSIONING,HACKENTHORPE MEDICAL CENTRE,14153185,"(2,094.67)"
Department of Health,NHS Sheffield CCG,30/09/2016,C&M-PMS PCO Locum Adop/Pat/Mat,PRC DELEGATED CO-COMMISSIONING,HACKENTHORPE MEDICAL CENTRE,14153185,"4,757.08 "
Department of Health,NHS Sheffield CCG,30/09/2016,C&M-PMS PCO Seniority,PRC DELEGATED CO-COMMISSIONING,HACKENTHORPE MEDICAL CENTRE,14153185,"4,515.48 "
Department of Health,NHS Sheffield CCG,30/09/2016,C&M-PMS Prem Notional Rent,PRC DELEGATED CO-COMMISSIONING,HACKENTHORPE MEDICAL CENTRE,14153185,"4,981.25 "
Department of Health,NHS Sheffield CCG,30/09/2016,C&M-PMS Prem Rates,PRC DELEGATED CO-COMMISSIONING,HACKENTHORPE MEDICAL CENTRE,14153185,847.00 
Department of Health,NHS Sheffield CCG,30/09/2016,C&M-PMS QOF Aspiration,PRC DELEGATED CO-COMMISSIONING,HACKENTHORPE MEDICAL CENTRE,14153185,"6,104.43 "
Department of Health,NHS Sheffield CCG,30/09/2016,C&M-GMS Cost of Drugs -Prescribing,LOCAL ENHANCED SERVICES,HANDSWORTH MEDICAL PRACTICE SHEFFIELD,14361858,"1,152.91 "
Department of Health,NHS Sheffield CCG,30/09/2016,C&M-GMS DES Extended Hours Access,PRC DELEGATED CO-COMMISSIONING,HANDSWORTH MEDICAL PRACTICE SHEFFIELD,14361858,"4,593.25 "
Department of Health,NHS Sheffield CCG,30/09/2016,C&M-GMS DES Minor Surgery,PRC DELEGATED CO-COMMISSIONING,HANDSWORTH MEDICAL PRACTICE SHEFFIELD,14361858,"1,240.00 "
Department of Health,NHS Sheffield CCG,30/09/2016,C&M-GMS DES UNPLANNED ADMISSIONS,PRC DELEGATED CO-COMMISSIONING,HANDSWORTH MEDICAL PRACTICE SHEFFIELD,14361858,"12,866.42 "
Department of Health,NHS Sheffield CCG,30/09/2016,C&M-GMS Global Sum,PRC DELEGATED CO-COMMISSIONING,HANDSWORTH MEDICAL PRACTICE SHEFFIELD,14361858,"66,932.01 "
Department of Health,NHS Sheffield CCG,30/09/2016,C&M-GMS PCO Seniority,PRC DELEGATED CO-COMMISSIONING,HANDSWORTH MEDICAL PRACTICE SHEFFIELD,14361858,"1,861.53 "
Department of Health,NHS Sheffield CCG,30/09/2016,C&M-GMS Prem Notional Rent,PRC DELEGATED CO-COMMISSIONING,HANDSWORTH MEDICAL PRACTICE SHEFFIELD,14361858,"3,321.67 "
Department of Health,NHS Sheffield CCG,30/09/2016,C&M-GMS Prem Water Rates,PRC DELEGATED CO-COMMISSIONING,HANDSWORTH MEDICAL PRACTICE SHEFFIELD,14361858,280.22 
Department of Health,NHS Sheffield CCG,30/09/2016,C&M-GMS Prof Fees Prescribing,PRC DELEGATED CO-COMMISSIONING,HANDSWORTH MEDICAL PRACTICE SHEFFIELD,14361858,241.92 
Department of Health,NHS Sheffield CCG,30/09/2016,C&M-GMS QOF Aspiration,PRC DELEGATED CO-COMMISSIONING,HANDSWORTH MEDICAL PRACTICE SHEFFIELD,14361858,"7,268.73 "
Department of Health,NHS Sheffield CCG,30/09/2016,C&M-PMS Baseline Adjustment,PRC DELEGATED CO-COMMISSIONING,HAROLD STREET MEDICAL CENTRE,14172021,"1,810.25 "
Department of Health,NHS Sheffield CCG,30/09/2016,C&M-PMS Contract Value,PRC DELEGATED CO-COMMISSIONING,HAROLD STREET MEDICAL CENTRE,14172021,"19,828.45 "
Department of Health,NHS Sheffield CCG,30/09/2016,C&M-PMS DES Minor Surgery,PRC DELEGATED CO-COMMISSIONING,HAROLD STREET MEDICAL CENTRE,14172021,633.65 
Department of Health,NHS Sheffield CCG,30/09/2016,C&M-PMS DES UNPLANNED ADMISSIONS,PRC DELEGATED CO-COMMISSIONING,HAROLD STREET MEDICAL CENTRE,14172021,"1,774.22 "
Department of Health,NHS Sheffield CCG,30/09/2016,C&M-PMS Out of Hours Opt Outs,PRC DELEGATED CO-COMMISSIONING,HAROLD STREET MEDICAL CENTRE,14172021,(440.28)
Department of Health,NHS Sheffield CCG,30/09/2016,C&M-PMS PCO Seniority,PRC DELEGATED CO-COMMISSIONING,HAROLD STREET MEDICAL CENTRE,14172021,"1,511.02 "
Department of Health,NHS Sheffield CCG,30/09/2016,C&M-PMS Prem Notional Rent,PRC DELEGATED CO-COMMISSIONING,HAROLD STREET MEDICAL CENTRE,14172021,"2,304.17 "
Department of Health,NHS Sheffield CCG,30/09/2016,C&M-PMS QOF Aspiration,PRC DELEGATED CO-COMMISSIONING,HAROLD STREET MEDICAL CENTRE,14172021,"1,106.23 "
Department of Health,NHS Sheffield CCG,30/09/2016,Cont Care-Foundation Trust,PLANNED CARE,HARROGATE & DISTRICT NHS FOUNDATION NHS TRUST,14090584,"25,537.52 "
Department of Health,NHS Sheffield CCG,30/09/2016,Cont Care-Foundation Trust,PLANNED CARE,HARROGATE & DISTRICT NHS FOUNDATION NHS TRUST,14387362,"28,732.60 "
Department of Health,NHS Sheffield CCG,30/09/2016,C&M-GMS Cost of Drugs -Prescribing,LOCAL ENHANCED SERVICES,HEALTH CARE SURGERY,14361868,641.37 
Department of Health,NHS Sheffield CCG,30/09/2016,C&M-GMS DES Extended Hours Access,PRC DELEGATED CO-COMMISSIONING,HEALTH CARE SURGERY,14361868,"2,314.20 "
Department of Health,NHS Sheffield CCG,30/09/2016,C&M-GMS DES UNPLANNED ADMISSIONS,PRC DELEGATED CO-COMMISSIONING,HEALTH CARE SURGERY,14361868,"6,481.09 "
Department of Health,NHS Sheffield CCG,30/09/2016,C&M-GMS Global Sum,PRC DELEGATED CO-COMMISSIONING,HEALTH CARE SURGERY,14361868,"33,163.37 "
Department of Health,NHS Sheffield CCG,30/09/2016,C&M-GMS MPIG Correction Factor,PRC DELEGATED CO-COMMISSIONING,HEALTH CARE SURGERY,14361868,"1,560.04 "
Department of Health,NHS Sheffield CCG,30/09/2016,C&M-GMS PCO Seniority,PRC DELEGATED CO-COMMISSIONING,HEALTH CARE SURGERY,14361868,"1,794.12 "
Department of Health,NHS Sheffield CCG,30/09/2016,C&M-GMS Prem Notional Rent,PRC DELEGATED CO-COMMISSIONING,HEALTH CARE SURGERY,14361868,"3,862.50 "
Department of Health,NHS Sheffield CCG,30/09/2016,C&M-GMS Prem Rates,PRC DELEGATED CO-COMMISSIONING,HEALTH CARE SURGERY,14361868,"1,356.40 "
Department of Health,NHS Sheffield CCG,30/09/2016,C&M-GMS Prof Fees Prescribing,PRC DELEGATED CO-COMMISSIONING,HEALTH CARE SURGERY,14361868,141.12 
Department of Health,NHS Sheffield CCG,30/09/2016,C&M-GMS QOF Aspiration,PRC DELEGATED CO-COMMISSIONING,HEALTH CARE SURGERY,14361868,"3,988.06 "
Department of Health,NHS Sheffield CCG,30/09/2016,C&M-GMS Cost of Drugs -Prescribing,LOCAL ENHANCED SERVICES,HEELEY GREEN SURGERY,14361864,361.78 
Department of Health,NHS Sheffield CCG,30/09/2016,C&M-GMS DES Extended Hours Access,PRC DELEGATED CO-COMMISSIONING,HEELEY GREEN SURGERY,14361864,"2,608.70 "
Department of Health,NHS Sheffield CCG,30/09/2016,C&M-GMS Global Sum,PRC DELEGATED CO-COMMISSIONING,HEELEY GREEN SURGERY,14361864,"36,222.94 "
Department of Health,NHS Sheffield CCG,30/09/2016,C&M-GMS MPIG Correction Factor,PRC DELEGATED CO-COMMISSIONING,HEELEY GREEN SURGERY,14361864,752.40 
Department of Health,NHS Sheffield CCG,30/09/2016,C&M-GMS PCO Seniority,PRC DELEGATED CO-COMMISSIONING,HEELEY GREEN SURGERY,14361864,"1,221.38 "
Department of Health,NHS Sheffield CCG,30/09/2016,C&M-GMS Prem Notional Rent,PRC DELEGATED CO-COMMISSIONING,HEELEY GREEN SURGERY,14361864,"3,254.17 "
Department of Health,NHS Sheffield CCG,30/09/2016,C&M-GMS Prem Rates,PRC DELEGATED CO-COMMISSIONING,HEELEY GREEN SURGERY,14361864,137.22 
Department of Health,NHS Sheffield CCG,30/09/2016,C&M-GMS Prem Water Rates,PRC DELEGATED CO-COMMISSIONING,HEELEY GREEN SURGERY,14361864,89.34 
Department of Health,NHS Sheffield CCG,30/09/2016,C&M-GMS Prof Fees Prescribing,PRC DELEGATED CO-COMMISSIONING,HEELEY GREEN SURGERY,14361864,82.88 
Department of Health,NHS Sheffield CCG,30/09/2016,C&M-GMS QOF Aspiration,PRC DELEGATED CO-COMMISSIONING,HEELEY GREEN SURGERY,14361864,"4,447.38 "
Department of Health,NHS Sheffield CCG,30/09/2016,C&M-GMS Cost of Drugs -Prescribing,LOCAL ENHANCED SERVICES,HOLLIES MEDICAL CENTRE,14361866,635.19 
Department of Health,NHS Sheffield CCG,30/09/2016,C&M-GMS DES Extended Hours Access,PRC DELEGATED CO-COMMISSIONING,HOLLIES MEDICAL CENTRE,14361866,"3,786.23 "
Department of Health,NHS Sheffield CCG,30/09/2016,C&M-GMS DES UNPLANNED ADMISSIONS,PRC DELEGATED CO-COMMISSIONING,HOLLIES MEDICAL CENTRE,14361866,"10,602.76 "
Department of Health,NHS Sheffield CCG,30/09/2016,C&M-GMS Global Sum,PRC DELEGATED CO-COMMISSIONING,HOLLIES MEDICAL CENTRE,14361866,"45,843.35 "
Department of Health,NHS Sheffield CCG,30/09/2016,C&M-GMS MPIG Correction Factor,PRC DELEGATED CO-COMMISSIONING,HOLLIES MEDICAL CENTRE,14361866,"2,905.46 "
Department of Health,NHS Sheffield CCG,30/09/2016,C&M-GMS PCO Seniority,PRC DELEGATED CO-COMMISSIONING,HOLLIES MEDICAL CENTRE,14361866,"4,514.80 "
Department of Health,NHS Sheffield CCG,30/09/2016,C&M-GMS Prem Notional Rent,PRC DELEGATED CO-COMMISSIONING,HOLLIES MEDICAL CENTRE,14361866,"3,229.17 "
Department of Health,NHS Sheffield CCG,30/09/2016,C&M-GMS Prof Fees Prescribing,PRC DELEGATED CO-COMMISSIONING,HOLLIES MEDICAL CENTRE,14361866,132.16 
Department of Health,NHS Sheffield CCG,30/09/2016,C&M-GMS QOF Aspiration,PRC DELEGATED CO-COMMISSIONING,HOLLIES MEDICAL CENTRE,14361866,"5,955.77 "
Department of Health,NHS Sheffield CCG,30/09/2016,Cont Care-Physical Disab (<65),CHC ADULT FULLY FUNDED,HORIZON CARE HOMES LTD,14117970,"42,984.46 "
Department of Health,NHS Sheffield CCG,30/09/2016,C&M-PMS Contract Value,PRC DELEGATED CO-COMMISSIONING,JAUNTY SPRINGS HEALTH CENTRE,14153186,"(26,624.64)"
Department of Health,NHS Sheffield CCG,30/09/2016,C&M-PMS GP Statutory Levy,PRC DELEGATED CO-COMMISSIONING,JAUNTY SPRINGS HEALTH CENTRE,14153186,(109.95)
Department of Health,NHS Sheffield CCG,30/09/2016,C&M-PMS Out of Hours Opt Outs,PRC DELEGATED CO-COMMISSIONING,JAUNTY SPRINGS HEALTH CENTRE,14153186,(26.88)
Department of Health,NHS Sheffield CCG,30/09/2016,C&M-PMS Voluntary Levy,PRC DELEGATED CO-COMMISSIONING,JAUNTY SPRINGS HEALTH CENTRE,14153186,(18.33)
Department of Health,NHS Sheffield CCG,30/09/2016,C&M-PMS Baseline Adjustment,PRC DELEGATED CO-COMMISSIONING,JAUNTY SPRINGS HEALTH CENTRE,14153187,896.00 
Department of Health,NHS Sheffield CCG,30/09/2016,C&M-PMS Contract Value,PRC DELEGATED CO-COMMISSIONING,JAUNTY SPRINGS HEALTH CENTRE,14153187,"54,395.26 "
Department of Health,NHS Sheffield CCG,30/09/2016,C&M-PMS DES Minor Surgery,PRC DELEGATED CO-COMMISSIONING,JAUNTY SPRINGS HEALTH CENTRE,14153187,"1,740.88 "
Department of Health,NHS Sheffield CCG,30/09/2016,C&M-PMS DES UNPLANNED ADMISSIONS,PRC DELEGATED CO-COMMISSIONING,JAUNTY SPRINGS HEALTH CENTRE,14153187,"4,877.11 "
Department of Health,NHS Sheffield CCG,30/09/2016,C&M-PMS Out of Hours Opt Outs,PRC DELEGATED CO-COMMISSIONING,JAUNTY SPRINGS HEALTH CENTRE,14153187,"(1,332.96)"
Department of Health,NHS Sheffield CCG,30/09/2016,C&M-PMS PCO Seniority,PRC DELEGATED CO-COMMISSIONING,JAUNTY SPRINGS HEALTH CENTRE,14153187,895.74 
Department of Health,NHS Sheffield CCG,30/09/2016,C&M-PMS Prem Notional Rent,PRC DELEGATED CO-COMMISSIONING,JAUNTY SPRINGS HEALTH CENTRE,14153187,"3,208.34 "
Department of Health,NHS Sheffield CCG,30/09/2016,C&M-PMS Prem Rates,PRC DELEGATED CO-COMMISSIONING,JAUNTY SPRINGS HEALTH CENTRE,14153187,"1,230.08 "
Department of Health,NHS Sheffield CCG,30/09/2016,C&M-PMS QOF Aspiration,PRC DELEGATED CO-COMMISSIONING,JAUNTY SPRINGS HEALTH CENTRE,14153187,"3,987.95 "
Department of Health,NHS Sheffield CCG,30/09/2016,C&M-GMS IT Comm Servs -GP Practices,PRIMARY CARE IT,KIER BUSINESS SERVICES LTD,14109180,"118,458.00 "
Department of Health,NHS Sheffield CCG,30/09/2016,FM Computer Contracts,BUSINESS INFORMATICS,KIER BUSINESS SERVICES LTD,14109180,"41,803.20 "
Department of Health,NHS Sheffield CCG,30/09/2016,Hcare Srv Rec NHS Trust-Contract Baseline,ACUTE COMMISSIONING,LEEDS TEACHING HOSPITALS NHS TRUST,14107923,"53,234.57 "
Department of Health,NHS Sheffield CCG,30/09/2016,Cont Care-Funded Nursing Care Allow,FUNDED NURSING CARE,LIFE STYLE CARE (2011) PLC,14208762,"33,325.75 "
Department of Health,NHS Sheffield CCG,30/09/2016,Cont Care-Physical Disab (<65),CHC ADULT FULLY FUNDED,LONGLEY HEALTH CARE LTD,14119080,"102,453.88 "
Department of Health,NHS Sheffield CCG,30/09/2016,Cont Care-Physical Disab (<65),CHC ADULT FULLY FUNDED,LOXLEY HEALTH CARE LTD,14119061,"65,885.12 "
Department of Health,NHS Sheffield CCG,30/09/2016,C&M-PMS Contract Value,PRC DELEGATED CO-COMMISSIONING,MANCHESTER ROAD SURGERY SHEFFIELD,14153190,"(26,939.50)"
Department of Health,NHS Sheffield CCG,30/09/2016,C&M-PMS GP Statutory Levy,PRC DELEGATED CO-COMMISSIONING,MANCHESTER ROAD SURGERY SHEFFIELD,14153190,(138.33)
Department of Health,NHS Sheffield CCG,30/09/2016,C&M-PMS Out of Hours Opt Outs,PRC DELEGATED CO-COMMISSIONING,MANCHESTER ROAD SURGERY SHEFFIELD,14153190,(83.60)
Department of Health,NHS Sheffield CCG,30/09/2016,C&M-PMS Voluntary Levy,PRC DELEGATED CO-COMMISSIONING,MANCHESTER ROAD SURGERY SHEFFIELD,14153190,(23.06)
Department of Health,NHS Sheffield CCG,30/09/2016,C&M-PMS Baseline Adjustment,PRC DELEGATED CO-COMMISSIONING,MANCHESTER ROAD SURGERY SHEFFIELD,14153191,893.25 
Department of Health,NHS Sheffield CCG,30/09/2016,C&M-PMS Contract Value,PRC DELEGATED CO-COMMISSIONING,MANCHESTER ROAD SURGERY SHEFFIELD,14153191,"56,806.44 "
Department of Health,NHS Sheffield CCG,30/09/2016,C&M-PMS DES UNPLANNED ADMISSIONS,PRC DELEGATED CO-COMMISSIONING,MANCHESTER ROAD SURGERY SHEFFIELD,14153191,"6,133.96 "
Department of Health,NHS Sheffield CCG,30/09/2016,C&M-PMS Out of Hours Opt Outs,PRC DELEGATED CO-COMMISSIONING,MANCHESTER ROAD SURGERY SHEFFIELD,14153191,"(1,381.83)"
Department of Health,NHS Sheffield CCG,30/09/2016,C&M-PMS PCO Locum Adop/Pat/Mat,PRC DELEGATED CO-COMMISSIONING,MANCHESTER ROAD SURGERY SHEFFIELD,14153191,"4,526.96 "
Department of Health,NHS Sheffield CCG,30/09/2016,C&M-PMS PCO Seniority,PRC DELEGATED CO-COMMISSIONING,MANCHESTER ROAD SURGERY SHEFFIELD,14153191,"2,238.74 "
Department of Health,NHS Sheffield CCG,30/09/2016,C&M-PMS Prem Cost Rent,PRC DELEGATED CO-COMMISSIONING,MANCHESTER ROAD SURGERY SHEFFIELD,14153191,"3,472.17 "
Department of Health,NHS Sheffield CCG,30/09/2016,C&M-PMS Prem Notional Rent,PRC DELEGATED CO-COMMISSIONING,MANCHESTER ROAD SURGERY SHEFFIELD,14153191,442.91 
Department of Health,NHS Sheffield CCG,30/09/2016,C&M-PMS Prem Rates,PRC DELEGATED CO-COMMISSIONING,MANCHESTER ROAD SURGERY SHEFFIELD,14153191,981.57 
Department of Health,NHS Sheffield CCG,30/09/2016,C&M-PMS Prem Water Rates,PRC DELEGATED CO-COMMISSIONING,MANCHESTER ROAD SURGERY SHEFFIELD,14153191,111.48 
Department of Health,NHS Sheffield CCG,30/09/2016,C&M-PMS QOF Aspiration,PRC DELEGATED CO-COMMISSIONING,MANCHESTER ROAD SURGERY SHEFFIELD,14153191,"3,934.29 "
Department of Health,NHS Sheffield CCG,30/09/2016,C&M-GMS Cost of Drugs -Prescribing,LOCAL ENHANCED SERVICES,MANOR PARK MEDICAL CENTRE SHEFFIELD,14361879,216.02 
Department of Health,NHS Sheffield CCG,30/09/2016,C&M-GMS DES Extended Hours Access,PRC DELEGATED CO-COMMISSIONING,MANOR PARK MEDICAL CENTRE SHEFFIELD,14361879,"2,132.28 "
Department of Health,NHS Sheffield CCG,30/09/2016,C&M-GMS DES UNPLANNED ADMISSIONS,PRC DELEGATED CO-COMMISSIONING,MANOR PARK MEDICAL CENTRE SHEFFIELD,14361879,"5,970.37 "
Department of Health,NHS Sheffield CCG,30/09/2016,C&M-GMS Global Sum,PRC DELEGATED CO-COMMISSIONING,MANOR PARK MEDICAL CENTRE SHEFFIELD,14361879,"31,803.19 "
Department of Health,NHS Sheffield CCG,30/09/2016,C&M-GMS MPIG Correction Factor,PRC DELEGATED CO-COMMISSIONING,MANOR PARK MEDICAL CENTRE SHEFFIELD,14361879,745.59 
Department of Health,NHS Sheffield CCG,30/09/2016,C&M-GMS PCO Seniority,PRC DELEGATED CO-COMMISSIONING,MANOR PARK MEDICAL CENTRE SHEFFIELD,14361879,"1,405.73 "
Department of Health,NHS Sheffield CCG,30/09/2016,C&M-GMS Prem Notional Rent,PRC DELEGATED CO-COMMISSIONING,MANOR PARK MEDICAL CENTRE SHEFFIELD,14361879,"3,050.00 "
Department of Health,NHS Sheffield CCG,30/09/2016,C&M-GMS Prem Rates,PRC DELEGATED CO-COMMISSIONING,MANOR PARK MEDICAL CENTRE SHEFFIELD,14361879,435.60 
Department of Health,NHS Sheffield CCG,30/09/2016,C&M-GMS Prof Fees Prescribing,PRC DELEGATED CO-COMMISSIONING,MANOR PARK MEDICAL CENTRE SHEFFIELD,14361879,85.12 
Department of Health,NHS Sheffield CCG,30/09/2016,C&M-GMS QOF Aspiration,PRC DELEGATED CO-COMMISSIONING,MANOR PARK MEDICAL CENTRE SHEFFIELD,14361879,"4,079.05 "
Department of Health,NHS Sheffield CCG,30/09/2016,C&M-GMS Cost of Drugs -Prescribing,LOCAL ENHANCED SERVICES,MATHEWS PRACTICE,14361876,"1,004.24 "
Department of Health,NHS Sheffield CCG,30/09/2016,C&M-GMS DES Extended Hours Access,PRC DELEGATED CO-COMMISSIONING,MATHEWS PRACTICE,14361876,"4,517.73 "
Department of Health,NHS Sheffield CCG,30/09/2016,C&M-GMS DES UNPLANNED ADMISSIONS,PRC DELEGATED CO-COMMISSIONING,MATHEWS PRACTICE,14361876,"7,561.40 "
Department of Health,NHS Sheffield CCG,30/09/2016,C&M-GMS Global Sum,PRC DELEGATED CO-COMMISSIONING,MATHEWS PRACTICE,14361876,"64,147.67 "
Department of Health,NHS Sheffield CCG,30/09/2016,C&M-GMS MPIG Correction Factor,PRC DELEGATED CO-COMMISSIONING,MATHEWS PRACTICE,14361876,"1,197.92 "
Department of Health,NHS Sheffield CCG,30/09/2016,C&M-GMS PCO Seniority,PRC DELEGATED CO-COMMISSIONING,MATHEWS PRACTICE,14361876,"1,290.04 "
Department of Health,NHS Sheffield CCG,30/09/2016,C&M-GMS Prem Notional Rent,PRC DELEGATED CO-COMMISSIONING,MATHEWS PRACTICE,14361876,"8,470.83 "
Department of Health,NHS Sheffield CCG,30/09/2016,C&M-GMS Prem Rates,PRC DELEGATED CO-COMMISSIONING,MATHEWS PRACTICE,14361876,"1,598.35 "
Department of Health,NHS Sheffield CCG,30/09/2016,C&M-GMS Prof Fees Prescribing,PRC DELEGATED CO-COMMISSIONING,MATHEWS PRACTICE,14361876,257.60 
Department of Health,NHS Sheffield CCG,30/09/2016,C&M-GMS QOF Aspiration,PRC DELEGATED CO-COMMISSIONING,MATHEWS PRACTICE,14361876,"8,872.15 "
Department of Health,NHS Sheffield CCG,30/09/2016,C&M-PMS Contract Value,PRC DELEGATED CO-COMMISSIONING,MEADOWHEAD GROUP PRACTICE,14153188,"(63,698.77)"
Department of Health,NHS Sheffield CCG,30/09/2016,C&M-PMS GP Statutory Levy,PRC DELEGATED CO-COMMISSIONING,MEADOWHEAD GROUP PRACTICE,14153188,(291.57)
Department of Health,NHS Sheffield CCG,30/09/2016,C&M-PMS Out of Hours Opt Outs,PRC DELEGATED CO-COMMISSIONING,MEADOWHEAD GROUP PRACTICE,14153188,(87.95)
Department of Health,NHS Sheffield CCG,30/09/2016,C&M-PMS Voluntary Levy,PRC DELEGATED CO-COMMISSIONING,MEADOWHEAD GROUP PRACTICE,14153188,(48.60)
Department of Health,NHS Sheffield CCG,30/09/2016,C&M-PMS Contract Value,PRC DELEGATED CO-COMMISSIONING,MEADOWHEAD GROUP PRACTICE,14153189,"134,823.39 "
Department of Health,NHS Sheffield CCG,30/09/2016,C&M-PMS DES Minor Surgery,PRC DELEGATED CO-COMMISSIONING,MEADOWHEAD GROUP PRACTICE,14153189,"4,616.53 "
Department of Health,NHS Sheffield CCG,30/09/2016,C&M-PMS DES UNPLANNED ADMISSIONS,PRC DELEGATED CO-COMMISSIONING,MEADOWHEAD GROUP PRACTICE,14153189,"12,927.60 "
Department of Health,NHS Sheffield CCG,30/09/2016,C&M-PMS Out of Hours Opt Outs,PRC DELEGATED CO-COMMISSIONING,MEADOWHEAD GROUP PRACTICE,14153189,"(3,396.41)"
Department of Health,NHS Sheffield CCG,30/09/2016,C&M-PMS PCO Seniority,PRC DELEGATED CO-COMMISSIONING,MEADOWHEAD GROUP PRACTICE,14153189,"4,328.66 "
Department of Health,NHS Sheffield CCG,30/09/2016,C&M-PMS Prem Cost Rent,PRC DELEGATED CO-COMMISSIONING,MEADOWHEAD GROUP PRACTICE,14153189,"3,647.42 "
Department of Health,NHS Sheffield CCG,30/09/2016,C&M-PMS Prem Notional Rent,PRC DELEGATED CO-COMMISSIONING,MEADOWHEAD GROUP PRACTICE,14153189,"3,358.33 "
Department of Health,NHS Sheffield CCG,30/09/2016,C&M-PMS Prem Rates,PRC DELEGATED CO-COMMISSIONING,MEADOWHEAD GROUP PRACTICE,14153189,"1,663.43 "
Department of Health,NHS Sheffield CCG,30/09/2016,C&M-PMS Prem Water Rates,PRC DELEGATED CO-COMMISSIONING,MEADOWHEAD GROUP PRACTICE,14153189,245.10 
Department of Health,NHS Sheffield CCG,30/09/2016,C&M-PMS QOF Aspiration,PRC DELEGATED CO-COMMISSIONING,MEADOWHEAD GROUP PRACTICE,14153189,"9,587.98 "
Department of Health,NHS Sheffield CCG,30/09/2016,C&M-GMS Cost of Drugs -Prescribing,LOCAL ENHANCED SERVICES,MEDICAL CENTRE CRYSTAL PEAKS,14361872,942.07 
Department of Health,NHS Sheffield CCG,30/09/2016,C&M-GMS DES Extended Hours Access,PRC DELEGATED CO-COMMISSIONING,MEDICAL CENTRE CRYSTAL PEAKS,14361872,"3,086.08 "
Department of Health,NHS Sheffield CCG,30/09/2016,C&M-GMS DES UNPLANNED ADMISSIONS,PRC DELEGATED CO-COMMISSIONING,MEDICAL CENTRE CRYSTAL PEAKS,14361872,"8,642.34 "
Department of Health,NHS Sheffield CCG,30/09/2016,C&M-GMS Global Sum,PRC DELEGATED CO-COMMISSIONING,MEDICAL CENTRE CRYSTAL PEAKS,14361872,"40,585.67 "
Department of Health,NHS Sheffield CCG,30/09/2016,C&M-GMS MPIG Correction Factor,PRC DELEGATED CO-COMMISSIONING,MEDICAL CENTRE CRYSTAL PEAKS,14361872,"2,262.69 "
Department of Health,NHS Sheffield CCG,30/09/2016,C&M-GMS PCO Seniority,PRC DELEGATED CO-COMMISSIONING,MEDICAL CENTRE CRYSTAL PEAKS,14361872,"2,740.63 "
Department of Health,NHS Sheffield CCG,30/09/2016,C&M-GMS Prem Actual Rent,PRC DELEGATED CO-COMMISSIONING,MEDICAL CENTRE CRYSTAL PEAKS,14361872,"17,610.00 "
Department of Health,NHS Sheffield CCG,30/09/2016,C&M-GMS Prem Notional Rent,PRC DELEGATED CO-COMMISSIONING,MEDICAL CENTRE CRYSTAL PEAKS,14361872,270.00 
Department of Health,NHS Sheffield CCG,30/09/2016,C&M-GMS Prem Rates,PRC DELEGATED CO-COMMISSIONING,MEDICAL CENTRE CRYSTAL PEAKS,14361872,"2,037.70 "
Department of Health,NHS Sheffield CCG,30/09/2016,C&M-GMS Prof Fees Prescribing,PRC DELEGATED CO-COMMISSIONING,MEDICAL CENTRE CRYSTAL PEAKS,14361872,264.32 
Department of Health,NHS Sheffield CCG,30/09/2016,C&M-GMS QOF Aspiration,PRC DELEGATED CO-COMMISSIONING,MEDICAL CENTRE CRYSTAL PEAKS,14361872,"5,451.18 "
Department of Health,NHS Sheffield CCG,30/09/2016,C&M-GMS Cost of Drugs -Prescribing,LOCAL ENHANCED SERVICES,MILL ROAD SURGERY SHEFFIELD,14361881,"1,351.68 "
Department of Health,NHS Sheffield CCG,30/09/2016,C&M-GMS DES Extended Hours Access,PRC DELEGATED CO-COMMISSIONING,MILL ROAD SURGERY SHEFFIELD,14361881,"2,494.70 "
Department of Health,NHS Sheffield CCG,30/09/2016,C&M-GMS DES Learn Dsblty Hlth Chk,PRC DELEGATED CO-COMMISSIONING,MILL ROAD SURGERY SHEFFIELD,14361881,812.00 
Department of Health,NHS Sheffield CCG,30/09/2016,C&M-GMS DES UNPLANNED ADMISSIONS,PRC DELEGATED CO-COMMISSIONING,MILL ROAD SURGERY SHEFFIELD,14361881,"6,989.15 "
Department of Health,NHS Sheffield CCG,30/09/2016,C&M-GMS Global Sum,PRC DELEGATED CO-COMMISSIONING,MILL ROAD SURGERY SHEFFIELD,14361881,"35,868.14 "
Department of Health,NHS Sheffield CCG,30/09/2016,C&M-GMS MPIG Correction Factor,PRC DELEGATED CO-COMMISSIONING,MILL ROAD SURGERY SHEFFIELD,14361881,244.08 
Department of Health,NHS Sheffield CCG,30/09/2016,C&M-GMS PCO Seniority,PRC DELEGATED CO-COMMISSIONING,MILL ROAD SURGERY SHEFFIELD,14361881,"1,500.19 "
Department of Health,NHS Sheffield CCG,30/09/2016,C&M-GMS Prem Notional Rent,PRC DELEGATED CO-COMMISSIONING,MILL ROAD SURGERY SHEFFIELD,14361881,"4,587.50 "
Department of Health,NHS Sheffield CCG,30/09/2016,C&M-GMS Prem Rates,PRC DELEGATED CO-COMMISSIONING,MILL ROAD SURGERY SHEFFIELD,14361881,726.00 
Department of Health,NHS Sheffield CCG,30/09/2016,C&M-GMS Prof Fees Prescribing,PRC DELEGATED CO-COMMISSIONING,MILL ROAD SURGERY SHEFFIELD,14361881,114.24 
Department of Health,NHS Sheffield CCG,30/09/2016,C&M-GMS QOF Aspiration,PRC DELEGATED CO-COMMISSIONING,MILL ROAD SURGERY SHEFFIELD,14361881,"4,939.72 "
Department of Health,NHS Sheffield CCG,30/09/2016,C&M-PMS Contract Value,PRC DELEGATED CO-COMMISSIONING,MOSBOROUGH HEALTH CENTRE,14153192,"(41,319.94)"
Department of Health,NHS Sheffield CCG,30/09/2016,C&M-PMS GP Statutory Levy,PRC DELEGATED CO-COMMISSIONING,MOSBOROUGH HEALTH CENTRE,14153192,(194.13)
Department of Health,NHS Sheffield CCG,30/09/2016,C&M-PMS Out of Hours Opt Outs,PRC DELEGATED CO-COMMISSIONING,MOSBOROUGH HEALTH CENTRE,14153192,(106.78)
Department of Health,NHS Sheffield CCG,30/09/2016,C&M-PMS Voluntary Levy,PRC DELEGATED CO-COMMISSIONING,MOSBOROUGH HEALTH CENTRE,14153192,(32.36)
Department of Health,NHS Sheffield CCG,30/09/2016,ME - PMS TPS Added Years Adj EEs,PRC DELEGATED CO-COMMISSIONING,MOSBOROUGH HEALTH CENTRE,14153192,(436.59)
Department of Health,NHS Sheffield CCG,30/09/2016,C&M-PMS Baseline Adjustment,PRC DELEGATED CO-COMMISSIONING,MOSBOROUGH HEALTH CENTRE,14153193,"2,506.00 "
Department of Health,NHS Sheffield CCG,30/09/2016,C&M-PMS Contract Value,PRC DELEGATED CO-COMMISSIONING,MOSBOROUGH HEALTH CENTRE,14153193,"85,445.97 "
Department of Health,NHS Sheffield CCG,30/09/2016,C&M-PMS DES Learn Dsblty Hlth Chk,PRC DELEGATED CO-COMMISSIONING,MOSBOROUGH HEALTH CENTRE,14153193,464.00 
Department of Health,NHS Sheffield CCG,30/09/2016,C&M-PMS DES Minor Surgery,PRC DELEGATED CO-COMMISSIONING,MOSBOROUGH HEALTH CENTRE,14153193,"3,073.73 "
Department of Health,NHS Sheffield CCG,30/09/2016,C&M-PMS DES UNPLANNED ADMISSIONS,PRC DELEGATED CO-COMMISSIONING,MOSBOROUGH HEALTH CENTRE,14153193,"8,609.09 "
Department of Health,NHS Sheffield CCG,30/09/2016,C&M-PMS Out of Hours Opt Outs,PRC DELEGATED CO-COMMISSIONING,MOSBOROUGH HEALTH CENTRE,14153193,"(2,058.45)"
Department of Health,NHS Sheffield CCG,30/09/2016,C&M-PMS PCO Seniority,PRC DELEGATED CO-COMMISSIONING,MOSBOROUGH HEALTH CENTRE,14153193,"4,622.17 "
Department of Health,NHS Sheffield CCG,30/09/2016,C&M-PMS Prem Notional Rent,PRC DELEGATED CO-COMMISSIONING,MOSBOROUGH HEALTH CENTRE,14153193,"4,091.67 "
Department of Health,NHS Sheffield CCG,30/09/2016,C&M-PMS Prem Rates,PRC DELEGATED CO-COMMISSIONING,MOSBOROUGH HEALTH CENTRE,14153193,665.50 
Department of Health,NHS Sheffield CCG,30/09/2016,C&M-PMS QOF Aspiration,PRC DELEGATED CO-COMMISSIONING,MOSBOROUGH HEALTH CENTRE,14153193,"5,470.61 "
Department of Health,NHS Sheffield CCG,30/09/2016,C&M-PMS Contract Value,PRC DELEGATED CO-COMMISSIONING,NETHERGREEN SURGERY,14153194,"(55,233.17)"
Department of Health,NHS Sheffield CCG,30/09/2016,C&M-PMS GP Statutory Levy,PRC DELEGATED CO-COMMISSIONING,NETHERGREEN SURGERY,14153194,(279.63)
Department of Health,NHS Sheffield CCG,30/09/2016,C&M-PMS Out of Hours Opt Outs,PRC DELEGATED CO-COMMISSIONING,NETHERGREEN SURGERY,14153194,(106.83)
Department of Health,NHS Sheffield CCG,30/09/2016,C&M-PMS Voluntary Levy,PRC DELEGATED CO-COMMISSIONING,NETHERGREEN SURGERY,14153194,(46.61)
Department of Health,NHS Sheffield CCG,30/09/2016,ME - PMS TPS Added Years Adj EEs,PRC DELEGATED CO-COMMISSIONING,NETHERGREEN SURGERY,14153194,(255.16)
Department of Health,NHS Sheffield CCG,30/09/2016,C&M-PMS Baseline Adjustment,PRC DELEGATED CO-COMMISSIONING,NETHERGREEN SURGERY,14153195,"3,753.08 "
Department of Health,NHS Sheffield CCG,30/09/2016,C&M-PMS Contract Value,PRC DELEGATED CO-COMMISSIONING,NETHERGREEN SURGERY,14153195,"113,114.20 "
Department of Health,NHS Sheffield CCG,30/09/2016,C&M-PMS DES Minor Surgery,PRC DELEGATED CO-COMMISSIONING,NETHERGREEN SURGERY,14153195,"4,427.48 "
Department of Health,NHS Sheffield CCG,30/09/2016,C&M-PMS DES UNPLANNED ADMISSIONS,PRC DELEGATED CO-COMMISSIONING,NETHERGREEN SURGERY,14153195,"12,403.58 "
Department of Health,NHS Sheffield CCG,30/09/2016,C&M-PMS Out of Hours Opt Outs,PRC DELEGATED CO-COMMISSIONING,NETHERGREEN SURGERY,14153195,"(2,720.83)"
Department of Health,NHS Sheffield CCG,30/09/2016,C&M-PMS PCO Seniority,PRC DELEGATED CO-COMMISSIONING,NETHERGREEN SURGERY,14153195,"5,393.58 "
Department of Health,NHS Sheffield CCG,30/09/2016,C&M-PMS Prem Notional Rent,PRC DELEGATED CO-COMMISSIONING,NETHERGREEN SURGERY,14153195,"5,057.33 "
Department of Health,NHS Sheffield CCG,30/09/2016,C&M-PMS Prem Rates,PRC DELEGATED CO-COMMISSIONING,NETHERGREEN SURGERY,14153195,"1,143.10 "
Department of Health,NHS Sheffield CCG,30/09/2016,C&M-PMS QOF Aspiration,PRC DELEGATED CO-COMMISSIONING,NETHERGREEN SURGERY,14153195,"5,755.28 "
Department of Health,NHS Sheffield CCG,30/09/2016,Cont Care-Physical Disab (<65),CHC ADULT FULLY FUNDED,NEVILLE HEALTH CARE LTD,14119030,"66,570.73 "
Department of Health,NHS Sheffield CCG,30/09/2016,Recharge : Received,CONTINUING HEALTHCARE ASSESSMENT & SUPPORT,NHS DONCASTER CCG,14090711,"76,288.13 "
Department of Health,NHS Sheffield CCG,30/09/2016,Clinical&Medical-Othe Public Sector,ACUTE COMMISSIONING,NHS ENGLAND,14107912,"86,209.21 "
Department of Health,NHS Sheffield CCG,30/09/2016,C&M-GMS Prem Other,PRC DELEGATED CO-COMMISSIONING,NHS ENGLAND,14423570,"3,598.76 "
Department of Health,NHS Sheffield CCG,30/09/2016,Contract- Refuse & Clinical Waste,PRC DELEGATED CO-COMMISSIONING,NHS ENGLAND,14423570,"51,111.80 "
Department of Health,NHS Sheffield CCG,30/09/2016,Charges from CSU,BUSINESS INFORMATICS,NHS NORTH OF ENGLAND CSU,14371935,"30,083.00 "
Department of Health,NHS Sheffield CCG,30/09/2016,Service Charge,RECHARGES NHS PROPERTY SERVICES LTD,NHS PROPERTY SERVICES LTD,14281979,"63,625.93 "
Department of Health,NHS Sheffield CCG,30/09/2016,C&M-GMS Cost of Drugs -Prescribing,LOCAL ENHANCED SERVICES,NORFOLK PARK HEALTH CENTRE,14361886,"1,174.54 "
Department of Health,NHS Sheffield CCG,30/09/2016,C&M-GMS DES UNPLANNED ADMISSIONS,PRC DELEGATED CO-COMMISSIONING,NORFOLK PARK HEALTH CENTRE,14361886,"8,581.02 "
Department of Health,NHS Sheffield CCG,30/09/2016,C&M-GMS Global Sum,PRC DELEGATED CO-COMMISSIONING,NORFOLK PARK HEALTH CENTRE,14361886,"30,814.95 "
Department of Health,NHS Sheffield CCG,30/09/2016,C&M-GMS MPIG Correction Factor,PRC DELEGATED CO-COMMISSIONING,NORFOLK PARK HEALTH CENTRE,14361886,"1,849.21 "
Department of Health,NHS Sheffield CCG,30/09/2016,C&M-GMS PCO Seniority,PRC DELEGATED CO-COMMISSIONING,NORFOLK PARK HEALTH CENTRE,14361886,"2,811.86 "
Department of Health,NHS Sheffield CCG,30/09/2016,C&M-GMS Prem Healthcentre Rent,PRC DELEGATED CO-COMMISSIONING,NORFOLK PARK HEALTH CENTRE,14361886,"23,089.03 "
Department of Health,NHS Sheffield CCG,30/09/2016,C&M-GMS Prof Fees Prescribing,PRC DELEGATED CO-COMMISSIONING,NORFOLK PARK HEALTH CENTRE,14361886,114.24 
Department of Health,NHS Sheffield CCG,30/09/2016,C&M-GMS QOF Aspiration,PRC DELEGATED CO-COMMISSIONING,NORFOLK PARK HEALTH CENTRE,14361886,"3,691.39 "
Department of Health,NHS Sheffield CCG,30/09/2016,Clinical&Medical-Commercial Sector,PATIENT TRANSPORT,NORTHERN TAXIS LTD,14093083,"26,716.60 "
Department of Health,NHS Sheffield CCG,30/09/2016,Clinical&Medical-Commercial Sector,PATIENT TRANSPORT,NORTHERN TAXIS LTD,14109265,"161,646.60 "
Department of Health,NHS Sheffield CCG,30/09/2016,C&M-GMS Cost of Drugs -Prescribing,LOCAL ENHANCED SERVICES,NORWOOD MEDICAL CENTRE SHEFFIELD,14361889,826.79 
Department of Health,NHS Sheffield CCG,30/09/2016,C&M-GMS DES Extended Hours Access,PRC DELEGATED CO-COMMISSIONING,NORWOOD MEDICAL CENTRE SHEFFIELD,14361889,"3,750.13 "
Department of Health,NHS Sheffield CCG,30/09/2016,C&M-GMS DES Learn Dsblty Hlth Chk,PRC DELEGATED CO-COMMISSIONING,NORWOOD MEDICAL CENTRE SHEFFIELD,14361889,696.00 
Department of Health,NHS Sheffield CCG,30/09/2016,C&M-GMS DES UNPLANNED ADMISSIONS,PRC DELEGATED CO-COMMISSIONING,NORWOOD MEDICAL CENTRE SHEFFIELD,14361889,"10,504.34 "
Department of Health,NHS Sheffield CCG,30/09/2016,C&M-GMS Global Sum,PRC DELEGATED CO-COMMISSIONING,NORWOOD MEDICAL CENTRE SHEFFIELD,14361889,"57,342.26 "
Department of Health,NHS Sheffield CCG,30/09/2016,C&M-GMS PCO Seniority,PRC DELEGATED CO-COMMISSIONING,NORWOOD MEDICAL CENTRE SHEFFIELD,14361889,"3,339.69 "
Department of Health,NHS Sheffield CCG,30/09/2016,C&M-GMS Prem Notional Rent,PRC DELEGATED CO-COMMISSIONING,NORWOOD MEDICAL CENTRE SHEFFIELD,14361889,"5,187.50 "
Department of Health,NHS Sheffield CCG,30/09/2016,C&M-GMS Prem Rates,PRC DELEGATED CO-COMMISSIONING,NORWOOD MEDICAL CENTRE SHEFFIELD,14361889,981.58 
Department of Health,NHS Sheffield CCG,30/09/2016,C&M-GMS Prof Fees Prescribing,PRC DELEGATED CO-COMMISSIONING,NORWOOD MEDICAL CENTRE SHEFFIELD,14361889,179.20 
Department of Health,NHS Sheffield CCG,30/09/2016,C&M-GMS QOF Aspiration,PRC DELEGATED CO-COMMISSIONING,NORWOOD MEDICAL CENTRE SHEFFIELD,14361889,"7,632.11 "
Department of Health,NHS Sheffield CCG,30/09/2016,Clinical&Medical-Independent Sector,URGENT CARE,ONE MEDICARE,14090805,"199,286.08 "
Department of Health,NHS Sheffield CCG,30/09/2016,Rent,URGENT CARE,ONE MEDICARE,14387442,"63,270.00 "
Department of Health,NHS Sheffield CCG,30/09/2016,Clinical&Medical-Independent Sector,ACUTE COMMISSIONING,ONEHEALTH GROUP,14221272,"90,000.00 "
Department of Health,NHS Sheffield CCG,30/09/2016,C&M-GMS Cost of Drugs -Dispensing,LOCAL ENHANCED SERVICES,OUGHTIBRIDGE SURGERY,14361893,"32,891.25 "
Department of Health,NHS Sheffield CCG,30/09/2016,C&M-GMS DES Extended Hours Access,PRC DELEGATED CO-COMMISSIONING,OUGHTIBRIDGE SURGERY,14361893,"2,754.53 "
Department of Health,NHS Sheffield CCG,30/09/2016,C&M-GMS DES UNPLANNED ADMISSIONS,PRC DELEGATED CO-COMMISSIONING,OUGHTIBRIDGE SURGERY,14361893,"7,715.33 "
Department of Health,NHS Sheffield CCG,30/09/2016,C&M-GMS Global Sum,PRC DELEGATED CO-COMMISSIONING,OUGHTIBRIDGE SURGERY,14361893,"38,557.58 "
Department of Health,NHS Sheffield CCG,30/09/2016,C&M-GMS PCO Seniority,PRC DELEGATED CO-COMMISSIONING,OUGHTIBRIDGE SURGERY,14361893,"2,568.81 "
Department of Health,NHS Sheffield CCG,30/09/2016,C&M-GMS Prem Notional Rent,PRC DELEGATED CO-COMMISSIONING,OUGHTIBRIDGE SURGERY,14361893,"3,888.33 "
Department of Health,NHS Sheffield CCG,30/09/2016,C&M-GMS Prem Rates,PRC DELEGATED CO-COMMISSIONING,OUGHTIBRIDGE SURGERY,14361893,"1,652.53 "
Department of Health,NHS Sheffield CCG,30/09/2016,C&M-GMS Prof Fees Dispensing,PRC DELEGATED CO-COMMISSIONING,OUGHTIBRIDGE SURGERY,14361893,"4,581.09 "
Department of Health,NHS Sheffield CCG,30/09/2016,C&M-GMS PrscrptnChrgsColl&RmttdbyGP,LOCAL ENHANCED SERVICES,OUGHTIBRIDGE SURGERY,14361893,714.00 
Department of Health,NHS Sheffield CCG,30/09/2016,C&M-GMS QOF Aspiration,PRC DELEGATED CO-COMMISSIONING,OUGHTIBRIDGE SURGERY,14361893,"4,273.35 "
Department of Health,NHS Sheffield CCG,30/09/2016,C&M-PMS Contract Value,PRC DELEGATED CO-COMMISSIONING,OWLTHORPE MEDICAL CENTRE,14153196,"(23,535.41)"
Department of Health,NHS Sheffield CCG,30/09/2016,C&M-PMS GP Statutory Levy,PRC DELEGATED CO-COMMISSIONING,OWLTHORPE MEDICAL CENTRE,14153196,(109.35)
Department of Health,NHS Sheffield CCG,30/09/2016,C&M-PMS Out of Hours Opt Outs,PRC DELEGATED CO-COMMISSIONING,OWLTHORPE MEDICAL CENTRE,14153196,(753.80)
Department of Health,NHS Sheffield CCG,30/09/2016,C&M-PMS Voluntary Levy,PRC DELEGATED CO-COMMISSIONING,OWLTHORPE MEDICAL CENTRE,14153196,(18.23)
Department of Health,NHS Sheffield CCG,30/09/2016,C&M-PMS Baseline Adjustment,PRC DELEGATED CO-COMMISSIONING,OWLTHORPE MEDICAL CENTRE,14153197,"2,999.33 "
Department of Health,NHS Sheffield CCG,30/09/2016,C&M-PMS Contract Value,PRC DELEGATED CO-COMMISSIONING,OWLTHORPE MEDICAL CENTRE,14153197,"60,436.56 "
Department of Health,NHS Sheffield CCG,30/09/2016,C&M-PMS DES Minor Surgery,PRC DELEGATED CO-COMMISSIONING,OWLTHORPE MEDICAL CENTRE,14153197,"1,731.38 "
Department of Health,NHS Sheffield CCG,30/09/2016,C&M-PMS Out of Hours Opt Outs,PRC DELEGATED CO-COMMISSIONING,OWLTHORPE MEDICAL CENTRE,14153197,"(1,088.92)"
Department of Health,NHS Sheffield CCG,30/09/2016,C&M-PMS PCO Seniority,PRC DELEGATED CO-COMMISSIONING,OWLTHORPE MEDICAL CENTRE,14153197,974.50 
Department of Health,NHS Sheffield CCG,30/09/2016,C&M-PMS Prem Actual Rent,PRC DELEGATED CO-COMMISSIONING,OWLTHORPE MEDICAL CENTRE,14153197,"7,436.33 "
Department of Health,NHS Sheffield CCG,30/09/2016,C&M-PMS Prem Rates,PRC DELEGATED CO-COMMISSIONING,OWLTHORPE MEDICAL CENTRE,14153197,981.58 
Department of Health,NHS Sheffield CCG,30/09/2016,C&M-PMS QOF Aspiration,PRC DELEGATED CO-COMMISSIONING,OWLTHORPE MEDICAL CENTRE,14153197,"3,175.78 "
Department of Health,NHS Sheffield CCG,30/09/2016,C&M-PMS Contract Value,PRC DELEGATED CO-COMMISSIONING,PAGE HALL MEDICAL CENTRE,14153198,"(56,382.25)"
Department of Health,NHS Sheffield CCG,30/09/2016,C&M-PMS GP Statutory Levy,PRC DELEGATED CO-COMMISSIONING,PAGE HALL MEDICAL CENTRE,14153198,(221.46)
Department of Health,NHS Sheffield CCG,30/09/2016,C&M-PMS Out of Hours Opt Outs,PRC DELEGATED CO-COMMISSIONING,PAGE HALL MEDICAL CENTRE,14153198,(122.57)
Department of Health,NHS Sheffield CCG,30/09/2016,C&M-PMS Voluntary Levy,PRC DELEGATED CO-COMMISSIONING,PAGE HALL MEDICAL CENTRE,14153198,(36.91)
Department of Health,NHS Sheffield CCG,30/09/2016,ME - PMS TPS Added Years Adj EEs,PRC DELEGATED CO-COMMISSIONING,PAGE HALL MEDICAL CENTRE,14153198,(605.25)
Department of Health,NHS Sheffield CCG,30/09/2016,C&M-PMS Baseline Adjustment,PRC DELEGATED CO-COMMISSIONING,PAGE HALL MEDICAL CENTRE,14153199,"10,782.17 "
Department of Health,NHS Sheffield CCG,30/09/2016,C&M-PMS Contract Value,PRC DELEGATED CO-COMMISSIONING,PAGE HALL MEDICAL CENTRE,14153199,"107,860.82 "
Department of Health,NHS Sheffield CCG,30/09/2016,C&M-PMS DES Minor Surgery,PRC DELEGATED CO-COMMISSIONING,PAGE HALL MEDICAL CENTRE,14153199,"3,506.45 "
Department of Health,NHS Sheffield CCG,30/09/2016,C&M-PMS DES UNPLANNED ADMISSIONS,PRC DELEGATED CO-COMMISSIONING,PAGE HALL MEDICAL CENTRE,14153199,"9,820.72 "
Department of Health,NHS Sheffield CCG,30/09/2016,C&M-PMS Out of Hours Opt Outs,PRC DELEGATED CO-COMMISSIONING,PAGE HALL MEDICAL CENTRE,14153199,"(2,395.95)"
Department of Health,NHS Sheffield CCG,30/09/2016,C&M-PMS PCO Seniority,PRC DELEGATED CO-COMMISSIONING,PAGE HALL MEDICAL CENTRE,14153199,"3,043.19 "
Department of Health,NHS Sheffield CCG,30/09/2016,C&M-PMS Prem Notional Rent,PRC DELEGATED CO-COMMISSIONING,PAGE HALL MEDICAL CENTRE,14153199,"4,683.33 "
Department of Health,NHS Sheffield CCG,30/09/2016,C&M-PMS Prem Rates,PRC DELEGATED CO-COMMISSIONING,PAGE HALL MEDICAL CENTRE,14153199,762.30 
Department of Health,NHS Sheffield CCG,30/09/2016,C&M-PMS QOF Aspiration,PRC DELEGATED CO-COMMISSIONING,PAGE HALL MEDICAL CENTRE,14153199,"4,608.67 "
Department of Health,NHS Sheffield CCG,30/09/2016,C&M-PMS Contract Value,PRC DELEGATED CO-COMMISSIONING,PARK HEALTH CENTRE,14153200,"(42,285.81)"
Department of Health,NHS Sheffield CCG,30/09/2016,C&M-PMS DES Extended Hours Access,PRC DELEGATED CO-COMMISSIONING,PARK HEALTH CENTRE,14153200,"(8,226.07)"
Department of Health,NHS Sheffield CCG,30/09/2016,C&M-PMS GP Statutory Levy,PRC DELEGATED CO-COMMISSIONING,PARK HEALTH CENTRE,14153200,(161.22)
Department of Health,NHS Sheffield CCG,30/09/2016,C&M-PMS Out of Hours Opt Outs,PRC DELEGATED CO-COMMISSIONING,PARK HEALTH CENTRE,14153200,(43.69)
Department of Health,NHS Sheffield CCG,30/09/2016,C&M-PMS Voluntary Levy,PRC DELEGATED CO-COMMISSIONING,PARK HEALTH CENTRE,14153200,(26.87)
Department of Health,NHS Sheffield CCG,30/09/2016,C&M-PMS Baseline Adjustment,PRC DELEGATED CO-COMMISSIONING,PARK HEALTH CENTRE,14153201,"6,580.33 "
Department of Health,NHS Sheffield CCG,30/09/2016,C&M-PMS Contract Value,PRC DELEGATED CO-COMMISSIONING,PARK HEALTH CENTRE,14153201,"81,022.21 "
Department of Health,NHS Sheffield CCG,30/09/2016,C&M-PMS DES Minor Surgery,PRC DELEGATED CO-COMMISSIONING,PARK HEALTH CENTRE,14153201,"2,552.65 "
Department of Health,NHS Sheffield CCG,30/09/2016,C&M-PMS DES UNPLANNED ADMISSIONS,PRC DELEGATED CO-COMMISSIONING,PARK HEALTH CENTRE,14153201,"7,147.42 "
Department of Health,NHS Sheffield CCG,30/09/2016,C&M-PMS Out of Hours Opt Outs,PRC DELEGATED CO-COMMISSIONING,PARK HEALTH CENTRE,14153201,"(1,850.11)"
Department of Health,NHS Sheffield CCG,30/09/2016,C&M-PMS PCO Seniority,PRC DELEGATED CO-COMMISSIONING,PARK HEALTH CENTRE,14153201,"2,515.88 "
Department of Health,NHS Sheffield CCG,30/09/2016,C&M-PMS Prem Notional Rent,PRC DELEGATED CO-COMMISSIONING,PARK HEALTH CENTRE,14153201,"6,000.00 "
Department of Health,NHS Sheffield CCG,30/09/2016,C&M-PMS Prem Rates,PRC DELEGATED CO-COMMISSIONING,PARK HEALTH CENTRE,14153201,701.80 
Department of Health,NHS Sheffield CCG,30/09/2016,C&M-PMS QOF Aspiration,PRC DELEGATED CO-COMMISSIONING,PARK HEALTH CENTRE,14153201,"3,864.73 "
Department of Health,NHS Sheffield CCG,30/09/2016,NHS Recbles <1Yr- CHC Risk Pool Con,CHC ADULT FULLY FUNDED,CHC RETRO,14286303,"33,514.51 "
Department of Health,NHS Sheffield CCG,30/09/2016,C&M-PMS Contract Value,PRC DELEGATED CO-COMMISSIONING,PITSMOOR SURGERY,14153202,"(63,166.00)"
Department of Health,NHS Sheffield CCG,30/09/2016,C&M-PMS GP Statutory Levy,PRC DELEGATED CO-COMMISSIONING,PITSMOOR SURGERY,14153202,(277.98)
Department of Health,NHS Sheffield CCG,30/09/2016,C&M-PMS Out of Hours Opt Outs,PRC DELEGATED CO-COMMISSIONING,PITSMOOR SURGERY,14153202,(322.23)
Department of Health,NHS Sheffield CCG,30/09/2016,C&M-PMS Voluntary Levy,PRC DELEGATED CO-COMMISSIONING,PITSMOOR SURGERY,14153202,(46.33)
Department of Health,NHS Sheffield CCG,30/09/2016,C&M-PMS Contract Value,PRC DELEGATED CO-COMMISSIONING,PITSMOOR SURGERY,14153203,"137,951.20 "
Department of Health,NHS Sheffield CCG,30/09/2016,C&M-PMS DES Minor Surgery,PRC DELEGATED CO-COMMISSIONING,PITSMOOR SURGERY,14153203,"4,401.35 "
Department of Health,NHS Sheffield CCG,30/09/2016,C&M-PMS Out of Hours Opt Outs,PRC DELEGATED CO-COMMISSIONING,PITSMOOR SURGERY,14153203,"(3,375.08)"
Department of Health,NHS Sheffield CCG,30/09/2016,C&M-PMS PCO Seniority,PRC DELEGATED CO-COMMISSIONING,PITSMOOR SURGERY,14153203,"3,376.87 "
Department of Health,NHS Sheffield CCG,30/09/2016,C&M-PMS Prem Notional Rent,PRC DELEGATED CO-COMMISSIONING,PITSMOOR SURGERY,14153203,"9,479.17 "
Department of Health,NHS Sheffield CCG,30/09/2016,C&M-PMS QOF Aspiration,PRC DELEGATED CO-COMMISSIONING,PITSMOOR SURGERY,14153203,"6,765.92 "
Department of Health,NHS Sheffield CCG,30/09/2016,C&M-PMS Contract Value,PRC DELEGATED CO-COMMISSIONING,PORTER BROOK MEDICAL CENTRE,14153204,"(163,017.25)"
Department of Health,NHS Sheffield CCG,30/09/2016,C&M-PMS GP Statutory Levy,PRC DELEGATED CO-COMMISSIONING,PORTER BROOK MEDICAL CENTRE,14153204,(824.58)
Department of Health,NHS Sheffield CCG,30/09/2016,C&M-PMS Out of Hours Opt Outs,PRC DELEGATED CO-COMMISSIONING,PORTER BROOK MEDICAL CENTRE,14153204,(101.41)
Department of Health,NHS Sheffield CCG,30/09/2016,C&M-PMS Voluntary Levy,PRC DELEGATED CO-COMMISSIONING,PORTER BROOK MEDICAL CENTRE,14153204,(137.43)
Department of Health,NHS Sheffield CCG,30/09/2016,C&M-PMS Baseline Adjustment,PRC DELEGATED CO-COMMISSIONING,PORTER BROOK MEDICAL CENTRE,14153205,"10,224.25 "
Department of Health,NHS Sheffield CCG,30/09/2016,C&M-PMS Contract Value,PRC DELEGATED CO-COMMISSIONING,PORTER BROOK MEDICAL CENTRE,14153205,"296,857.63 "
Department of Health,NHS Sheffield CCG,30/09/2016,C&M-PMS DES Learn Dsblty Hlth Chk,PRC DELEGATED CO-COMMISSIONING,PORTER BROOK MEDICAL CENTRE,14153205,116.00 
Department of Health,NHS Sheffield CCG,30/09/2016,C&M-PMS DES Minor Surgery,PRC DELEGATED CO-COMMISSIONING,PORTER BROOK MEDICAL CENTRE,14153205,"13,055.85 "
Department of Health,NHS Sheffield CCG,30/09/2016,C&M-PMS DES UNPLANNED ADMISSIONS,PRC DELEGATED CO-COMMISSIONING,PORTER BROOK MEDICAL CENTRE,14153205,"36,628.20 "
Department of Health,NHS Sheffield CCG,30/09/2016,C&M-PMS Out of Hours Opt Outs,PRC DELEGATED CO-COMMISSIONING,PORTER BROOK MEDICAL CENTRE,14153205,"(6,388.30)"
Department of Health,NHS Sheffield CCG,30/09/2016,C&M-PMS PCO Seniority,PRC DELEGATED CO-COMMISSIONING,PORTER BROOK MEDICAL CENTRE,14153205,"9,614.39 "
Department of Health,NHS Sheffield CCG,30/09/2016,C&M-PMS Prem Actual Rent,PRC DELEGATED CO-COMMISSIONING,PORTER BROOK MEDICAL CENTRE,14153205,"1,333.33 "
Department of Health,NHS Sheffield CCG,30/09/2016,C&M-PMS Prem Notional Rent,PRC DELEGATED CO-COMMISSIONING,PORTER BROOK MEDICAL CENTRE,14153205,"9,559.58 "
Department of Health,NHS Sheffield CCG,30/09/2016,C&M-PMS Prem Rates,PRC DELEGATED CO-COMMISSIONING,PORTER BROOK MEDICAL CENTRE,14153205,"5,384.94 "
Department of Health,NHS Sheffield CCG,30/09/2016,C&M-PMS QOF Aspiration,PRC DELEGATED CO-COMMISSIONING,PORTER BROOK MEDICAL CENTRE,14153205,"8,138.32 "
Department of Health,NHS Sheffield CCG,30/09/2016,Cont Care-Funded Nursing Care Allow,FUNDED NURSING CARE,PRIORY GROUP LTD,14134833,"25,624.90 "
Department of Health,NHS Sheffield CCG,30/09/2016,Cont Care-Funded Nursing Care Allow,FUNDED NURSING CARE,REGAL CARE HOMES LTD,14119590,"25,884.06 "
Department of Health,NHS Sheffield CCG,30/09/2016,C&M-PMS Contract Value,PRC DELEGATED CO-COMMISSIONING,RICHMOND MEDICAL CENTRE,14153206,"(55,053.34)"
Department of Health,NHS Sheffield CCG,30/09/2016,C&M-PMS GP Statutory Levy,PRC DELEGATED CO-COMMISSIONING,RICHMOND MEDICAL CENTRE,14153206,(250.80)
Department of Health,NHS Sheffield CCG,30/09/2016,C&M-PMS Out of Hours Opt Outs,PRC DELEGATED CO-COMMISSIONING,RICHMOND MEDICAL CENTRE,14153206,(86.38)
Department of Health,NHS Sheffield CCG,30/09/2016,C&M-PMS Voluntary Levy,PRC DELEGATED CO-COMMISSIONING,RICHMOND MEDICAL CENTRE,14153206,(41.80)
Department of Health,NHS Sheffield CCG,30/09/2016,C&M-PMS Baseline Adjustment,PRC DELEGATED CO-COMMISSIONING,RICHMOND MEDICAL CENTRE,14153207,"3,604.75 "
Department of Health,NHS Sheffield CCG,30/09/2016,C&M-PMS Contract Value,PRC DELEGATED CO-COMMISSIONING,RICHMOND MEDICAL CENTRE,14153207,"112,533.44 "
Department of Health,NHS Sheffield CCG,30/09/2016,C&M-PMS DES Learn Dsblty Hlth Chk,PRC DELEGATED CO-COMMISSIONING,RICHMOND MEDICAL CENTRE,14153207,348.00 
Department of Health,NHS Sheffield CCG,30/09/2016,C&M-PMS DES Minor Surgery,PRC DELEGATED CO-COMMISSIONING,RICHMOND MEDICAL CENTRE,14153207,"3,971.00 "
Department of Health,NHS Sheffield CCG,30/09/2016,C&M-PMS DES UNPLANNED ADMISSIONS,PRC DELEGATED CO-COMMISSIONING,RICHMOND MEDICAL CENTRE,14153207,"11,118.80 "
Department of Health,NHS Sheffield CCG,30/09/2016,C&M-PMS Out of Hours Opt Outs,PRC DELEGATED CO-COMMISSIONING,RICHMOND MEDICAL CENTRE,14153207,"(2,736.08)"
Department of Health,NHS Sheffield CCG,30/09/2016,C&M-PMS PCO Seniority,PRC DELEGATED CO-COMMISSIONING,RICHMOND MEDICAL CENTRE,14153207,"2,511.08 "
Department of Health,NHS Sheffield CCG,30/09/2016,C&M-PMS Prem Notional Rent,PRC DELEGATED CO-COMMISSIONING,RICHMOND MEDICAL CENTRE,14153207,"4,520.00 "
Department of Health,NHS Sheffield CCG,30/09/2016,C&M-PMS Prem Rates,PRC DELEGATED CO-COMMISSIONING,RICHMOND MEDICAL CENTRE,14153207,"1,018.85 "
Department of Health,NHS Sheffield CCG,30/09/2016,C&M-PMS QOF Aspiration,PRC DELEGATED CO-COMMISSIONING,RICHMOND MEDICAL CENTRE,14153207,"7,024.93 "
Department of Health,NHS Sheffield CCG,30/09/2016,ME - PMS GP Prior Year ERs,PRC DELEGATED CO-COMMISSIONING,RICHMOND MEDICAL CENTRE,14153207,"1,664.94 "
Department of Health,NHS Sheffield CCG,30/09/2016,ME-PMS GP Prior Year EEs,PRC DELEGATED CO-COMMISSIONING,RICHMOND MEDICAL CENTRE,14153207,"1,082.79 "
Department of Health,NHS Sheffield CCG,30/09/2016,Cont Care-Physical Disab (<65),CHC ADULT FULLY FUNDED,ROSEBERRY CARE CENTRES,14117894,"35,918.23 "
Department of Health,NHS Sheffield CCG,30/09/2016,Cont Care-Physical Disab (<65),CHC ADULT FULLY FUNDED,ROSEBERRY CARE CENTRES,14134804,"26,506.52 "
Department of Health,NHS Sheffield CCG,30/09/2016,Cont Care-Funded Nursing Care Allow,FUNDED NURSING CARE,ROSEBERRY CARE CENTRES,14185981,"26,138.29 "
Department of Health,NHS Sheffield CCG,30/09/2016,Cont Care-Funded Nursing Care Allow,FUNDED NURSING CARE,ROSEBERRY CARE CENTRES,14208767,"39,856.45 "
Department of Health,NHS Sheffield CCG,30/09/2016,Hcare Srv Rec Fdtn Trust-Contract Baseline,ACUTE COMMISSIONING,ROTHERHAM NHS FOUNDATION TRUST,14107985,"408,354.00 "
Department of Health,NHS Sheffield CCG,30/09/2016,C&M-PMS Contract Value,PRC DELEGATED CO-COMMISSIONING,RUSTLINGS ROAD MEDICAL CENTRE,14153210,"(25,113.42)"
Department of Health,NHS Sheffield CCG,30/09/2016,C&M-PMS GP Statutory Levy,PRC DELEGATED CO-COMMISSIONING,RUSTLINGS ROAD MEDICAL CENTRE,14153210,(136.83)
Department of Health,NHS Sheffield CCG,30/09/2016,C&M-PMS Out of Hours Opt Outs,PRC DELEGATED CO-COMMISSIONING,RUSTLINGS ROAD MEDICAL CENTRE,14153210,(62.84)
Department of Health,NHS Sheffield CCG,30/09/2016,C&M-PMS Voluntary Levy,PRC DELEGATED CO-COMMISSIONING,RUSTLINGS ROAD MEDICAL CENTRE,14153210,(22.81)
Department of Health,NHS Sheffield CCG,30/09/2016,C&M-PMS Baseline Adjustment,PRC DELEGATED CO-COMMISSIONING,RUSTLINGS ROAD MEDICAL CENTRE,14153211,"2,471.83 "
Department of Health,NHS Sheffield CCG,30/09/2016,C&M-PMS Contract Value,PRC DELEGATED CO-COMMISSIONING,RUSTLINGS ROAD MEDICAL CENTRE,14153211,"50,883.74 "
Department of Health,NHS Sheffield CCG,30/09/2016,C&M-PMS DES UNPLANNED ADMISSIONS,PRC DELEGATED CO-COMMISSIONING,RUSTLINGS ROAD MEDICAL CENTRE,14153211,"6,067.46 "
Department of Health,NHS Sheffield CCG,30/09/2016,C&M-PMS Out of Hours Opt Outs,PRC DELEGATED CO-COMMISSIONING,RUSTLINGS ROAD MEDICAL CENTRE,14153211,"(1,200.08)"
Department of Health,NHS Sheffield CCG,30/09/2016,C&M-PMS PCO Seniority,PRC DELEGATED CO-COMMISSIONING,RUSTLINGS ROAD MEDICAL CENTRE,14153211,"2,332.81 "
Department of Health,NHS Sheffield CCG,30/09/2016,C&M-PMS Prem Notional Rent,PRC DELEGATED CO-COMMISSIONING,RUSTLINGS ROAD MEDICAL CENTRE,14153211,"1,167.92 "
Department of Health,NHS Sheffield CCG,30/09/2016,C&M-PMS Prem Rates,PRC DELEGATED CO-COMMISSIONING,RUSTLINGS ROAD MEDICAL CENTRE,14153211,435.60 
Department of Health,NHS Sheffield CCG,30/09/2016,C&M-PMS QOF Aspiration,PRC DELEGATED CO-COMMISSIONING,RUSTLINGS ROAD MEDICAL CENTRE,14153211,"2,262.57 "
Department of Health,NHS Sheffield CCG,30/09/2016,Cont Care-Funded Nursing Care Allow,FUNDED NURSING CARE,SCARSDALE GRANGE NURSING HOME,14134885,"26,785.61 "
Department of Health,NHS Sheffield CCG,30/09/2016,C&M-PMS Baseline Adjustment,PRC DELEGATED CO-COMMISSIONING,SELBORNE ROAD MEDICAL CENTRE,14153209,"1,263.08 "
Department of Health,NHS Sheffield CCG,30/09/2016,C&M-PMS Contract Value,PRC DELEGATED CO-COMMISSIONING,SELBORNE ROAD MEDICAL CENTRE,14153209,"35,787.22 "
Department of Health,NHS Sheffield CCG,30/09/2016,C&M-PMS DES UNPLANNED ADMISSIONS,PRC DELEGATED CO-COMMISSIONING,SELBORNE ROAD MEDICAL CENTRE,14153209,"3,681.44 "
Department of Health,NHS Sheffield CCG,30/09/2016,C&M-PMS Out of Hours Opt Outs,PRC DELEGATED CO-COMMISSIONING,SELBORNE ROAD MEDICAL CENTRE,14153209,(859.08)
Department of Health,NHS Sheffield CCG,30/09/2016,C&M-PMS PCO Seniority,PRC DELEGATED CO-COMMISSIONING,SELBORNE ROAD MEDICAL CENTRE,14153209,955.09 
Department of Health,NHS Sheffield CCG,30/09/2016,C&M-PMS Prem Notional Rent,PRC DELEGATED CO-COMMISSIONING,SELBORNE ROAD MEDICAL CENTRE,14153209,"1,677.08 "
Department of Health,NHS Sheffield CCG,30/09/2016,C&M-PMS Prem Rates,PRC DELEGATED CO-COMMISSIONING,SELBORNE ROAD MEDICAL CENTRE,14153209,592.90 
Department of Health,NHS Sheffield CCG,30/09/2016,C&M-PMS QOF Aspiration,PRC DELEGATED CO-COMMISSIONING,SELBORNE ROAD MEDICAL CENTRE,14153209,"2,134.94 "
Department of Health,NHS Sheffield CCG,30/09/2016,Cont Care-Physical Disab (<65),CHC ADULT FULLY FUNDED,SEVEN HILLS NURSING HOME,14119150,"39,061.99 "
Department of Health,NHS Sheffield CCG,30/09/2016,C&M-GMS Cost of Drugs -Prescribing,LOCAL ENHANCED SERVICES,SHARROW LANE MEDICAL CENTRE,14361898,709.93 
Department of Health,NHS Sheffield CCG,30/09/2016,C&M-GMS DES Extended Hours Access,PRC DELEGATED CO-COMMISSIONING,SHARROW LANE MEDICAL CENTRE,14361898,"1,841.10 "
Department of Health,NHS Sheffield CCG,30/09/2016,C&M-GMS Global Sum,PRC DELEGATED CO-COMMISSIONING,SHARROW LANE MEDICAL CENTRE,14361898,"20,473.94 "
Department of Health,NHS Sheffield CCG,30/09/2016,C&M-GMS MPIG Correction Factor,PRC DELEGATED CO-COMMISSIONING,SHARROW LANE MEDICAL CENTRE,14361898,"3,920.64 "
Department of Health,NHS Sheffield CCG,30/09/2016,C&M-GMS PCO Seniority,PRC DELEGATED CO-COMMISSIONING,SHARROW LANE MEDICAL CENTRE,14361898,254.72 
Department of Health,NHS Sheffield CCG,30/09/2016,C&M-GMS Prem Notional Rent,PRC DELEGATED CO-COMMISSIONING,SHARROW LANE MEDICAL CENTRE,14361898,"2,658.33 "
Department of Health,NHS Sheffield CCG,30/09/2016,C&M-GMS Prem Rates,PRC DELEGATED CO-COMMISSIONING,SHARROW LANE MEDICAL CENTRE,14361898,"1,192.80 "
Department of Health,NHS Sheffield CCG,30/09/2016,C&M-GMS Prof Fees Prescribing,PRC DELEGATED CO-COMMISSIONING,SHARROW LANE MEDICAL CENTRE,14361898,100.80 
Department of Health,NHS Sheffield CCG,30/09/2016,C&M-GMS QOF Aspiration,PRC DELEGATED CO-COMMISSIONING,SHARROW LANE MEDICAL CENTRE,14361898,"2,466.40 "
Department of Health,NHS Sheffield CCG,30/09/2016,Hcare Srv Rec Fdtn Trust-CQUIN,ACUTE CHILDRENS SERVICES,SHEFFIELD CHILDRENS NHS FOUNDATION TRUST,14090721,"32,898.00 "
Department of Health,NHS Sheffield CCG,30/09/2016,Hcare Srv Rec Fdtn Trust-CQUIN,COMMUNITY SERVICES,SHEFFIELD CHILDRENS NHS FOUNDATION TRUST,14090721,"4,084.00 "
Department of Health,NHS Sheffield CCG,30/09/2016,Hcare Srv Rec Fdtn Trust-Contract Baseline,ACUTE CHILDRENS SERVICES,SHEFFIELD CHILDRENS NHS FOUNDATION TRUST,14090721,"223,874.82 "
Department of Health,NHS Sheffield CCG,30/09/2016,Hcare Srv Rec Fdtn Trust-Contract Baseline,CHILD AND ADOLESCENT MENTAL HEALTH,SHEFFIELD CHILDRENS NHS FOUNDATION TRUST,14090721,"351,912.00 "
Department of Health,NHS Sheffield CCG,30/09/2016,Hcare Srv Rec Fdtn Trust-Contract Baseline,COMMUNITY SERVICES,SHEFFIELD CHILDRENS NHS FOUNDATION TRUST,14090721,"326,732.00 "
Department of Health,NHS Sheffield CCG,30/09/2016,Hcare Srv Rec Fdtn Trust-Contract Baseline,HIGH COST DRUGS,SHEFFIELD CHILDRENS NHS FOUNDATION TRUST,14090721,"58,683.00 "
Department of Health,NHS Sheffield CCG,30/09/2016,Hcare Srv Rec Fdtn Trust-Contract Baseline,MENTAL HEALTH CONTRACTS,SHEFFIELD CHILDRENS NHS FOUNDATION TRUST,14090721,"3,332.00 "
Department of Health,NHS Sheffield CCG,30/09/2016,Hcare Srv Rec Fdtn Trust-Contract Baseline,PLANNED CARE,SHEFFIELD CHILDRENS NHS FOUNDATION TRUST,14090721,"1,046,640.00 "
Department of Health,NHS Sheffield CCG,30/09/2016,Hcare Srv Rec Fdtn Trust-Contract Baseline,SAFEGUARDING,SHEFFIELD CHILDRENS NHS FOUNDATION TRUST,14090721,"27,458.00 "
Department of Health,NHS Sheffield CCG,30/09/2016,Hcare Srv Rec Fdtn Trust-Contract Baseline,URGENT CARE,SHEFFIELD CHILDRENS NHS FOUNDATION TRUST,14090721,"965,475.00 "
Department of Health,NHS Sheffield CCG,30/09/2016,Clinical&Medical-Othe Public Sector,COMMUNITY SERVICES,SHEFFIELD CITY COUNCIL,14208735,"26,741.00 "
Department of Health,NHS Sheffield CCG,30/09/2016,Clinical&Medical-Othe Public Sector,MENTAL HEALTH SERVICES - COLLABORATIVE COMMISSIONING,SHEFFIELD CITY COUNCIL,14208735,"16,919.00 "
Department of Health,NHS Sheffield CCG,30/09/2016,Clinical&Medical-Othe Public Sector,REABLEMENT,SHEFFIELD CITY COUNCIL,14208735,"(339,583.00)"
Department of Health,NHS Sheffield CCG,30/09/2016,Clinical&Medical-Othe Public Sector,SAFEGUARDING,SHEFFIELD CITY COUNCIL,14208735,"26,425.00 "
Department of Health,NHS Sheffield CCG,30/09/2016,Soc Care-Joint H&C Teams/Working,INTERMEDIATE CARE,SHEFFIELD CITY COUNCIL,14208735,"94,727.00 "
Department of Health,NHS Sheffield CCG,30/09/2016,Soc Care-Learn Disab Servs,LEARNING DIFFICULTIES,SHEFFIELD CITY COUNCIL,14208735,"216,667.00 "
Department of Health,NHS Sheffield CCG,30/09/2016,Soc Care-Other Soc Care,COMMUNITY SERVICES,SHEFFIELD CITY COUNCIL,14208735,"1,051,083.00 "
Department of Health,NHS Sheffield CCG,30/09/2016,Soc Care-Re-ablement services,REABLEMENT,SHEFFIELD CITY COUNCIL,14208735,"56,721.00 "
Department of Health,NHS Sheffield CCG,30/09/2016,Soc Care-Support Prim Care,COMMUNITY SERVICES,SHEFFIELD CITY COUNCIL,14208735,"41,667.00 "
Department of Health,NHS Sheffield CCG,30/09/2016,Cont Care-Physical Disab (65+),CHC ADULT FULLY FUNDED,SHEFFIELD CITY COUNCIL,14283370,"838,461.19 "
Department of Health,NHS Sheffield CCG,30/09/2016,Clinical&Medical-Othe Public Sector,ACUTE CHILDRENS SERVICES,SHEFFIELD CITY COUNCIL,14371465,"80,000.00 "
Department of Health,NHS Sheffield CCG,30/09/2016,Cont Care-Foundation Trust,CHC ADULT FULLY FUNDED,SHEFFIELD HEALTH & SOCIAL CARE NHS FOUNDATION TRUST,14090708,"297,791.00 "
Department of Health,NHS Sheffield CCG,30/09/2016,Cont Care-Foundation Trust,CHC ADULT FULLY FUNDED,SHEFFIELD HEALTH & SOCIAL CARE NHS FOUNDATION TRUST,14091008,"(297,791.00)"
Department of Health,NHS Sheffield CCG,30/09/2016,Cont Care-Foundation Trust,CHC ADULT FULLY FUNDED,SHEFFIELD HEALTH & SOCIAL CARE NHS FOUNDATION TRUST,14091013,"235,291.00 "
Department of Health,NHS Sheffield CCG,30/09/2016,C&M-GMS LES Translation Fees,INTERPRETING SERVICES,SHEFFIELD HEALTH & SOCIAL CARE NHS FOUNDATION TRUST,14117600,"30,993.01 "
Department of Health,NHS Sheffield CCG,30/09/2016,Other Gen Supplies & Srv,CLINICAL GOVERNANCE,SHEFFIELD HEALTH & SOCIAL CARE NHS FOUNDATION TRUST,14117677,"109,764.00 "
Department of Health,NHS Sheffield CCG,30/09/2016,C&M-APMS Contract Value,PRC DELEGATED CO-COMMISSIONING,SHEFFIELD HEALTH & SOCIAL CARE NHS FOUNDATION TRUST,14153325,"117,023.91 "
Department of Health,NHS Sheffield CCG,30/09/2016,C&M-APMS DES Minor Surgery,PRC DELEGATED CO-COMMISSIONING,SHEFFIELD HEALTH & SOCIAL CARE NHS FOUNDATION TRUST,14153325,"7,828.95 "
Department of Health,NHS Sheffield CCG,30/09/2016,C&M-APMS OOH Opt Outs,PRC DELEGATED CO-COMMISSIONING,SHEFFIELD HEALTH & SOCIAL CARE NHS FOUNDATION TRUST,14153325,59.75 
Department of Health,NHS Sheffield CCG,30/09/2016,C&M-PMS QOF Aspiration,PRC DELEGATED CO-COMMISSIONING,SHEFFIELD HEALTH & SOCIAL CARE NHS FOUNDATION TRUST,14153325,"12,212.65 "
Department of Health,NHS Sheffield CCG,30/09/2016,C&M-APMS Contract Value,PRC DELEGATED CO-COMMISSIONING,SHEFFIELD HEALTH & SOCIAL CARE NHS FOUNDATION TRUST,14172022,"28,392.36 "
Department of Health,NHS Sheffield CCG,30/09/2016,C&M-APMS DES Minor Surgery,PRC DELEGATED CO-COMMISSIONING,SHEFFIELD HEALTH & SOCIAL CARE NHS FOUNDATION TRUST,14172022,"2,367.88 "
Department of Health,NHS Sheffield CCG,30/09/2016,C&M-APMS OOH Opt Outs,PRC DELEGATED CO-COMMISSIONING,SHEFFIELD HEALTH & SOCIAL CARE NHS FOUNDATION TRUST,14172022,187.52 
Department of Health,NHS Sheffield CCG,30/09/2016,Hcare Srv Rec Fdtn Trust-Contract Baseline,MENTAL HEALTH CONTRACTS,SHEFFIELD HEALTH & SOCIAL CARE NHS FOUNDATION TRUST,14221240,"6,067,956.50 "
Department of Health,NHS Sheffield CCG,30/09/2016,Cont Care-Foundation Trust,CHC ADULT FULLY FUNDED,SHEFFIELD HEALTH & SOCIAL CARE NHS FOUNDATION TRUST,14282630,"235,291.00 "
Department of Health,NHS Sheffield CCG,30/09/2016,C&M-GMS LES Primary Care Offer,LOCAL ENHANCED SERVICES,SHEFFIELD HEALTH & SOCIAL CARE NHS FOUNDATION TRUST,14295459,"83,334.00 "
Department of Health,NHS Sheffield CCG,30/09/2016,Hcare Srv Rec Fdtn Trust-Contract Baseline,LEARNING DIFFICULTIES,SHEFFIELD HEALTH & SOCIAL CARE NHS FOUNDATION TRUST,14371224,"41,487.00 "
Department of Health,NHS Sheffield CCG,30/09/2016,C&M-PMS Baseline Adjustment,PRC DELEGATED CO-COMMISSIONING,SHEFFIELD MEDICAL CENTRE,14153219,"1,302.58 "
Department of Health,NHS Sheffield CCG,30/09/2016,C&M-PMS Contract Value,PRC DELEGATED CO-COMMISSIONING,SHEFFIELD MEDICAL CENTRE,14153219,"25,746.84 "
Department of Health,NHS Sheffield CCG,30/09/2016,C&M-PMS DES UNPLANNED ADMISSIONS,PRC DELEGATED CO-COMMISSIONING,SHEFFIELD MEDICAL CENTRE,14153219,"2,182.53 "
Department of Health,NHS Sheffield CCG,30/09/2016,C&M-PMS Out of Hours Opt Outs,PRC DELEGATED CO-COMMISSIONING,SHEFFIELD MEDICAL CENTRE,14153219,(604.00)
Department of Health,NHS Sheffield CCG,30/09/2016,C&M-PMS PCO Seniority,PRC DELEGATED CO-COMMISSIONING,SHEFFIELD MEDICAL CENTRE,14153219,"1,048.32 "
Department of Health,NHS Sheffield CCG,30/09/2016,C&M-PMS Prem Notional Rent,PRC DELEGATED CO-COMMISSIONING,SHEFFIELD MEDICAL CENTRE,14153219,"2,125.00 "
Department of Health,NHS Sheffield CCG,30/09/2016,C&M-PMS Prem Rates,PRC DELEGATED CO-COMMISSIONING,SHEFFIELD MEDICAL CENTRE,14153219,859.10 
Department of Health,NHS Sheffield CCG,30/09/2016,C&M-PMS Prem Water Rates,PRC DELEGATED CO-COMMISSIONING,SHEFFIELD MEDICAL CENTRE,14153219,77.71 
Department of Health,NHS Sheffield CCG,30/09/2016,C&M-PMS QOF Aspiration,PRC DELEGATED CO-COMMISSIONING,SHEFFIELD MEDICAL CENTRE,14153219,"1,461.52 "
Department of Health,NHS Sheffield CCG,30/09/2016,Hcare Srv Rec Fdtn Trust-Contract Baseline,ACUTE COMMISSIONING,SHEFFIELD TEACHING HOSPITALS NHS FOUNDATION TRUST,14093091,"1,027,677.00 "
Department of Health,NHS Sheffield CCG,30/09/2016,Hcare Srv Rec Fdtn Trust-Contract Baseline,ACUTE COMMISSIONING,SHEFFIELD TEACHING HOSPITALS NHS FOUNDATION TRUST,14093233,"733,594.00 "
Department of Health,NHS Sheffield CCG,30/09/2016,Hcare Srv Rec Fdtn Trust-Contract Baseline,ACUTE COMMISSIONING,SHEFFIELD TEACHING HOSPITALS NHS FOUNDATION TRUST,14093235,"208,214.00 "
Department of Health,NHS Sheffield CCG,30/09/2016,Hcare Srv Rec Fdtn Trust-Contract Baseline,ACUTE COMMISSIONING,SHEFFIELD TEACHING HOSPITALS NHS FOUNDATION TRUST,14093240,"328,758.00 "
Department of Health,NHS Sheffield CCG,30/09/2016,Hcare Srv Rec Fdtn Trust-Contract Baseline,ACUTE COMMISSIONING,SHEFFIELD TEACHING HOSPITALS NHS FOUNDATION TRUST,14093244,"3,364,726.00 "
Department of Health,NHS Sheffield CCG,30/09/2016,Hcare Srv Rec Fdtn Trust-Contract Baseline,ACUTE COMMISSIONING,SHEFFIELD TEACHING HOSPITALS NHS FOUNDATION TRUST,14093261,"27,293,145.00 "
Department of Health,NHS Sheffield CCG,30/09/2016,C&M-GMS Cost of Drugs -Prescribing,LOCAL ENHANCED SERVICES,SHIREGREEN MEDICAL CENTRE,14361905,"1,599.84 "
Department of Health,NHS Sheffield CCG,30/09/2016,C&M-GMS DES Extended Hours Access,PRC DELEGATED CO-COMMISSIONING,SHIREGREEN MEDICAL CENTRE,14361905,"3,605.25 "
Department of Health,NHS Sheffield CCG,30/09/2016,C&M-GMS Global Sum,PRC DELEGATED CO-COMMISSIONING,SHIREGREEN MEDICAL CENTRE,14361905,"50,832.15 "
Department of Health,NHS Sheffield CCG,30/09/2016,C&M-GMS MPIG Correction Factor,PRC DELEGATED CO-COMMISSIONING,SHIREGREEN MEDICAL CENTRE,14361905,907.38 
Department of Health,NHS Sheffield CCG,30/09/2016,C&M-GMS PCO Seniority,PRC DELEGATED CO-COMMISSIONING,SHIREGREEN MEDICAL CENTRE,14361905,"3,619.53 "
Department of Health,NHS Sheffield CCG,30/09/2016,C&M-GMS Prem Cost Rent,PRC DELEGATED CO-COMMISSIONING,SHIREGREEN MEDICAL CENTRE,14361905,"1,792.33 "
Department of Health,NHS Sheffield CCG,30/09/2016,C&M-GMS Prem Notional Rent,PRC DELEGATED CO-COMMISSIONING,SHIREGREEN MEDICAL CENTRE,14361905,"5,250.00 "
Department of Health,NHS Sheffield CCG,30/09/2016,C&M-GMS Prem Rates,PRC DELEGATED CO-COMMISSIONING,SHIREGREEN MEDICAL CENTRE,14361905,"2,562.63 "
Department of Health,NHS Sheffield CCG,30/09/2016,C&M-GMS Prof Fees Prescribing,PRC DELEGATED CO-COMMISSIONING,SHIREGREEN MEDICAL CENTRE,14361905,219.52 
Department of Health,NHS Sheffield CCG,30/09/2016,C&M-GMS QOF Aspiration,PRC DELEGATED CO-COMMISSIONING,SHIREGREEN MEDICAL CENTRE,14361905,"5,994.92 "
Department of Health,NHS Sheffield CCG,30/09/2016,C&M-PMS Contract Value,PRC DELEGATED CO-COMMISSIONING,SLOAN MEDICAL CENTRE,14153212,"(75,956.58)"
Department of Health,NHS Sheffield CCG,30/09/2016,C&M-PMS GP Statutory Levy,PRC DELEGATED CO-COMMISSIONING,SLOAN MEDICAL CENTRE,14153212,(376.92)
Department of Health,NHS Sheffield CCG,30/09/2016,C&M-PMS Out of Hours Opt Outs,PRC DELEGATED CO-COMMISSIONING,SLOAN MEDICAL CENTRE,14153212,(257.58)
Department of Health,NHS Sheffield CCG,30/09/2016,C&M-PMS Voluntary Levy,PRC DELEGATED CO-COMMISSIONING,SLOAN MEDICAL CENTRE,14153212,(62.82)
Department of Health,NHS Sheffield CCG,30/09/2016,ME - PMS TPS Added Years Adj EEs,PRC DELEGATED CO-COMMISSIONING,SLOAN MEDICAL CENTRE,14153212,(325.88)
Department of Health,NHS Sheffield CCG,30/09/2016,C&M-PMS Baseline Adjustment,PRC DELEGATED CO-COMMISSIONING,SLOAN MEDICAL CENTRE,14153213,330.58 
Department of Health,NHS Sheffield CCG,30/09/2016,C&M-PMS Contract Value,PRC DELEGATED CO-COMMISSIONING,SLOAN MEDICAL CENTRE,14153213,"162,970.85 "
Department of Health,NHS Sheffield CCG,30/09/2016,C&M-PMS DES Minor Surgery,PRC DELEGATED CO-COMMISSIONING,SLOAN MEDICAL CENTRE,14153213,"5,967.90 "
Department of Health,NHS Sheffield CCG,30/09/2016,C&M-PMS DES UNPLANNED ADMISSIONS,PRC DELEGATED CO-COMMISSIONING,SLOAN MEDICAL CENTRE,14153213,"16,715.44 "
Department of Health,NHS Sheffield CCG,30/09/2016,C&M-PMS Out of Hours Opt Outs,PRC DELEGATED CO-COMMISSIONING,SLOAN MEDICAL CENTRE,14153213,"(4,015.17)"
Department of Health,NHS Sheffield CCG,30/09/2016,C&M-PMS PCO Seniority,PRC DELEGATED CO-COMMISSIONING,SLOAN MEDICAL CENTRE,14153213,"8,294.01 "
Department of Health,NHS Sheffield CCG,30/09/2016,C&M-PMS Prem Actual Rent,PRC DELEGATED CO-COMMISSIONING,SLOAN MEDICAL CENTRE,14153213,"15,943.33 "
Department of Health,NHS Sheffield CCG,30/09/2016,C&M-PMS Prem Notional Rent,PRC DELEGATED CO-COMMISSIONING,SLOAN MEDICAL CENTRE,14153213,608.33 
Department of Health,NHS Sheffield CCG,30/09/2016,C&M-PMS Prem Rates,PRC DELEGATED CO-COMMISSIONING,SLOAN MEDICAL CENTRE,14153213,"7,017.60 "
Department of Health,NHS Sheffield CCG,30/09/2016,C&M-PMS Prem Water Rates,PRC DELEGATED CO-COMMISSIONING,SLOAN MEDICAL CENTRE,14153213,375.86 
Department of Health,NHS Sheffield CCG,30/09/2016,C&M-PMS QOF Aspiration,PRC DELEGATED CO-COMMISSIONING,SLOAN MEDICAL CENTRE,14153213,"9,653.87 "
Department of Health,NHS Sheffield CCG,30/09/2016,C&M-PMS Contract Value,PRC DELEGATED CO-COMMISSIONING,SOTHALL MEDICAL CENTRE,14153214,"(66,727.53)"
Department of Health,NHS Sheffield CCG,30/09/2016,C&M-PMS GP Statutory Levy,PRC DELEGATED CO-COMMISSIONING,SOTHALL MEDICAL CENTRE,14153214,(309.06)
Department of Health,NHS Sheffield CCG,30/09/2016,C&M-PMS Out of Hours Opt Outs,PRC DELEGATED CO-COMMISSIONING,SOTHALL MEDICAL CENTRE,14153214,(60.94)
Department of Health,NHS Sheffield CCG,30/09/2016,C&M-PMS Voluntary Levy,PRC DELEGATED CO-COMMISSIONING,SOTHALL MEDICAL CENTRE,14153214,(51.51)
Department of Health,NHS Sheffield CCG,30/09/2016,ME - PMS TPS Added Years Adj EEs,PRC DELEGATED CO-COMMISSIONING,SOTHALL MEDICAL CENTRE,14153214,(249.98)
Department of Health,NHS Sheffield CCG,30/09/2016,C&M-PMS Baseline Adjustment,PRC DELEGATED CO-COMMISSIONING,SOTHALL MEDICAL CENTRE,14153215,"6,927.58 "
Department of Health,NHS Sheffield CCG,30/09/2016,C&M-PMS Contract Value,PRC DELEGATED CO-COMMISSIONING,SOTHALL MEDICAL CENTRE,14153215,"132,609.62 "
Department of Health,NHS Sheffield CCG,30/09/2016,C&M-PMS DES Minor Surgery,PRC DELEGATED CO-COMMISSIONING,SOTHALL MEDICAL CENTRE,14153215,"4,893.45 "
Department of Health,NHS Sheffield CCG,30/09/2016,C&M-PMS DES UNPLANNED ADMISSIONS,PRC DELEGATED CO-COMMISSIONING,SOTHALL MEDICAL CENTRE,14153215,"13,710.97 "
Department of Health,NHS Sheffield CCG,30/09/2016,C&M-PMS Out of Hours Opt Outs,PRC DELEGATED CO-COMMISSIONING,SOTHALL MEDICAL CENTRE,14153215,"(3,167.85)"
Department of Health,NHS Sheffield CCG,30/09/2016,C&M-PMS PCO Seniority,PRC DELEGATED CO-COMMISSIONING,SOTHALL MEDICAL CENTRE,14153215,"7,092.64 "
Department of Health,NHS Sheffield CCG,30/09/2016,C&M-PMS Prem Healthcentre Rent,PRC DELEGATED CO-COMMISSIONING,SOTHALL MEDICAL CENTRE,14153215,"1,302.92 "
Department of Health,NHS Sheffield CCG,30/09/2016,C&M-PMS Prem Notional Rent,PRC DELEGATED CO-COMMISSIONING,SOTHALL MEDICAL CENTRE,14153215,"5,116.67 "
Department of Health,NHS Sheffield CCG,30/09/2016,C&M-PMS Prem Rates,PRC DELEGATED CO-COMMISSIONING,SOTHALL MEDICAL CENTRE,14153215,894.60 
Department of Health,NHS Sheffield CCG,30/09/2016,C&M-PMS QOF Aspiration,PRC DELEGATED CO-COMMISSIONING,SOTHALL MEDICAL CENTRE,14153215,"8,054.95 "
Department of Health,NHS Sheffield CCG,30/09/2016,Cont Care-Physical Disab (<65),CHC ADULT FULLY FUNDED,SOUTH YORKSHIRE HOUSING ASSOCIATION LTD,14119551,"66,731.00 "
Department of Health,NHS Sheffield CCG,30/09/2016,Clinical&Medical-Independent Sector,MENTAL HEALTH CONTRACTS,SOUTH YORKSHIRE HOUSING ASSOCIATION LTD,14316310,"34,435.00 "
Department of Health,NHS Sheffield CCG,30/09/2016,Cont Care- Adult 100% Fully Funded,CHC ADULT FULLY FUNDED,SOUTH YORKSHIRE HOUSING ASSOCIATION LTD,14316480,"103,928.00 "
Department of Health,NHS Sheffield CCG,30/09/2016,C&M-PMS Contract Value,PRC DELEGATED CO-COMMISSIONING,SOUTHEY GREEN MEDICAL CENTRE,14153216,"(22,270.76)"
Department of Health,NHS Sheffield CCG,30/09/2016,C&M-PMS GP Statutory Levy,PRC DELEGATED CO-COMMISSIONING,SOUTHEY GREEN MEDICAL CENTRE,14153216,(88.05)
Department of Health,NHS Sheffield CCG,30/09/2016,C&M-PMS Out of Hours Opt Outs,PRC DELEGATED CO-COMMISSIONING,SOUTHEY GREEN MEDICAL CENTRE,14153216,(16.89)
Department of Health,NHS Sheffield CCG,30/09/2016,C&M-PMS Voluntary Levy,PRC DELEGATED CO-COMMISSIONING,SOUTHEY GREEN MEDICAL CENTRE,14153216,(14.68)
Department of Health,NHS Sheffield CCG,30/09/2016,C&M-PMS Baseline Adjustment,PRC DELEGATED CO-COMMISSIONING,SOUTHEY GREEN MEDICAL CENTRE,14153217,255.08 
Department of Health,NHS Sheffield CCG,30/09/2016,C&M-PMS Contract Value,PRC DELEGATED CO-COMMISSIONING,SOUTHEY GREEN MEDICAL CENTRE,14153217,"46,027.33 "
Department of Health,NHS Sheffield CCG,30/09/2016,C&M-PMS DES Minor Surgery,PRC DELEGATED CO-COMMISSIONING,SOUTHEY GREEN MEDICAL CENTRE,14153217,"1,394.13 "
Department of Health,NHS Sheffield CCG,30/09/2016,C&M-PMS Out of Hours Opt Outs,PRC DELEGATED CO-COMMISSIONING,SOUTHEY GREEN MEDICAL CENTRE,14153217,"(1,142.68)"
Department of Health,NHS Sheffield CCG,30/09/2016,C&M-PMS PCO Seniority,PRC DELEGATED CO-COMMISSIONING,SOUTHEY GREEN MEDICAL CENTRE,14153217,"1,410.66 "
Department of Health,NHS Sheffield CCG,30/09/2016,C&M-PMS Prem Notional Rent,PRC DELEGATED CO-COMMISSIONING,SOUTHEY GREEN MEDICAL CENTRE,14153217,"3,362.50 "
Department of Health,NHS Sheffield CCG,30/09/2016,C&M-PMS QOF Aspiration,PRC DELEGATED CO-COMMISSIONING,SOUTHEY GREEN MEDICAL CENTRE,14153217,"2,611.21 "
Department of Health,NHS Sheffield CCG,30/09/2016,C&M-GMS DES Extended Hours Access,PRC DELEGATED CO-COMMISSIONING,STANNINGTON MEDICAL CENTRE,14361909,"1,459.20 "
Department of Health,NHS Sheffield CCG,30/09/2016,C&M-GMS DES UNPLANNED ADMISSIONS,PRC DELEGATED CO-COMMISSIONING,STANNINGTON MEDICAL CENTRE,14361909,"4,085.76 "
Department of Health,NHS Sheffield CCG,30/09/2016,C&M-GMS Global Sum,PRC DELEGATED CO-COMMISSIONING,STANNINGTON MEDICAL CENTRE,14361909,"20,944.51 "
Department of Health,NHS Sheffield CCG,30/09/2016,C&M-GMS PCO Seniority,PRC DELEGATED CO-COMMISSIONING,STANNINGTON MEDICAL CENTRE,14361909,"1,654.35 "
Department of Health,NHS Sheffield CCG,30/09/2016,C&M-GMS Prem Notional Rent,PRC DELEGATED CO-COMMISSIONING,STANNINGTON MEDICAL CENTRE,14361909,"2,533.33 "
Department of Health,NHS Sheffield CCG,30/09/2016,C&M-GMS Prem Rates,PRC DELEGATED CO-COMMISSIONING,STANNINGTON MEDICAL CENTRE,14361909,450.12 
Department of Health,NHS Sheffield CCG,30/09/2016,C&M-GMS QOF Aspiration,PRC DELEGATED CO-COMMISSIONING,STANNINGTON MEDICAL CENTRE,14361909,"2,958.00 "
Department of Health,NHS Sheffield CCG,30/09/2016,Cont Care-Mental Health (65+),CHC ADULT FULLY FUNDED,CHC RETRO,14113395,"39,726.93 "
Department of Health,NHS Sheffield CCG,30/09/2016,C&M-GMS Cost of Drugs -Prescribing,LOCAL ENHANCED SERVICES,STONECROFT MEDICAL CENTRE,14361907,394.07 
Department of Health,NHS Sheffield CCG,30/09/2016,C&M-GMS DES Extended Hours Access,PRC DELEGATED CO-COMMISSIONING,STONECROFT MEDICAL CENTRE,14361907,"1,938.00 "
Department of Health,NHS Sheffield CCG,30/09/2016,C&M-GMS DES UNPLANNED ADMISSIONS,PRC DELEGATED CO-COMMISSIONING,STONECROFT MEDICAL CENTRE,14361907,"5,427.73 "
Department of Health,NHS Sheffield CCG,30/09/2016,C&M-GMS Global Sum,PRC DELEGATED CO-COMMISSIONING,STONECROFT MEDICAL CENTRE,14361907,"27,782.81 "
Department of Health,NHS Sheffield CCG,30/09/2016,C&M-GMS MPIG Correction Factor,PRC DELEGATED CO-COMMISSIONING,STONECROFT MEDICAL CENTRE,14361907,"1,236.50 "
Department of Health,NHS Sheffield CCG,30/09/2016,C&M-GMS PCO Seniority,PRC DELEGATED CO-COMMISSIONING,STONECROFT MEDICAL CENTRE,14361907,"2,394.68 "
Department of Health,NHS Sheffield CCG,30/09/2016,C&M-GMS Prem Notional Rent,PRC DELEGATED CO-COMMISSIONING,STONECROFT MEDICAL CENTRE,14361907,"2,808.33 "
Department of Health,NHS Sheffield CCG,30/09/2016,C&M-GMS Prem Rates,PRC DELEGATED CO-COMMISSIONING,STONECROFT MEDICAL CENTRE,14361907,969.15 
Department of Health,NHS Sheffield CCG,30/09/2016,C&M-GMS Prem Water Rates,PRC DELEGATED CO-COMMISSIONING,STONECROFT MEDICAL CENTRE,14361907,445.75 
Department of Health,NHS Sheffield CCG,30/09/2016,C&M-GMS Prof Fees Prescribing,PRC DELEGATED CO-COMMISSIONING,STONECROFT MEDICAL CENTRE,14361907,91.84 
Department of Health,NHS Sheffield CCG,30/09/2016,C&M-GMS QOF Aspiration,PRC DELEGATED CO-COMMISSIONING,STONECROFT MEDICAL CENTRE,14361907,"3,829.15 "
Department of Health,NHS Sheffield CCG,30/09/2016,C&M-GMS Cost of Drugs -Prescribing,LOCAL ENHANCED SERVICES,TOTLEY RISE MEDICAL CENTRE,14361911,250.85 
Department of Health,NHS Sheffield CCG,30/09/2016,C&M-GMS Global Sum,PRC DELEGATED CO-COMMISSIONING,TOTLEY RISE MEDICAL CENTRE,14361911,"20,362.75 "
Department of Health,NHS Sheffield CCG,30/09/2016,C&M-GMS MPIG Correction Factor,PRC DELEGATED CO-COMMISSIONING,TOTLEY RISE MEDICAL CENTRE,14361911,206.27 
Department of Health,NHS Sheffield CCG,30/09/2016,C&M-GMS PCO Seniority,PRC DELEGATED CO-COMMISSIONING,TOTLEY RISE MEDICAL CENTRE,14361911,"2,062.79 "
Department of Health,NHS Sheffield CCG,30/09/2016,C&M-GMS Prem Notional Rent,PRC DELEGATED CO-COMMISSIONING,TOTLEY RISE MEDICAL CENTRE,14361911,"1,491.67 "
Department of Health,NHS Sheffield CCG,30/09/2016,C&M-GMS Prem Rates,PRC DELEGATED CO-COMMISSIONING,TOTLEY RISE MEDICAL CENTRE,14361911,131.80 
Department of Health,NHS Sheffield CCG,30/09/2016,C&M-GMS Prof Fees Prescribing,PRC DELEGATED CO-COMMISSIONING,TOTLEY RISE MEDICAL CENTRE,14361911,38.08 
Department of Health,NHS Sheffield CCG,30/09/2016,C&M-GMS QOF Aspiration,PRC DELEGATED CO-COMMISSIONING,TOTLEY RISE MEDICAL CENTRE,14361911,"2,064.44 "
Department of Health,NHS Sheffield CCG,30/09/2016,C&M-GMS Cost of Drugs -Prescribing,LOCAL ENHANCED SERVICES,TRAMWAYS MEDICAL CENTRE,14361913,"2,268.78 "
Department of Health,NHS Sheffield CCG,30/09/2016,C&M-GMS DES Extended Hours Access,PRC DELEGATED CO-COMMISSIONING,TRAMWAYS MEDICAL CENTRE,14361913,"4,044.63 "
Department of Health,NHS Sheffield CCG,30/09/2016,C&M-GMS DES Learn Dsblty Hlth Chk,PRC DELEGATED CO-COMMISSIONING,TRAMWAYS MEDICAL CENTRE,14361913,232.00 
Department of Health,NHS Sheffield CCG,30/09/2016,C&M-GMS DES UNPLANNED ADMISSIONS,PRC DELEGATED CO-COMMISSIONING,TRAMWAYS MEDICAL CENTRE,14361913,"11,327.61 "
Department of Health,NHS Sheffield CCG,30/09/2016,C&M-GMS Global Sum,PRC DELEGATED CO-COMMISSIONING,TRAMWAYS MEDICAL CENTRE,14361913,"55,103.99 "
Department of Health,NHS Sheffield CCG,30/09/2016,C&M-GMS PCO Seniority,PRC DELEGATED CO-COMMISSIONING,TRAMWAYS MEDICAL CENTRE,14361913,"6,569.92 "
Department of Health,NHS Sheffield CCG,30/09/2016,C&M-GMS Prem Cost Rent,PRC DELEGATED CO-COMMISSIONING,TRAMWAYS MEDICAL CENTRE,14361913,"4,012.75 "
Department of Health,NHS Sheffield CCG,30/09/2016,C&M-GMS Prem Rates,PRC DELEGATED CO-COMMISSIONING,TRAMWAYS MEDICAL CENTRE,14361913,774.40 
Department of Health,NHS Sheffield CCG,30/09/2016,C&M-GMS Prof Fees Prescribing,PRC DELEGATED CO-COMMISSIONING,TRAMWAYS MEDICAL CENTRE,14361913,226.24 
Department of Health,NHS Sheffield CCG,30/09/2016,C&M-GMS QOF Aspiration,PRC DELEGATED CO-COMMISSIONING,TRAMWAYS MEDICAL CENTRE,14361913,"5,763.61 "
Department of Health,NHS Sheffield CCG,30/09/2016,C&M-PMS Contract Value,PRC DELEGATED CO-COMMISSIONING,UNIVERSITY HEALTH SERVICE,14153220,"(133,095.72)"
Department of Health,NHS Sheffield CCG,30/09/2016,C&M-PMS GP Statutory Levy,PRC DELEGATED CO-COMMISSIONING,UNIVERSITY HEALTH SERVICE,14153220,(877.80)
Department of Health,NHS Sheffield CCG,30/09/2016,C&M-PMS Out of Hours Opt Outs,PRC DELEGATED CO-COMMISSIONING,UNIVERSITY HEALTH SERVICE,14153220,(93.87)
Department of Health,NHS Sheffield CCG,30/09/2016,C&M-PMS Voluntary Levy,PRC DELEGATED CO-COMMISSIONING,UNIVERSITY HEALTH SERVICE,14153220,(146.30)
Department of Health,NHS Sheffield CCG,30/09/2016,C&M-PMS Contract Value,PRC DELEGATED CO-COMMISSIONING,UNIVERSITY HEALTH SERVICE,14153221,"247,840.22 "
Department of Health,NHS Sheffield CCG,30/09/2016,C&M-PMS DES UNPLANNED ADMISSIONS,PRC DELEGATED CO-COMMISSIONING,UNIVERSITY HEALTH SERVICE,14153221,"38,974.32 "
Department of Health,NHS Sheffield CCG,30/09/2016,C&M-PMS Out of Hours Opt Outs,PRC DELEGATED CO-COMMISSIONING,UNIVERSITY HEALTH SERVICE,14153221,"(5,707.04)"
Department of Health,NHS Sheffield CCG,30/09/2016,C&M-PMS PCO Seniority,PRC DELEGATED CO-COMMISSIONING,UNIVERSITY HEALTH SERVICE,14153221,"6,979.03 "
Department of Health,NHS Sheffield CCG,30/09/2016,C&M-PMS Prem Notional Rent,PRC DELEGATED CO-COMMISSIONING,UNIVERSITY HEALTH SERVICE,14153221,"15,833.33 "
Department of Health,NHS Sheffield CCG,30/09/2016,C&M-PMS QOF Aspiration,PRC DELEGATED CO-COMMISSIONING,UNIVERSITY HEALTH SERVICE,14153221,"2,932.96 "
Department of Health,NHS Sheffield CCG,30/09/2016,C&M-GMS Cost of Drugs -Prescribing,LOCAL ENHANCED SERVICES,UPPERTHORPE MEDICAL CENTRE,14361916,"2,073.58 "
Department of Health,NHS Sheffield CCG,30/09/2016,C&M-GMS DES Extended Hours Access,PRC DELEGATED CO-COMMISSIONING,UPPERTHORPE MEDICAL CENTRE,14361916,"5,292.93 "
Department of Health,NHS Sheffield CCG,30/09/2016,C&M-GMS DES UNPLANNED ADMISSIONS,PRC DELEGATED CO-COMMISSIONING,UPPERTHORPE MEDICAL CENTRE,14361916,"14,821.52 "
Department of Health,NHS Sheffield CCG,30/09/2016,C&M-GMS Global Sum,PRC DELEGATED CO-COMMISSIONING,UPPERTHORPE MEDICAL CENTRE,14361916,"73,343.45 "
Department of Health,NHS Sheffield CCG,30/09/2016,C&M-GMS MPIG Correction Factor,PRC DELEGATED CO-COMMISSIONING,UPPERTHORPE MEDICAL CENTRE,14361916,"2,651.47 "
Department of Health,NHS Sheffield CCG,30/09/2016,C&M-GMS PCO Seniority,PRC DELEGATED CO-COMMISSIONING,UPPERTHORPE MEDICAL CENTRE,14361916,"4,488.28 "
Department of Health,NHS Sheffield CCG,30/09/2016,C&M-GMS Prem Notional Rent,PRC DELEGATED CO-COMMISSIONING,UPPERTHORPE MEDICAL CENTRE,14361916,"2,497.83 "
Department of Health,NHS Sheffield CCG,30/09/2016,C&M-GMS Prem Rates,PRC DELEGATED CO-COMMISSIONING,UPPERTHORPE MEDICAL CENTRE,14361916,"1,857.65 "
Department of Health,NHS Sheffield CCG,30/09/2016,C&M-GMS Prof Fees Prescribing,PRC DELEGATED CO-COMMISSIONING,UPPERTHORPE MEDICAL CENTRE,14361916,228.48 
Department of Health,NHS Sheffield CCG,30/09/2016,C&M-GMS QOF Aspiration,PRC DELEGATED CO-COMMISSIONING,UPPERTHORPE MEDICAL CENTRE,14361916,"8,458.19 "
Department of Health,NHS Sheffield CCG,30/09/2016,C&M-PMS Contract Value,PRC DELEGATED CO-COMMISSIONING,UPWELL STREET SURGERY,14153222,"(37,661.46)"
Department of Health,NHS Sheffield CCG,30/09/2016,C&M-PMS GP Statutory Levy,PRC DELEGATED CO-COMMISSIONING,UPWELL STREET SURGERY,14153222,(146.55)
Department of Health,NHS Sheffield CCG,30/09/2016,C&M-PMS Out of Hours Opt Outs,PRC DELEGATED CO-COMMISSIONING,UPWELL STREET SURGERY,14153222,(25.34)
Department of Health,NHS Sheffield CCG,30/09/2016,C&M-PMS Voluntary Levy,PRC DELEGATED CO-COMMISSIONING,UPWELL STREET SURGERY,14153222,(24.43)
Department of Health,NHS Sheffield CCG,30/09/2016,ME - PMS TPS Added Years Adj EEs,PRC DELEGATED CO-COMMISSIONING,UPWELL STREET SURGERY,14153222,(710.01)
Department of Health,NHS Sheffield CCG,30/09/2016,C&M-PMS Baseline Adjustment,PRC DELEGATED CO-COMMISSIONING,UPWELL STREET SURGERY,14153223,"4,009.00 "
Department of Health,NHS Sheffield CCG,30/09/2016,C&M-PMS Contract Value,PRC DELEGATED CO-COMMISSIONING,UPWELL STREET SURGERY,14153223,"72,939.71 "
Department of Health,NHS Sheffield CCG,30/09/2016,C&M-PMS DES Minor Surgery,PRC DELEGATED CO-COMMISSIONING,UPWELL STREET SURGERY,14153223,"2,320.38 "
Department of Health,NHS Sheffield CCG,30/09/2016,C&M-PMS Out of Hours Opt Outs,PRC DELEGATED CO-COMMISSIONING,UPWELL STREET SURGERY,14153223,"(1,694.51)"
Department of Health,NHS Sheffield CCG,30/09/2016,C&M-PMS PCO Seniority,PRC DELEGATED CO-COMMISSIONING,UPWELL STREET SURGERY,14153223,"4,283.17 "
Department of Health,NHS Sheffield CCG,30/09/2016,C&M-PMS Prem Notional Rent,PRC DELEGATED CO-COMMISSIONING,UPWELL STREET SURGERY,14153223,"8,137.50 "
Department of Health,NHS Sheffield CCG,30/09/2016,C&M-PMS Prem Rates,PRC DELEGATED CO-COMMISSIONING,UPWELL STREET SURGERY,14153223,880.10 
Department of Health,NHS Sheffield CCG,30/09/2016,C&M-PMS QOF Aspiration,PRC DELEGATED CO-COMMISSIONING,UPWELL STREET SURGERY,14153223,"4,428.32 "
Department of Health,NHS Sheffield CCG,30/09/2016,C&M-PMS Contract Value,PRC DELEGATED CO-COMMISSIONING,VALLEY MEDICAL CENTRE,14153224,"(64,246.59)"
Department of Health,NHS Sheffield CCG,30/09/2016,C&M-PMS GP Statutory Levy,PRC DELEGATED CO-COMMISSIONING,VALLEY MEDICAL CENTRE,14153224,(284.67)
Department of Health,NHS Sheffield CCG,30/09/2016,C&M-PMS Out of Hours Opt Outs,PRC DELEGATED CO-COMMISSIONING,VALLEY MEDICAL CENTRE,14153224,(49.44)
Department of Health,NHS Sheffield CCG,30/09/2016,C&M-PMS Voluntary Levy,PRC DELEGATED CO-COMMISSIONING,VALLEY MEDICAL CENTRE,14153224,(47.45)
Department of Health,NHS Sheffield CCG,30/09/2016,ME - PMS TPS Added Years Adj EEs,PRC DELEGATED CO-COMMISSIONING,VALLEY MEDICAL CENTRE,14153224,(237.26)
Department of Health,NHS Sheffield CCG,30/09/2016,C&M-PMS Baseline Adjustment,PRC DELEGATED CO-COMMISSIONING,VALLEY MEDICAL CENTRE,14153225,542.25 
Department of Health,NHS Sheffield CCG,30/09/2016,C&M-PMS Contract Value,PRC DELEGATED CO-COMMISSIONING,VALLEY MEDICAL CENTRE,14153225,"133,902.27 "
Department of Health,NHS Sheffield CCG,30/09/2016,C&M-PMS DES UNPLANNED ADMISSIONS,PRC DELEGATED CO-COMMISSIONING,VALLEY MEDICAL CENTRE,14153225,"12,623.03 "
Department of Health,NHS Sheffield CCG,30/09/2016,C&M-PMS Out of Hours Opt Outs,PRC DELEGATED CO-COMMISSIONING,VALLEY MEDICAL CENTRE,14153225,"(3,358.61)"
Department of Health,NHS Sheffield CCG,30/09/2016,C&M-PMS PCO Seniority,PRC DELEGATED CO-COMMISSIONING,VALLEY MEDICAL CENTRE,14153225,"6,654.07 "
Department of Health,NHS Sheffield CCG,30/09/2016,C&M-PMS Prem Notional Rent,PRC DELEGATED CO-COMMISSIONING,VALLEY MEDICAL CENTRE,14153225,"6,979.17 "
Department of Health,NHS Sheffield CCG,30/09/2016,C&M-PMS Prem Rates,PRC DELEGATED CO-COMMISSIONING,VALLEY MEDICAL CENTRE,14153225,969.15 
Department of Health,NHS Sheffield CCG,30/09/2016,C&M-PMS QOF Aspiration,PRC DELEGATED CO-COMMISSIONING,VALLEY MEDICAL CENTRE,14153225,"8,284.48 "
Department of Health,NHS Sheffield CCG,30/09/2016,C&M-GMS Cost of Drugs -Prescribing,LOCAL ENHANCED SERVICES,WALKLEY HOUSE MEDICAL CENTRE,14361922,"1,534.33 "
Department of Health,NHS Sheffield CCG,30/09/2016,C&M-GMS Global Sum,PRC DELEGATED CO-COMMISSIONING,WALKLEY HOUSE MEDICAL CENTRE,14361922,"71,960.25 "
Department of Health,NHS Sheffield CCG,30/09/2016,C&M-GMS PCO Seniority,PRC DELEGATED CO-COMMISSIONING,WALKLEY HOUSE MEDICAL CENTRE,14361922,"7,422.87 "
Department of Health,NHS Sheffield CCG,30/09/2016,C&M-GMS Prem Notional Rent,PRC DELEGATED CO-COMMISSIONING,WALKLEY HOUSE MEDICAL CENTRE,14361922,"5,581.34 "
Department of Health,NHS Sheffield CCG,30/09/2016,C&M-GMS Prem Rates,PRC DELEGATED CO-COMMISSIONING,WALKLEY HOUSE MEDICAL CENTRE,14361922,"1,217.65 "
Department of Health,NHS Sheffield CCG,30/09/2016,C&M-GMS Prof Fees Prescribing,PRC DELEGATED CO-COMMISSIONING,WALKLEY HOUSE MEDICAL CENTRE,14361922,183.68 
Department of Health,NHS Sheffield CCG,30/09/2016,C&M-GMS QOF Aspiration,PRC DELEGATED CO-COMMISSIONING,WALKLEY HOUSE MEDICAL CENTRE,14361922,"8,133.06 "
Department of Health,NHS Sheffield CCG,30/09/2016,C&M-GMS Cost of Drugs -Prescribing,LOCAL ENHANCED SERVICES,WHITE HOUSE SURGERY SHEFFIELD,14361920,734.18 
Department of Health,NHS Sheffield CCG,30/09/2016,C&M-GMS DES Extended Hours Access,PRC DELEGATED CO-COMMISSIONING,WHITE HOUSE SURGERY SHEFFIELD,14361920,"2,961.15 "
Department of Health,NHS Sheffield CCG,30/09/2016,C&M-GMS DES UNPLANNED ADMISSIONS,PRC DELEGATED CO-COMMISSIONING,WHITE HOUSE SURGERY SHEFFIELD,14361920,"8,292.55 "
Department of Health,NHS Sheffield CCG,30/09/2016,C&M-GMS Global Sum,PRC DELEGATED CO-COMMISSIONING,WHITE HOUSE SURGERY SHEFFIELD,14361920,"44,435.57 "
Department of Health,NHS Sheffield CCG,30/09/2016,C&M-GMS MPIG Correction Factor,PRC DELEGATED CO-COMMISSIONING,WHITE HOUSE SURGERY SHEFFIELD,14361920,"2,782.59 "
Department of Health,NHS Sheffield CCG,30/09/2016,C&M-GMS PCO Seniority,PRC DELEGATED CO-COMMISSIONING,WHITE HOUSE SURGERY SHEFFIELD,14361920,"2,947.97 "
Department of Health,NHS Sheffield CCG,30/09/2016,C&M-GMS Prem Notional Rent,PRC DELEGATED CO-COMMISSIONING,WHITE HOUSE SURGERY SHEFFIELD,14361920,"9,104.17 "
Department of Health,NHS Sheffield CCG,30/09/2016,C&M-GMS Prem Water Rates,PRC DELEGATED CO-COMMISSIONING,WHITE HOUSE SURGERY SHEFFIELD,14361920,872.99 
Department of Health,NHS Sheffield CCG,30/09/2016,C&M-GMS Prof Fees Prescribing,PRC DELEGATED CO-COMMISSIONING,WHITE HOUSE SURGERY SHEFFIELD,14361920,145.60 
Department of Health,NHS Sheffield CCG,30/09/2016,C&M-GMS QOF Aspiration,PRC DELEGATED CO-COMMISSIONING,WHITE HOUSE SURGERY SHEFFIELD,14361920,"5,341.68 "
Department of Health,NHS Sheffield CCG,30/09/2016,Cont Care-Physical Disab (<65),CHC ADULT FULLY FUNDED,WILLOWBECK HEALTH CARE LTD,14117952,"203,543.58 "
Department of Health,NHS Sheffield CCG,30/09/2016,C&M-PMS Contract Value,PRC DELEGATED CO-COMMISSIONING,WINCOBANK MEDICAL CENTRE,14153230,"(48,960.67)"
Department of Health,NHS Sheffield CCG,30/09/2016,C&M-PMS GP Statutory Levy,PRC DELEGATED CO-COMMISSIONING,WINCOBANK MEDICAL CENTRE,14153230,(218.55)
Department of Health,NHS Sheffield CCG,30/09/2016,C&M-PMS Out of Hours Opt Outs,PRC DELEGATED CO-COMMISSIONING,WINCOBANK MEDICAL CENTRE,14153230,(193.25)
Department of Health,NHS Sheffield CCG,30/09/2016,C&M-PMS Voluntary Levy,PRC DELEGATED CO-COMMISSIONING,WINCOBANK MEDICAL CENTRE,14153230,(36.43)
Department of Health,NHS Sheffield CCG,30/09/2016,C&M-PMS Baseline Adjustment,PRC DELEGATED CO-COMMISSIONING,WINCOBANK MEDICAL CENTRE,14153231,19.92 
Department of Health,NHS Sheffield CCG,30/09/2016,C&M-PMS Contract Value,PRC DELEGATED CO-COMMISSIONING,WINCOBANK MEDICAL CENTRE,14153231,"105,780.02 "
Department of Health,NHS Sheffield CCG,30/09/2016,C&M-PMS DES Minor Surgery,PRC DELEGATED CO-COMMISSIONING,WINCOBANK MEDICAL CENTRE,14153231,"3,460.38 "
Department of Health,NHS Sheffield CCG,30/09/2016,C&M-PMS Out of Hours Opt Outs,PRC DELEGATED CO-COMMISSIONING,WINCOBANK MEDICAL CENTRE,14153231,"(2,593.58)"
Department of Health,NHS Sheffield CCG,30/09/2016,C&M-PMS PCO Seniority,PRC DELEGATED CO-COMMISSIONING,WINCOBANK MEDICAL CENTRE,14153231,"4,643.97 "
Department of Health,NHS Sheffield CCG,30/09/2016,C&M-PMS Prem Healthcentre Rent,PRC DELEGATED CO-COMMISSIONING,WINCOBANK MEDICAL CENTRE,14153231,"40,840.62 "
Department of Health,NHS Sheffield CCG,30/09/2016,C&M-PMS QOF Aspiration,PRC DELEGATED CO-COMMISSIONING,WINCOBANK MEDICAL CENTRE,14153231,"6,279.11 "
Department of Health,NHS Sheffield CCG,30/09/2016,C&M-PMS Contract Value,PRC DELEGATED CO-COMMISSIONING,WOODHOUSE HEALTH CENTRE,14153226,"(89,336.64)"
Department of Health,NHS Sheffield CCG,30/09/2016,C&M-PMS GP Statutory Levy,PRC DELEGATED CO-COMMISSIONING,WOODHOUSE HEALTH CENTRE,14153226,(371.07)
Department of Health,NHS Sheffield CCG,30/09/2016,C&M-PMS Out of Hours Opt Outs,PRC DELEGATED CO-COMMISSIONING,WOODHOUSE HEALTH CENTRE,14153226,(64.60)
Department of Health,NHS Sheffield CCG,30/09/2016,C&M-PMS Voluntary Levy,PRC DELEGATED CO-COMMISSIONING,WOODHOUSE HEALTH CENTRE,14153226,(61.85)
Department of Health,NHS Sheffield CCG,30/09/2016,ME - PMS TPS Added Years Adj EEs,PRC DELEGATED CO-COMMISSIONING,WOODHOUSE HEALTH CENTRE,14153226,(826.25)
Department of Health,NHS Sheffield CCG,30/09/2016,C&M-PMS Baseline Adjustment,PRC DELEGATED CO-COMMISSIONING,WOODHOUSE HEALTH CENTRE,14153227,"5,552.58 "
Department of Health,NHS Sheffield CCG,30/09/2016,C&M-PMS Contract Value,PRC DELEGATED CO-COMMISSIONING,WOODHOUSE HEALTH CENTRE,14153227,"180,396.68 "
Department of Health,NHS Sheffield CCG,30/09/2016,C&M-PMS DES Minor Surgery,PRC DELEGATED CO-COMMISSIONING,WOODHOUSE HEALTH CENTRE,14153227,"5,875.28 "
Department of Health,NHS Sheffield CCG,30/09/2016,C&M-PMS DES UNPLANNED ADMISSIONS,PRC DELEGATED CO-COMMISSIONING,WOODHOUSE HEALTH CENTRE,14153227,"16,457.42 "
Department of Health,NHS Sheffield CCG,30/09/2016,C&M-PMS Out of Hours Opt Outs,PRC DELEGATED CO-COMMISSIONING,WOODHOUSE HEALTH CENTRE,14153227,"(4,386.21)"
Department of Health,NHS Sheffield CCG,30/09/2016,C&M-PMS PCO Seniority,PRC DELEGATED CO-COMMISSIONING,WOODHOUSE HEALTH CENTRE,14153227,"6,162.07 "
Department of Health,NHS Sheffield CCG,30/09/2016,C&M-PMS Prem Notional Rent,PRC DELEGATED CO-COMMISSIONING,WOODHOUSE HEALTH CENTRE,14153227,"6,338.59 "
Department of Health,NHS Sheffield CCG,30/09/2016,C&M-PMS Prem Rates,PRC DELEGATED CO-COMMISSIONING,WOODHOUSE HEALTH CENTRE,14153227,"1,080.97 "
Department of Health,NHS Sheffield CCG,30/09/2016,C&M-PMS QOF Aspiration,PRC DELEGATED CO-COMMISSIONING,WOODHOUSE HEALTH CENTRE,14153227,"13,394.35 "
Department of Health,NHS Sheffield CCG,30/09/2016,C&M-PMS Contract Value,PRC DELEGATED CO-COMMISSIONING,WOODSEATS MEDICAL CENTRE,14153228,"(55,148.92)"
Department of Health,NHS Sheffield CCG,30/09/2016,C&M-PMS GP Statutory Levy,PRC DELEGATED CO-COMMISSIONING,WOODSEATS MEDICAL CENTRE,14153228,(266.82)
Department of Health,NHS Sheffield CCG,30/09/2016,C&M-PMS Out of Hours Opt Outs,PRC DELEGATED CO-COMMISSIONING,WOODSEATS MEDICAL CENTRE,14153228,(97.89)
Department of Health,NHS Sheffield CCG,30/09/2016,C&M-PMS Voluntary Levy,PRC DELEGATED CO-COMMISSIONING,WOODSEATS MEDICAL CENTRE,14153228,(44.47)
Department of Health,NHS Sheffield CCG,30/09/2016,ME - PMS TPS Added Years Adj EEs,PRC DELEGATED CO-COMMISSIONING,WOODSEATS MEDICAL CENTRE,14153228,(559.03)
Department of Health,NHS Sheffield CCG,30/09/2016,C&M-PMS Baseline Adjustment,PRC DELEGATED CO-COMMISSIONING,WOODSEATS MEDICAL CENTRE,14153229,794.17 
Department of Health,NHS Sheffield CCG,30/09/2016,C&M-PMS Contract Value,PRC DELEGATED CO-COMMISSIONING,WOODSEATS MEDICAL CENTRE,14153229,"115,992.88 "
Department of Health,NHS Sheffield CCG,30/09/2016,C&M-PMS DES Minor Surgery,PRC DELEGATED CO-COMMISSIONING,WOODSEATS MEDICAL CENTRE,14153229,"4,224.65 "
Department of Health,NHS Sheffield CCG,30/09/2016,C&M-PMS DES UNPLANNED ADMISSIONS,PRC DELEGATED CO-COMMISSIONING,WOODSEATS MEDICAL CENTRE,14153229,"11,835.67 "
Department of Health,NHS Sheffield CCG,30/09/2016,C&M-PMS Out of Hours Opt Outs,PRC DELEGATED CO-COMMISSIONING,WOODSEATS MEDICAL CENTRE,14153229,"(2,886.33)"
Department of Health,NHS Sheffield CCG,30/09/2016,C&M-PMS PCO Seniority,PRC DELEGATED CO-COMMISSIONING,WOODSEATS MEDICAL CENTRE,14153229,"4,068.66 "
Department of Health,NHS Sheffield CCG,30/09/2016,C&M-PMS Prem Notional Rent,PRC DELEGATED CO-COMMISSIONING,WOODSEATS MEDICAL CENTRE,14153229,"3,578.92 "
Department of Health,NHS Sheffield CCG,30/09/2016,C&M-PMS Prem Rates,PRC DELEGATED CO-COMMISSIONING,WOODSEATS MEDICAL CENTRE,14153229,"1,379.18 "
Department of Health,NHS Sheffield CCG,30/09/2016,C&M-PMS Prem Water Rates,PRC DELEGATED CO-COMMISSIONING,WOODSEATS MEDICAL CENTRE,14153229,228.06 
Department of Health,NHS Sheffield CCG,30/09/2016,C&M-PMS QOF Aspiration,PRC DELEGATED CO-COMMISSIONING,WOODSEATS MEDICAL CENTRE,14153229,"7,370.55 "
Department of Health,NHS Sheffield CCG,30/09/2016,Hcare Srv Rec Fdtn Trust-Non Contract,NCAS/OATS,YORK TEACHING HOSPITAL NHS FOUNDATION TRUST,14282139,"50,187.77 "
Department of Health,NHS Sheffield CCG,30/09/2016,Hcare Srv Rec Fdtn Trust-Non Contract,NCAS/OATS,YORK TEACHING HOSPITAL NHS FOUNDATION TRUST,14282315,"26,329.97 "
Department of Health,NHS Sheffield CCG,30/09/2016,"Books, Journals & Subscr",PROGRAMME PROJECTS,YORKSHIRE & HUMBER AHSN LTD,14371869,"48,994.80 "
Department of Health,NHS Sheffield CCG,30/09/2016,Hcare Srv Rec NHS Trust-CQUIN,PATIENT TRANSPORT,YORKSHIRE AMBULANCE SERVICE NHS TRUST,14093256,"30,163.00 "
Department of Health,NHS Sheffield CCG,30/09/2016,Hcare Srv Rec NHS Trust-Contract Baseline,AMBULANCE SERVICES,YORKSHIRE AMBULANCE SERVICE NHS TRUST,14093267,"1,393,177.00 "
Department of Health,NHS Sheffield CCG,30/09/2016,Hcare Srv Rec NHS Trust-Contract Baseline,AMBULANCE SERVICES,YORKSHIRE AMBULANCE SERVICE NHS TRUST,14093274,"122,502.08 "
Department of Health,NHS Sheffield CCG,30/09/2016,Hcare Srv Rec NHS Trust-Contract Baseline,PATIENT TRANSPORT,YORKSHIRE AMBULANCE SERVICE NHS TRUST,14093279,"170,931.00 "
Department of Health,NHS Sheffield CCG,30/09/2016,Hcare Srv Rec NHS Trust-Contract Baseline,NHS 111,YORKSHIRE AMBULANCE SERVICE NHS TRUST,14093283,"89,944.26 "
,,,,,,,"56,860,448.72 "
